{"text_format":"3","workbook":"xlsx","n_sheets":7,"sheets":["I1_Erläuterung","E1_Projektdaten","E2_Wärmepreis","E3_Verbraucher","B1_Berechnungen","A1_Ergebnisse","A2_NPV-Daten"],"not_rendered":{"charts":6,"images":3,"defined_names":280,"comments":1},"read":"whole","date_system":"1900"}

{"sheet":"I1_Erläuterung","index":0,"n_rows":219,"n_cols":2,"rows_kept":219}
[null,"Erläuterungen zum QM Holzheizwerke Wirtschaftlichkeitstool"]
[null,"Version: 5.1 (Juni 2022)"]
[null,"Erläuterung"]
[null,"Prinzipielles zu diesem Werkzeug:\nHaftungsausschluss\nDas Excel-Werkzeug wurde sehr sorgfältig erstellt, trotzdem können die Hersteller keinerlei Garantie oder Gewährleistung für die ermittelten Ergebnisse und daraus abgeleitete Schlüsse übernehmen. Durch die getroffenen Vereinfachungen ergeben sich aufgrund der Art der Berechnung bestimmte \"Fehler\", z.B. wird nicht berücksichtigt, ob eine Zahlung zu Jahresbeginn oder Jahresende erfolgt, da ein Jahr als eine Periode angesehen wird.\nAchtung: Auch wenn Warnungs-Rückmeldungen bezüglich diverser Eingabegrenzen durch das Werkzeug erfolgen, ist nicht auszuschliessen, dass durch falsche Eingabewerte eine falsche Darstellung des Endergebnisses erfolgt. Die richtige Abschätzung der Folgen bestimmter Annahmen obliegt dem Benutzer des Werkzeugs.\n\nFormeln:\nDie Arbeitsblätter dieser Arbeitsmappe sind mit einem Schreibschutz gesichert, alle Formeln und Berechnungen sind jedoch ersichtlich. Bitte beachten Sie, dass Änderungen daran zu Fehlern an anderen Stellen und damit zu falschen Aussagen des Werkzeugs führen können.\n\nSensitivitätsanalyse / Was-Wäre-Wenn Rechnung:\nDurch Variation der Eingabeparameter und Speicherung der einzelnen Ergebnisse der \nWirtschaftlichkeitsberechnung ist es möglich, Aussagen bezüglich des Einflusses einzelner \nParameter auf die wirtschaftliche Entwicklung des Projekts zu erhalten.\n\nFeedback:\nDas Team von QM Holzheizwerke freut sich über Verbesserungsvorschläge und Anregungen zu \ndiesem Werkzeug, bitte übermitteln Sie diese an info@qmholzheizwerke.ch"]
[null,"Dank\nDie Erstellung des vorliegenden Werkzeuges erfolgte im Auftrag von Energieschweiz."]
[null,"Registerblätter: Die Datei ist aufgeteilt auf verschiedene Registerblätter\nBenennung: Die Benennung der Registerblätter unterscheidet auch die hauptsächliche Funktion des Arbeitsblattes:\nI = Information (Arbeitsblatt enthält Infos und Erläuterungen zur Anwendung der Datei)\nE = Eingabeblatt (Eingabe von Daten, die für die Berechnung notwendig sind)\nB = Berechnung\nA = Ausgabeblatt (Darstellung von ausgewählten Ergebnissen zum Drucken oder für den Datenexport)"]
[100,"Registerblatt \"E1_Projektdaten\"\nEingabe von Projektdaten, Termine, Investitionskosten, Förderung, Darlehen, Betriebskosten etc."]
[101,"Eingabefelder sind hellgelb unterlegt"]
[102,"Eingabefelder mit Standardwerten und/oder Berechnungen sind hellblau unterlegt\nBitte beachten Sie, dass das Überschreiben dieser Felder zu Fehlern an anderen Stellen und damit zu falschen Aussagen des Werkzeuges führen können."]
[103,"Eingabefelder in welche Daten aus der QMH Excel-Datei Situationserfassung übernommen werden können\nHinweis: Damit keine Formeln kopiert werden, ist die Funktion \"Einfügen - Werte\" zu wählen."]
[104,"Ausgabefelder, deren Inhalt kopiert werden und in einer externen Datei eingefügt werden können\nDie Felder sind überschreibbar. Bitte beachten Sie, dass das Überschreiben dieser Felder zu Fehlern an anderen Stellen und damit zu Fehlern führen können."]
[105,"Alle CHF - Beträge müssen ohne Mehrwertsteuer angegeben werden."]
[106,"Eingabefeld für Name und Bezeichnung von Projekt und/oder Variante"]
[107,"Bearbeitende Person des Wirtschaftlichkeitsmodelles"]
[108,"Warnungen: Im Feld Warnungen erscheint ein kurzer Erläuterungstext, wenn bei der Eingabe unplausible Angaben gemacht werden (z.B. Netzverluste = 80% oder ähnlich)"]
[110,"Kapitel Wärmemengen, Netzverluste und allgemeine Angaben zum Projekt"]
[111,"Verkaufte Wärmemenge in MWh bei einem Wärmeabnahmegrad von 100%. (Berechnet aus der Summe der Wärmebezüger aller Wärmeabnehmer im Register \"Verbraucher\""]
[112,"Netzverluste des Fernwärmenetzes (Q-Forderung QMH ≤10%). Verhältnis zwischen der Differenz der produzierten und der verkauften Wärmemenge zur verkauften Wärmemenge. Bei Netzen im Wachstum ist allenfalls ein mittlerer Verlust anzugeben."]
[113,"Jährliche Abnahme des Wärmebedarfes. Durchschnittliche jährliche Abnahme des Wärmebedarfes  durch Effizienzmassnahmen (z.B. verbesserte Gebäudehüllen) der Wärmebezüger ab der Inbetriebnahme. Dieser Wert wird im Gesamtwärmebedarf berücksichtigt."]
[114,"Basisjahr für Investitionen - wird als Jahr 0 für die Wirtschaftlichkeitsrechnung herangezogen"]
[115,"Jahr der ersten Wärmelieferung - ab diesem Jahr werden Einnahmen generiert. (Übernahme des ersten Jahres mit Wärmelieferung aus dem Register \"Verbraucher\""]
[120,"Erfassung der Energiepreise, Betriebskosten und sonstigen Aufwendungen (wesentliche Aufwendungen für das Projekt)"]
[121,"Einkaufspreis für den Brennstoff Biomasse in CHF/MWh Nutzenergie (gemessen am Wärmezähler)"]
[122,"Anteil der verkauften Wärme, die mit Biomasse erzeugt wird in Prozent.\n100% steht für eine monovalente Anlage, 85% wenn zum Beispiel 15% des Jahreswärmebedarfs mit einem fossilen Spitzenlastkessel erbracht wird."]
[123,"Anteil der verkauften Wärme, die fossil erzeugt wird in Prozent: wird aus dem Anteil Biomassewärme (Pkt. 122) berechnet"]
[124,"Preis des eingesetzten fossilen Brennstoffs (Heizöl oder Erdgas) in CHF/MWh (Primärenergie). Sollte ein nicht-fossiler Brennstoff zur Spitzenlastabdeckung eingesetzt werden, muss dieser auch hier eingesetzt werden."]
[125,"Jahresnutzungsgrad des fossilen Spitzenlastkessels.\nWird zur Spitzenlastdeckung ein Erdgaskessel eingebaut und unter Punkt 124 der Preis in MWho eingegeben, ist zusätzlich die Umrechnung von Ho zu Hu (0.9) zu berücksichtigen."]
[126,"Anteil Hilfsenergie (Strom) bezogen auf die produzierte Wärmemenge. Diese wird sowohl bei der Wärmeerzeugung als auch bei der Wärmeverteilung benötigt.\nEmpfehlung QMH: Für die Wärmeerzeugung wird 1 - 1.5% der produzierten Wärme benötigt, für die Wärmeverteilung 0.5 - 1% der verteilten Wärme."]
[127,"Strompreis in CHF/kWh (inkl. Anteil Anschlusskosten etc.) (Empfehlung wenn nicht bekannt: 0.2 CHF/kWhel)"]
[130,"Betriebskosten: Personalkosten für Bedienung, Reinigung, Wartung ohne Verwaltungsaufwand\nVorgabewert = Richtwert QMH PHB: 1.5% der Investitionskosten Wärmeerzeugung (Pkt. 151–153)"]
[131,"externe Betriebskosten für Kaminfeger, Abgasmessung, Service-Verträge etc. (Ascheentsorgung, sofern nicht im Brennstoffpreis enthalten)"]
[132,"Unterhaltskosten: Ersatzteile, Reparaturen (prozentualer Anteil der Investition gem. QMH, siehe ab Punkt 140)"]
[135,"Jährliche Kosten für Miete,  Pacht oder  Liegenschaft (effektive Kosten eintragen)"]
[136,"Sonstige jährliche Kosten (Verwaltung, Versicherung, Steuern, Homepage, Telefonie, öffentliche Gebühren, ...... etc.)\nVorgabewert: 1% der Gesamtinvestition (Richtwert QMH PHB :0.5–1.5%)"]
[137,"allgemeine jährliche Teuerung in %: Es kann ein Globalwert eingegeben werden, der als Vorgabe in die individuellen Teuerungen im Register B1_Berechnungen (Pkt. 505) übernommen wird."]
[138,"Nominalzins: aktueller Nominalzinssatz"]
[139,"Realzins: berechnet aus Nominalzinssatz (138) und mittlerer Teuerung (137)"]
[140,"Kostenstruktur"]
[141,"Eingabespalte der Investitionskosten"]
[142,"spez. Unterhaltskosten: Prozentualer Anteil der Investitionskosten (siehe auch QMH Planungshandbuch)"]
[143,"Abschreibedauer der Anlagenteile (siehe auch QMH Planungshandbuch)"]
[150,"Investitionskosten"]
[151,"Baukosten für die Heizzentrale und das Brennstofflager"]
[152,"Kosten für die holzspezifischen Anlagenteile (Kesselanlage komplett)"]
[153,"Kosten für die spitzenlastspezifischen Anlagenteile (fossile Kesselanlage)"]
[154,"Installationskosten für Heizung, Lüftung, Klima, Sanitär und Elektro (HLKSE)"]
[155,"Kosten für Wärmenetz inkl. Tiefbaukosten"]
[156,"Kosten für die Wärmezähler und die Regelung bei den Verbrauchern (im Besitz des Wärmeverbundes), inklusive der Wärmezähler der Erzeuger. Bei dieser Position fallen üblicherweise nach ca. 15 Jahren Ersatzinvestitionen an."]
[157,"Kosten für die Wärmeübergabestationen bei den Verbrauchern\nAnteil Kunden, wird üblicherweise mit den einmaligen Anschlusskosten (Pkt. 325) an den Wärmeverbund zurückbezahlt. In dieser Position fallen üblicherweise keine Ersatzinvestitionen für den Wärmeverbund an.\nDiese Position wird nicht in die Restwertbetrachtung eingerechnet!"]
[158,"Kosten für Planung und Unvorhergesehenes (Abschreibung über mittlere Abschreibedauer)\nDiese Position wird in der Restwertbetrachtung nicht eingerechnet!"]
[159,"Berechnete Gesamtinvestitionen für das Projekt und mittlere Abschreibedauer"]
[160,"Aufteilung der Investitionen auf max. drei Jahre in % der Gesamtinvestition (Pkt. 159)\nHinweis: Die Unterhaltskosten (Pkt. 142) werden nach dem selben Verteiler abgestuft. Bei Abweichungen zwischen den effektiven Unterhaltskosten und den in Pkt. 558 ausgewiesenen Aufwendungen, sind die Prozentsätze in Pkt. 142 entsprechend anzupassen."]
[161,"Etappe 1: Startjahr des Projektes (Pkt.: 114) ist immer das Jahr der ersten Investitionen: Feld kann nicht bearbeitet werden; Investitionen, die nicht in den Jahren der Punkte 162 + 163 getätigt werden, fallen im Startjahr an.\n(Formel: 100% Gesamtinvestition - Investitionsanteile Pkt. 162+163)"]
[162,"Etappe 2: Jahr und Investitionsanteil der zweiten Etappe. Standardmässig wird das Jahr nach dem Startjahr gewählt.\nDas Feld kann überschrieben werden.\nAchtung: Das Überschreiben des Feldes löscht die Formel!"]
[163,"Etappe 3: Jahr und Investitionsanteil der dritten Etappe. Standardmässig wird das zweite Jahr nach dem Startjahr gewählt.\nDas Feld kann überschrieben werden.\nAchtung: Das Überschreiben des Feldes löscht die Formel!"]
[165,"Angaben zu Darlehen und Krediten zur Finanzierung des Projektes\nEs können zwei Kredite /  Darlehen eingetragen werden."]
[166,"Summe des fremdfinanzierten Betrages"]
[167,"Laufzeit des Kredits, in dieser Berechnung werden konstante Raten über die gesamte Laufzeit angenommen. Die Laufzeit des Kredits sollte gegenüber der Bank so lange als möglich vereinbart werden (ideal 20... 25 Jahre) und die Möglichkeit einer vorzeitigen kostenfreien Rückzahlung im Kreditvertrag festgehalten werden. So bleibt die verpflichtete Rate so tief wie möglich, bei höheren Einnahmen kann der Betreiber  vorauszahlen und damit den Kredit rascher amortisieren.\nUnbefristete Kredite ohne Rückzahlraten (z.B. Hypotheken ohne Amortisation) werden mit der Laufzeit \"0\" eingetragen."]
[168,"Startjahr des Darlehens. In diesem Jahr wird das Darlehen an das Projekt ausgezahlt und es ist die erste Amortisationsrate fällig. Die Zinszahlung erfolgt jeweils im Folgejahr."]
[169,"jährlicher Bruttokreditzinssatz (vor Abzug der Verrechungssteuer) über die gesamte Laufzeit (mittlerer Zinssatz)"]
[170,"Angaben zu Fördergeldern"]
[171,"Es können zwei \"Pakete\" von einmaligen Förderbeiträgen (z.B. kantonale Förderung, Klimastiftung, Berghilfe etc.) mit unterschiedlichen Auszahlungsjahren  eingegeben werden."]
[172,"Einmalig ausbezahlter Förderbeitrag des ersten Pakets"]
[173,"Jahr der Förderauszahlung des ersten Pakets. Es wird empfohlen, die Auszahlung frühestens nach der Inbetriebnahme, besser nach dem ersten Betriebsjahr in die Kalkulation einzubeziehen. Durch eine verzögerte Auszahlung entstehen zusätzliche Zinsen für das zwischenzeitlich benötigte Fremdkapital."]
[174,"Einmalig ausbezahlter Förderbeitrag des zweiten Pakets"]
[175,"Jahr der Förderauszahlung des zweiten Pakets"]
[176,"Nebst den einmaligen Förderungen kann auch eine befristete jährliche Förderung (z.B. KliK) eingegeben werden"]
[177,"Durchschnittliche Auszahlung pro Jahr innerhalb der Förderlaufzeit."]
[178,"Laufzeit der jährlichen Förderung (Anzahl Auszahlungen)"]
[179,"Jahr der ersten Auszahlung. Bitte berücksichtigen Sie die Bearbeitungsdauer für die Berechnung der jährlichen Auszahlung. Es wird empfohlen die erste Auszahlung frühestens im Jahr nach der IBN einzurechnen."]
[180,"Berechnete Werte: Zahlenwerte, die sich aus den obigen Eingaben errechnen lassen und zur Kontrolle der Eingabe und Darstellung der Berechnung der Energiemengen dienen."]
[181,"maximal erzeugte Jahreswärmemenge: wird aus der verkauften Jahreswärmemenge (Pkt. 111) und den Netzverlusten (Pkt. 112)"]
[182,"Mit Biomasse erzeugte Nutzwärmemenge: wird über den Anteil Biomasse (Pkt. 122) berechnet"]
[183,"Fossiler Primärenergiebedarf für die Spitzenlastdeckung: wird aus dem Anteil fossil (Pkt. 123) und dem Jahresnutzungsgrad des Spitzenlastkessels (Pkt. 125) berechnet."]
[184,"benötigte elektrische Energie für den Betrieb der Anlage: Berechneter prozentualer Anteil der Gesamtwärmemenge (Pkt. 181) und dem Anteil Hilfsenergie (Pkt. 126)."]
[185,"Die jährlichen Energiekosten Biomasse wird aus der Nutzenergie Biomasse (Pkt. 182) und den Brennstoffkosten für Biomasse (Pkt. 121) berechnet"]
[186,"Die jährlichen Kosten für den Einkauf der fossilen Spitzenlastenergie wird aus der benötigten fossilen Primärenergie (Pkt. 183) und den Einkaufskosten für die fossile Energie (Pkt.: 124) berechnet."]
[187,"Stromverbrauch für Hilfsenergie: Berechnet aus dem Hilfsenergiebdedarf (Pkt. 184) und dem Strompreis (Pkt. 127) "]
[190,"Gesamte Investitionskosten für das Projekt (Heizzentrale, Wärmenetz, Wärmeübergabestationen etc.)"]
[191,"Gesamtmenge der Fördermittel: berechnet aus den einmaligen Förderbeiträgen (Pkt. 172/174) und der jährlichen Förderung (Pkt. 177) und der Laufzeit der jährlichen Förderung (Pkt. 178)"]
[192,"Jahreskosten =  mittlere jährliche Kosten über die Projektlaufzeit\nWärmegestehungskosten = spezifiische Kosten je kWh abgegebener Nutzwärme, berechnet aus den Jahreskosten dividiert durch die abgegebenen Nutzwärme (Pkt. 111)"]
[193,"Jahreskosten berechnt aus der Kapitalisierung der Investitionskosten für die Wärmeerzeugung inkl. Zentralengebäude best. aus den Punkten 151–154 und 50% der Planungskosten (Pkt. 158), dem Realzinssatz und der Abschreibedauer"]
[194,"Jahreskosten berechnte aus der Kapitalisierung der Investitionskosten für die Wärmeverteilung inkl. Hausstationen best. aus den Punkten 155–157 und 50% der Planungskosten (Pkt. 158), dem Realzinssatz und der Abschreibedauer"]
[195,"Wartungs- und Unterhaltskosten für die Wärmeerzeugung\nUnterhaltskosten berechnet aus den Investionen aus Pkt. 151–154 + 50% aus Pkt. 158 und den spezifiischen Unterhaltskosten (Pkt. 142)\nWartungskosten berechnet aus dem Anteil der Unterhaltskosten für die Wärmeerzeugung an den Gesamtunterhaltskosten aus Pkt. 130, 131, 135 und 136"]
[196,"Wartungs- und Unterhaltskosten für die Wärmeverteilung\nUnterhaltskosten berechnet aus den Investionen aus Pkt. 155–157 + 50% aus Pkt. 158 und den spezifiischen Unterhaltskosten (Pkt. 142)\nWartungskosten berechnet aus dem Anteil der Unterhaltskosten für die Wärmeverteilung an den Gesamtunterhaltskosten aus Pkt. 130, 131, 135 und 136"]
[197,"Jährliche Energiekosten berechnet aus Pkt. 185–187"]
[198,"Summe der Jahreskosten und Wärmegestehungskosten aus Pkt. 193–197 resp. mit Berücksichtigung der Förderung inkl. Pkt. 199"]
[199,"Reduktion der Jahreskosten aufgrund der Förderund. Die Summe der Förderungen aus Pkt. 172, 174 und 177 x 178 kapitalisiert über 25 Jahre."]
[]
[200,"Registerblatt \"E2_Wärmepreis\"\nAngaben zu den Wärmepreisen und Tarifbildung"]
[206,"Feld für Name und Bezeichnung von Projekt und/oder Variante: wird von Pkt. 106 übernommen"]
[207,"Bearbeitende Person: wird von Pkt. 107 übernommen"]
[210,"Tarifstruktur: Es können für vier Tarifstufen individuelle Preise eingetragen werden"]
[211,"Tarifstufe 1: z.B. Kleinkunden mit sehr geringer Wärmeabnahme und Leistungsanforderung\nIm Eingabefeld ist ein Name für die Tarifstufe 1 einzutragen\nIm Feld  \"% der Wärmemenge\" wird der Anteil der Wärmemenge dieser Tarifstufe anhand der Angaben im Register E3_Verbraucher berechnet."]
[212,"Grundpreis Tarifstufe 1: Grundpreis in CHF pro Jahr je kW abonnierte Wärmeleistung gemäss Wärmeliefervertrag.\nUm eine Berechnung ohne Grundpreis durchzuführen, ist in dieses Feld gleich Null zu setzen.\nÜblicherweise werden die Grundpreise je kW installierte Leistung mit zunehmender Leistung des Anschlusses etwas geringer."]
[213,"Arbeitspreis Tarifstufe 1: Arbeitspreis in CHF je kWh für die verkaufte Wärmemenge."]
[214,"Vertragslaufzeit Tarifstufe 1: Die übliche (durchschnittliche) Vertragslaufzeit für Wärmeverträge dieser Tarifstufe. Nach Ablauf dieser Laufzeit kann ein neuer Vertrag mit anderen Tarifen ausgehandelt werden. Da die Verträge üblicherweise stillschweigend erneuert werden, hat der Vertragsablauf keinen Einfluss auf die Berechnungen im Registerblatt \"B1_Berechnungen\".\nDie Vertragslaufzeit wird für die Berechnung der Kapitalkosten der Wärmebezüger (Pkt. 330) verwendet. "]
["221\n222\n223\n224","Tarifstufe 2: z.B. Gewerbekunden mit mittlerer Wärmeabnahme und Leistungsanforderung\nIm Eingabefeld ist ein Name für die Tarifstufe 2 einzutragen\nDie Eingabe von Grundpreis, Arbeitspreis und Vertragsdauer erfolgt wie bei der Tarifstufe 1 (siehe Pkt. 211 - 214)"]
["231\n232\n233\n234","Tarifstufe 3: z.B. öffentliche Institutionen mit grosser Wärmeabnahme und Leistungsanforderung\nIm Eingabefeld ist ein Name für die Tarifstufe 3 einzutragen\nDie Eingabe von Grundpreis, Arbeitspreis und Vertragsdauer erfolgt wie bei der Tarifstufe 1 (siehe Pkt. 211 - 214)"]
["241\n242\n243\n244","Tarifstufe 4: z.B. Industriekunden mit ganz grosser Wärmeabnahme und hoher Leistungsanforderung\nIm Eingabefeld ist ein Name für die Tarifstufe 4 einzutragen\nDie Eingabe von Grundpreis, Arbeitspreis und Vertragsdauer erfolgt wie bei der Tarifstufe 1 (siehe Pkt. 211 - 214)"]
[]
[300,"Registerblatt \"E3_Verbraucher\"\nAngaben zu den Wärmeverbrauchern (Wärmekunden) im Wärmeverbund"]
[310,"Eingaben Verbraucher\nIn dieser Tabelle können für jeden Wärmekunden die entsprechenden Daten eingetragen werden. Diejenigen Angaben, die mit den Daten der Excel-Situationserfassung von QM Holzheizwerke korrespondieren (Pkt. 311 - 314)  können aus dieser Tabelle übernommen werden. Für die Übernahme der Daten werden die entsprechenden Zeilen kopiert und mit \"Werte Einfügen\" in die entsprechenden Zellen des Wirtschaftlichkeitsmodells eingefügt.\nAchtung: Im Unterschied zur Excel-Datei Situationserfassung können in dieser Tabelle nur maximal 180 Objekte erfasst werden.\nHinweis: Um die Dateneingabe zu vereinfachen können auch die Summenwerte der jährlichen Ausbauetappen erfasst werden."]
[311,"Nummer: Fortlaufende Nummer (Übernahme aus der Excel-Tabelle Situationserfassung möglich)\nHinweis: Damit keine Formeln kopiert werden, ist die Funktion \"Einfügen - Werte\" zu wählen."]
[312,"Bezeichnung: Drei Zeilen für die Objekt oder Etappenbenennung (Übernahme aus der Excel-Tabelle Situationserfassung möglich)\nHinweis: Damit keine Formeln kopiert werden, ist die Funktion \"Einfügen - Werte\" zu wählen."]
[320,"Gesamtwärmebedarf des Wärmekunden bestehend aus dem Wärmebedarf für Raumwärme, Warmwasser und Prozesswärme (Ab Situationserfassung V34 könnnen die Werte direkt aus dem Regiesterblatt \"Verbraucher\" übernommen werden. Bei älteren Situationserfassungen kann die Summe der einzelnen Werte übernommen werden.)"]
[321,"Abonnierte Leistung gemäss Wärmeliefervertrag\nAchtung: Hier ist die abonnierte Leistung einzutragen, die für die Verrechnung der Grundgebühr benötigt wird. Diese kann von der berechneten nötigen Leistung gemäss Excel-Tabelle Situationserfassung abweichen!"]
[322,"Anschlusszeitpunkt: Prozentualer Anteil des Wärmebedarfes im Anschlussjahr (Pkt. 323) des Gesamtwärmebedarfes (Pkt. 320)\nBeispiel: Erfolgt der Anschluss auf Beginn der Heizperiode, beträgt der Wärmebedarf im Anschlussjahr z.B. ca. 40%. Im Anschlussjahr wird dann mit einem Wärmeverkauf von 40% gerechnet und im Folgejahr 100%"]
[323,"Anschlussjahr: Kalenderjahr, in dem der Verbraucher erstmals mit Wärme versorgt wird"]
[324,"Tarifstufe des Wärmepreises für den Verbraucher (Auswahlfeld: es können die in E2_Wärmepreis definierten Tarifstufen gewählt werden)"]
[325,"Anschlusskosten: einmalige Anschlusskosten, die der Verbraucher an den Wärmeverbund entrichtet. Die Kosten werden im Anschlussjahr (Pkt. 323) als Ertrag für den Wärmeverbund verbucht."]
[330,"jährliche Kapitalkosten (unverzinst) für den Verbraucher: Berechnet aus den Anschlusskosten (Pkt. 325) und der Vertragsdauer des Wärmeliefervertrages im entsprechenden Tarifmodell (Pkt. 214, 224, 234 und 244)"]
[331,"jährliche Grundkosten für den Verbraucher: Berechnet aus der abonnierten Leistung und den Grundkosen der gewählten Tarifstufe"]
[332,"jährliche Energiekosten für den Verbraucher: Berechnet aus dem Jahreswärmebedarf und dem Arbeitspreis der gewählten Tarifstufe"]
[333,"jährliche Grund- und Energiekosten für den Verbraucher: Summe aus Pkt. 331 + 332 (Dieser Wert wird als jährlicher Ertrag für den Wärmeverbund verbucht)"]
[334,"Jahreskosten für den Verbraucher: Summe aus Kapital-, Grund- und Energiekosten (Pkt. 330-332)"]
[335,"Wärmegestehungspreis der Verbraucher: Berechnet aus den Jahreskosten (Pkt. 334) und dem Wärmebezug (Pkt. 320)"]
[]
[500,"Registerblatt \"B1_Berechnungen\"\nKalkulationsblatt: Darstellung der vereinfachten finanziellen Entwicklung des Projekts innerhalb von 25 Jahren.\nDie Abschnitte Betriebskosten bzw. Erlöse beziehen sich auf das Betriebsjahr 1 und 100% Auslastung (Was zumeist noch nicht erreicht wird!). Diese sollen helfen, die zu erwartenden Kosten- und Erlöse besser einschätzen zu können. \nDie Verfahren der dynamischen Investitionsrechnung berücksichtigen den Zahlungszeitpunkt der einzelnen Einnahmen und Ausgaben per Ende Jahr.\n"]
[501,"Warnungshinweis: Wenn in den Eingabeblättern E1 und E2 noch Warnungen anstehend sind, wird in diesem Feld ein \"Sammelalarm\" ausgegeben."]
[505,"Teuerungsspalte: Als Standard wird die allgemeine Teuerung, die im Register E1_Projektdaten (Pkt. 137) erfasst wird eingesetzt.\nEs kann jedoch für jede Kostenposition (Pkt. 512-519) eine individuelle jährliche Teuerung eingesetzt werden. In Pkt. 520 (Wärmepreis) wird Teuerung aufgrund des gewichteten Mittelwertes berechnet. Der Wert kann bei Bedarf überschrieben werden Achtung: Das Überschreiben des berechneten Wertes löscht die hinterlegte Formel!"]
[510,"Zusammenstellung der Betriebskosten: Es werden jeweils die theoretischen Gesamtkosten beim Vollausbau (100% Anschluss) im ersten Betriebsjahr dargestellt."]
[511,"Total der Betriebskosten: Berechnet aus der Summe der Punkte: 512-519, Die Teuerung entspricht dem gewichteten Mittelwert der Teuerungen von Pkt. 512-519 "]
[512,"Brennstoff Biomasse: siehe Pkt. 185"]
[513,"Brennstoff fossil: siehe Pkt. 186"]
[514,"Strom: siehe Pkt. 187"]
[515,"Betriebskosten: siehe Pkt. 130"]
[516,"Administration: siehe Pkt. 131"]
[517,"Unterhaltskosten: siehe Pkt. 132"]
[518,"Miete /Pacht / Grundstückskosten: siehe Pkt. 135"]
[519,"Sonstige (Versicherung etc.): siehe Pkt. 136"]
[520,"Teuerung des Wärmeverkaufspreises: Übernimmt den gewichteten Mittelwert der Teuerungen von Pkt. 512-519 (Der Wert kann überschrieben werden. Das Überschreiben des berechneten Wertes löscht die hinterlegte Formel!)"]
[530,"Projektdaten: Eckdaten zum Projekt\nProjektbeginn: Basisjahr für Investitionen - wird als Jahr 0 für die Wirtschaftlichkeitsrechnung herangezogen (siehe auch Pkt. 114)"]
[531,"Die maximal benötigten Eigenmittel im betreffenden Jahr zur Tilgung aller Kosten."]
[550,"Kalkulation der Aufwendungen und Erträge des Projektes nach Jahr über eine Projektlaufzeit von 25 Jahren\nBezogen auf die Kapitalwertberechnung müssen die \"Einnahmen\" den \"Ausgaben\" der einzelnen Perioden gegenübergestellt werden.\nHinweis: Die Berechnungen erfolgen ohne Verzinsung der Eigenmittel"]
[551,"Jahr - die Periodisierung dieses Berechnungswerkzeugs ist 1 Periode = 1 Betriebsjahr."]
[552,"Wärmebedarf der zum aktuellen Zeitpunkt angeschlossenen Verbraucher inkl. prozentualem Zuschlag für Netzverluste (Pkt. 112)"]
[553,"Auslastung des Heizwerks bzw. Wärmenetzes bezogen auf den Endausbau."]
[554,"Brennstoffkosten Biomasse: Teuerung mit eingerechnet"]
[555,"Kosten fossiler Brennstoffe: Teuerung mit eingerechnet"]
[556,"Stromkosten für die Hilfsenergie: Teuerung mit eingerechnet"]
[557,"Kosten für Betrieb und Administration: Teuerung mit eingerechnet, die Kosten werden erst ab dem Jahr der ersten Wärmelieferung berechnet"]
[558,"Unterhaltskosten: siehe auch Pkt. 132, Teuerung mit eingerechnet, die Kosten werden erst ab dem Jahr der ersten Wärmelieferung berechnet\nHinweis: Die Unterhaltskosten werden im Tool nach dem selben Verteiler gestaffelt wie die Investitionskosten (siehe Pkt. 160 Projektstaffelung). Bei Abweichungen zwischen den effektiven Unterhaltskosten und den in Pkt. 558 ausgewiesenen Aufwendungen, sind die Prozentsätze in Pkt. 142 entsprechend anzupassen oder Korrekturbeträge in der Spalte \"zusätzlicher Aufwand\" Pkt. 560 einzutragen."]
[559,"sonstige Kosten und Miet- und Pachtaufwand: Teuerung mit eingerechnet, diese Kosten fallen ab dem ersten Jahr an"]
[560,"Sonstige Aufwendungen oder Korrekturen der berechneten Aufwendungen (Differenzen) können in dieser Spalte eingetragen werden. Zur Verbesserung der Verständlichkeit ist der Spaltentitel überschreibbar.\nHinweis: Diese Aufwendungen werden nicht als Wertmehrung im Anlagenwert verbucht.\nAchtung NPV: Diese Aufwendungen werden im Registerblatt \"A2_NPV-Daten\" unter Pkt. 930 aufgeführt. Sie müssen manuell an die richtigen Stellen  übertragen werden!"]
[561,"Effektiver Aufwand: Für die laufende Nachkalkulation können in dieser Spalte die effektiven Jahreskosten eingetragen werden.\nIst in der Spalte ein Wert >0 eingetragen, werden im betreffenden Jahr für die weiteren Auswertungen die Einträge in den Spalten 554-560 ignoriert\nAchtung NPV: Diese Aufwendungen werden nicht ins Registerblatt \"A2_NPV-Daten\" übernommen."]
[562,"Zinskosten von Krediten und Darlehen\nDie erste Zinszahlung ist im Auszahlungsjahr fällig"]
[563,"Abschreibung der Investitionen (Pkt. 141) über die Abschreibedauer (Pkt. 143)\nHinweis: Fällige Ersatzinvestitionen werden ebenfalls abgeschrieben"]
[564,"Summe der Aufwendungen des Wärmeverbundes"]
[571,"Ertrag aus dem Fernwärmeverkauf: Grundkosten und Wärmeverkauf"]
[572,"Anschlussbeiträge der Verbraucher werden im Jahr des Anschlusses eingerechnet"]
[573,"Auszahlung von Fördergelder gem. Eingabe in Register E1_Projektdaten\nDie Werte können überschrieben werden.\nAchtung: Das Überschreiben der Formeln löscht die Berechnung"]
[574,"Zusätzliche Erträge - Spalte für freie Eingabe (Der Spaltentitel kann überschrieben werden)\nAchtung NPV: Diese Erträge werden im Registerblatt \"A2_NPV-Daten\" unter 930 aufgeführt.  Sie müssen manuell an die richtigen Stellen  übertragen werden!"]
[575,"Effektiver Ertrag: Für die laufende Nachkalkulation können in dieser Spalte die effektiven Jahreserträge eingetragen werden.\nIst in der Spalte ein Wert >0 eingetragen, werden im betreffenden Jahr für die weiteren Auswertungen die Einträge in den Spalten 571-574 ignoriert.\nAchtung NPV: Diese Erträge werden nicht automatisch ins Registerblatt \"A2_NPV-Daten\" übernommen."]
[576,"Gesamtertrag des Projektes"]
[577,"Erfolgsrechnung: Jahresgewinn / Verlust aus Aufwand (Pkt. 564) und Ertrag Pkt. 576)"]
[578,"Erfolgsrechnung: Kumulierter Überschuss / Fehlbetrag"]
[580,"Investitionen: Die Erstinvestition wird zum prozentualen Anteil (Pkt. 161) im ersten Jahr in dieser Spalte verbucht. Die weiteren Investitionen, werden anteilsmässig in den entsprechenden Jahren verbucht.\nErsatzinvestitionen werden nach Ablauf der Nutzungsdauer (Pkt. 143) inkl. Einrechnung der allgemeinen Teuerung (Pkt. 137) erneut investiert. "]
[581,"Kredite / Darlehen: Die Auszahlung von Krediten und Darlehen wird im Jahr der Auszahlung verbucht"]
[582,"Amortisation des Fremdgeldes über die Laufzeit der Kredite / Darlehen\nHinweis: Darlehen ohne Laufzeit werden nicht amortisiert."]
[583,"Cashflow: Berechnung der flüssigen Mittel (Nettozu- / -abfluss) aus Gesamtertrag (Pkt. 576) + Kreditauszahlungen (Pkt. 581) abzüglich Gesamtaufwand (Pkt. 564) ohne Abschreibungen (Pkt. 563), Investitionen (Pkt. 580) und Fremdgeldamortisation (Pkt. 582)"]
[584,"Kumulierter Cashflow"]
[586,"Betriebsjahr: Jahr der Inbetriebnahme (Pkt. 115) = Jahr 1 (informativ). Aus diesem Wert wird der Zeitpunkt von Erneuerungsinvestitionen errechnet."]
[587,"Kreditstand (informativ) - Reine netto-Berechnung des Kreditstands, ohne Kosten für Bankgebühren, Errichtung etc.\nBedingte Formatierung: Wenn der Kreditstand durch den Restwert der Anlage nicht gesichert ist, wird das Feld rot hinterlegt."]
[588,"Restwert der Anlage unter Berücksichtigung der Abschreibung\nDer Restwert berechnet sich aus dem prozentualen Investitionsanteil und der entsprechenden Abschreibung.\nHinweis: Die Kosten für die Hausstationen und die Planung sind nicht eingerechnet."]
[589,"Verzinsung der Investition (Pkt. 190) unter Berücksichtigung des Restwertes der Anlage"]
[590,"Diagramm mit der Darstellung der wirtschaftlichen Entwicklung im Verlauf der Perioden 1-25. "]
[591,"Diagramm mit der Darstellung der Entwicklung des Kreditstandes und des Restwertes der Anlage im Verlauf der Perioden 1-25. \nHinweis: Um den Kredit sichern zu können darf der Restwert nicht kleiner als der Kreditstand sein!"]
[]
[600,"Registerblatt \"A1_Ergebnisse\"\nIn diesem Registerblatt sind die wichtigsten Ergebnisse zusammengefasst und ausgewertet"]
[610,"Investitionskosten: Zusammenstellung"]
[612,"Kesselanlagen und Installationen: Berechnete Summe aus den Punkten 152, 153 und 154"]
[613,"Wärmenetz, Tiefbau und Hausstationen inkl. Wärmemessungen: Berechnete Summe aus den Punkten 155 bis 157"]
[615,"Fremdfinanzierung und Fördergelder: Zusammenstellung"]
[620,"Jahreskosten: Die Auswertung erfolgt einerseits für das Jahr der Inbetriebnahme (Pkt. 115), andererseits für ein wählbares Jahr innerhalb des Betrachtungsraumes."]
[621,"Energiekosten: Berechnete Summe aus den Punkten 554, 555 und 556 (Achtung: Diese Auswertung wird nicht angepasst, wenn im Eingabefeld von Pkt. 562 ein effektiver Aufwand eingetragen wird!)"]
[622,"Betrieb und Unterhalt: Berechnete Summe aus den Punkten 557, 558, 559 und 560\nAchtung: Diese Auswertung wird nicht angepasst, wenn im Eingabefeld von Pkt. 561 ein effektiver Aufwand eingetragen wird!"]
[623,"Verzinsung und Abschreibung: Berechnete Summe aus den Punkten 562 und 563"]
[624,"Total Aufwand: Berechnete Summe aus den Punkten 621 bis 623\nAchtung: Diese Auswertung wird nicht angepasst, wenn im Eingabefeld von Pkt. 562 ein effektiver Aufwand eingetragen wird!"]
[625,"Wärmeverkauf: Berechnete Summe aus den Punkten 571 und 572\nAchtung: Diese Auswertung wird nicht angepasst, wenn im Eingabefeld von Pkt. 575 ein effektiver Aufwand eingetragen wird!"]
[626,"Fördergelder und sonstiges: Berechnete Summe aus den Punkten 573 und 574\nAchtung: Diese Auswertung wird nicht angepasst, wenn im Eingabefeld von Pkt. 575 ein effektiver Aufwand eingetragen wird!"]
[627,"Total Ertrag: Berechnete Summe aus den Punkten 625 und 626\nAchtung: Diese Auswertung wird nicht angepasst, wenn im Eingabefeld von Pkt. 575 ein effektiver Aufwand eingetragen wird!"]
[650,"Auswertungen Energie: Die Auswertungen erfolgen für die gleichen Betrachtungsräume wie in Pkt. 620 beschrieben"]
[651,"Wärmebedarf der zum aktuellen Zeitpunkt angeschlossenen Verbraucher"]
[652,"mittlere Kosten bezogen auf die verkaufte Wärmemenge in CHF/MWh: Berechnet aus dem Gesamtaufwand (Pkt. 564) und der verkauften Wärme (Pkt. 651)"]
[653,"Entwicklung der Netzauslastung über den Projektzeitraum (Diagramm)"]
[660,"Return of Investment: Die Auswertung erfolgt einerseits auf dem unverzinsten Eigenkapital, anderseits auf eine wählbare Verzinsung."]
[661,"Jahr, in welchem mit der in Pkt. 660 eingetragene Verzinsung der Investition erwirtschaftet wird."]
[690,"Bemerkungen: Feld für die Eingabe von Bemerkungen und Interpretationen."]
[]
[900,"Registerblatt NPV-Daten\nExportvorlage für NPV-Rechner: Das Registerblatt stellt diejenigen Daten aus dem Tool zusammen, die für die Berechnung des NPV benötigt werden. Die Darstellung ist an das  KliK-Tool \"Tool für den Nachweis der Zusätzlichkeit von Fernwärmeprojekten\" (Version 3.2 vom 10. Februar 2016) angepasst.\nAngaben für das KliK-Tool, die nicht aus der vorliegenden Datei übernommen werden können, sind im Export nicht enthalten.\nÄnderungen im Tool oder andere Ansichten werden durch das QMH-Wirtschaftlichkeits-Tool nicht automatisch geändert."]
[910,"KliK-Register Inputgrössen"]
[911,"Schlüsselkunden: Die Daten der Spalten \"Bezeichnung\", \"Leistung\" und \"Jahreswärmebedarf\"  werden aus dem Registerblatt \"E3_Verbraucher\" übernommen. Die Spalte \"Gebäudetyp & Bezugscharakteristik\" muss noch nachgeführt werden.\nAchtung: Das KliK-Tool verfügt lediglich über 15 Verbraucher. Es werden die ersten 15 Verbraucher übernommen. Bei mehr Verbrauchern sind die Verbraucher zu gruppieren, so dass der Gesamtverbrauch abgedeckt ist."]
[912,"Schlüsselkunden: Die Daten der Spalten \"Jahr Anschluss\"  werden aus dem Registerblatt \"E3_Verbraucher\" übernommen. Die Spalte \"Leistung im Vollausbau\" übernimmt die Werte aus der Spalte \"Leistung\" von Pkt. 911. Die Werte können überschrieben werten.\nAchtung: Das Überschreiben der Zelle löscht die Formel."]
[920,"KliK-Register Wärmebezug; Abschnitt Referenzentwicklung"]
[921,"Wärmebezug: Der Nutzwärmebedarf wird in Abhängigkeit des Anschlusszeitpunktes aus dem Registerblatt \"E3_Verbruacher\" übernommen\nIm Unterschied zum vorliegenden Tool beträgt der Betrachtungszeitraum 15 Jahre."]
[922,"Elektrizitätsverbrauch: Der Strombedarf als Hilfsenergie wird aus dem Registerblatt \"B1_Berechnungen\" (Pkt. 556) übernommen."]
[923,"Fernwärmenetz (40a): Die Investitionskosten für das Wärmenetz werden aus dem Registerblatt \"B1_Berechnungen\" übernommen. Die Aufteilung der jährlichen Kosten Fernwärmenetz / Heizzentrale erfolgt im Verhältnis der Gesamtinvestitionskosten.\nAchtung: Aufwendungen aus der Spalte \"übrige Aufwendungen\" (Pkt. 651) werden nicht automatisch ins Registerblatt \"A2_NPV-Daten\" übernommen. Sie müssen manuell an die richtigen Stelle  übertragen werden!"]
[924,"Heizzentrale bzw. dezentrale Wärmesysteme (15 Jahre): Die Investitionskosten für die Heizzentrale werden aus dem Registerblatt \"B1_Berechnungen\" übernommen. Die Aufteilung der jährlichen Kosten Fernwärmenetz / Heizzentrale erfolgt im Verhältnis der Gesamtinvestitionskosten.\nAchtung: Aufwendungen aus der Spalte \"übrige Aufwendungen\" (Pkt. 651) werden nicht automatisch ins Registerblatt \"A2_NPV-Daten\" übernommen. Sie müssen manuell an die richtigen Stelle  übertragen werden!"]
[925,"Betrieb und Unterhalt: Die Jahreskosten für Betrieb und Unterhalt werden aus dem Registerblatt \"B1_Berechnungen\" (Punkte 557, 558 und 559) übernommen.\nAchtung: Aufwendungen aus der Spalte \"übrige Aufwendungen\" (Pkt. 651) werden nicht automatisch ins Registerblatt \"A2_NPV-Daten\" übernommen. Sie müssen manuell an die richtigen Stelle  übertragen werden!"]
[926,"Energiekosten: Die Energiekosten werden aus dem Registerblatt \"B1_Berechnungen\" (Punkte 554, 555 und 556) übernommen.\nAchtung: Aufwendungen aus der Spalte \"übrige Aufwendungen\" (Pkt. 651) werden nicht automatisch ins Registerblatt \"A2_NPV-Daten\" übernommen. Sie müssen manuell an die richtigen Stelle  übertragen werden!"]
[927,"Anschlussbeiträge / einmalige Erträge: Die Anschlussbeiträge werden aus dem Registerblatt \"B1_Berechnungen\" (Pkt. 572) übernommen.\nAchtung: Aufwendungen aus der Spalte \"übrige Aufwendungen\" (Pkt. 651) werden nicht automatisch ins Registerblatt \"A2_NPV-Daten\" übernommen. Sie müssen manuell an die richtigen Stelle  übertragen werden!"]
[928,"Wärmeverkauf / wiederkehrende Erträge: Die Erträge aus dem Wärmeverkauf werden aus dem Registerblatt \"B1_Berechnungen\" (Pkt. 571) übernommen.\nAchtung: Aufwendungen aus der Spalte \"übrige Aufwendungen\" (Pkt. 651) werden nicht automatisch ins Registerblatt \"A2_NPV-Daten\" übernommen. Sie müssen manuell an die richtigen Stelle  übertragen werden!"]
[929,"Förderbeiträge Dritter (Kanton, Bund, Gemeinde): Die Auszahlung der einmaligen Fördergelder werden aus dem Registerblatt \"E1_Projektdaten\" (Punkte 172 und 174) übernommen und im entsprechenden Auszahlungsjahr (Punkte 173 und 175) eingetragen.\nHinweis: Mehrjährige Förderungen (ausser KliK-Beträge) müssen manuell nachgetragen werden!"]
[930,"nicht eingerechneter Aufwand und Ertrag:\nDie Beträge aus den Spalten \"Zusätzlicher Aufwand\" (Pkt. 561) und \"Zusätzlicher Ertrag\" (Pkt. 574) werden hier ausgewiesen. Da bei diesen Beträge nicht definiert ist, welchen Zeilen sie zuzuordnen sind, müssen die Beträge vor dem Export manuell in den entsprechenden Feldern ergänzt werden."]
[]
[null,"Einheiten"]
["MWh","Megawattstunde thermisch bzw. Wärme"]
["kWh","Kilowattstunde thermisch bzw. Wärme"]
["MWhel","Megawattstunde elektrisch bzw. Strom"]
["kWhel","Kilowattstunde elektrisch bzw. Strom"]
["a","Jahr (anno)"]
["CHF","Schweizer Franken"]
["%","Prozent"]
[]
[null,"Abkürzungen"]
["VJ","Vorjahr"]
["lfd.","laufende"]
["ÜS","Überschuss"]

{"sheet":"E1_Projektdaten","index":1,"n_rows":105,"n_cols":23,"rows_kept":105}
[100,"QM Holzheizwerke - Wirtschaftlichkeitsmodell - Projektdaten"]
[]
[101,null,"Eingabefeld",{"$nulls":9},"Bemerkungen"]
[102,null,"Standardwert oder Berechnung (kann geändert werden)"]
[105,"(exkl. MWST)"]
[]
[106,"Projekt/Variante:"]
[]
[]
[]
[107,"Erfasst von:"]
[]
[108,"Warnungen\nHinweise:",{"$f":"IF(S13>10,\"Mehr als 10 Hinweise!\",IF(S13>0,T13,\"\"))","v":"Mehr als 10 Hinweise!"},{"$nulls":15},{"$f":"COUNTIF(Q16:S120,\">0\")","v":21},{"$f":"T16&T24&T34&T47&T62&T74&T68","v":"111: Der Wärmebezug ist zu klein! 113: Keine jährliche Abnahme des Wärmeabsatzes eingegeben.114: Das Jahr des Projektbeginns liegt vor 2000. 122: Der mit Biomasse erzeugte Anteil an der Jahreswärmemenge ist gering. 124: Der Preis des fossilen Brennstoffs ist zu niedrig. 127:Der Strompreis wurde sehr niedrig angenommen. 127: Der Strompreis ist Null. 125: Der Jahresnutzungsgrad des Kessels ist unter 40 %. 130: Die jährlichen Personalkosten sind sehr niedrig. 131: Der jährlichen externen Betriebskosten sind sehr niedrig. 132: Die jährlichen Unterhaltskosten sind sehr niedrig. 135: Die jährlichen Grundstückskosten wurden sehr klein angenommen. 136: Die sonstigen Kosten sind sehr niedrig. 151: Die Baukosten für die Heizzentrale sind sehr niedrig. 154: Die Kosten für die Installationen in der Zentrale sind sehr niedrig. 155: Die Baukosten für das Wärmenetz sind sehr niedrig. 157: Die Kosten für die Hausstationen sind sehr niedrig. 152: Die Kosten für holzspezifische Anlagenteile sind sehr niedrig. 153: Die Kosten für spitzenlastspezifische Anlagenteile sind sehr niedrig. 156: Die Kosten für die Wärmemessung sind sehr niedrig. "}]
[]
[{"$nulls":14},"Min","Max","Unters.","Übers.","S.Fehler","Warnung","MinText","MaxText","SonstText"]
[110,"Wärmemengen, Netz, Projektstart",{"$nulls":17},{"$f":"T17&T18&T19&T21&T22","v":"111: Der Wärmebezug ist zu klein! 113: Keine jährliche Abnahme des Wärmeabsatzes eingegeben.114: Das Jahr des Projektbeginns liegt vor 2000. "}]
[111,null,"Gesamter Wärmebezug der Abnehmer",{"$f":"SUM(E3_Verbraucher!D18:XFD18)","v":0},"MWh/a",{"$nulls":9},10,9999999999,{"$f":"IF($D17<O17,1,0)","v":1},{"$f":"IF($D17>P17,1,0)","v":0},0,{"$f":"IF(Q17=1,U17,IF(R17=1,V17,IF(S17=1,W17,\"\")))","v":"111: Der Wärmebezug ist zu klein! "},"111: Der Wärmebezug ist zu klein! ","111: Der Wärmebezug ist zu gross. "]
[112,null,"Netzverluste",10,"%",{"$nulls":9},0,20,{"$f":"IF($D18<O18,1,0)","v":0},{"$f":"IF($D18>P18,1,0)","v":0},{"$f":"IF(D18=\"\",1,0)","v":0},{"$f":"IF(Q18>0,U18,\"\")&IF(R18>0,V18,\"\")&IF(S18>0,W18,\"\")","v":""},"112: Der Verlust des Wärmenetzes ist zu niedrig! ","112: Der Verlust des Wärmenetzes ist zu hoch! ","112: Keine Netzverluste eingegeben."]
[113,null,"Abnahme des Wärmebedarfes (Effizienzsteigerung) ",null,"%",{"$nulls":9},0,5,{"$f":"IF($D19<O19,1,0)","v":0},{"$f":"IF($D19>P19,1,0)","v":0},{"$f":"IF(D19=\"\",1,0)","v":1},{"$f":"IF(Q19>0,U19,\"\")&IF(R19>0,V19,\"\")&IF(S19>0,W19,\"\")","v":"113: Keine jährliche Abnahme des Wärmeabsatzes eingegeben."},"113: Die Abnahme des Wärmeabsatzes der Wärmebezüger ist negativ; Mehrverbrauch. ","113: Die jährliche Abnahme des Wärmeabsatzes ist sehr hoch. ","113: Keine jährliche Abnahme des Wärmeabsatzes eingegeben."]
[]
[114,null,"Jahr des Projektbeginns",{"$nulls":11},2000,2100,{"$f":"IF($D21<O21,1,0)","v":1},{"$f":"IF($D21>P21,1,0)","v":0},0,{"$f":"IF(Q21>0,U21,\"\")&IF(R21>0,V21,\"\")&IF(S21>0,W21,\"\")","v":"114: Das Jahr des Projektbeginns liegt vor 2000. "},"114: Das Jahr des Projektbeginns liegt vor 2000. ","114: Das Jahr des Projektbeginns liegt nach 2100. "]
[115,null,"Jahr der Inbetriebnahme / erste Wärmelieferung",{"$f":"MIN(E3_Verbraucher!D21:XFD21)","v":0},{"$nulls":10},{"$f":"Eing_Beginnjahr","v":0},{"$f":"O22+3","v":3},{"$f":"IF($D22<O22,D22,0)","v":0},{"$f":"IF($D22>P22,1,0)","v":0},0,{"$f":"IF(Q22>0,U22,\"\")&IF(R22>0,V22,\"\")&IF(S22>0,W22,\"\")","v":""},"115: Das Jahr Inbetriebnahme liegt vor dem Projektbeginn. ","115: Das Jahr der Inbetriebnahme liegt mehr als 3 Jahre nach dem Projektbeginn. Erste Wärmelieferung im Register Verbraucher anpassen. "]
[]
[120,"Einkaufspreise Energie, Betriebskosten und übrige Aufwendungen",{"$nulls":17},{"$f":"T25&T26&T28&T31&T32&T29","v":"122: Der mit Biomasse erzeugte Anteil an der Jahreswärmemenge ist gering. 124: Der Preis des fossilen Brennstoffs ist zu niedrig. 127:Der Strompreis wurde sehr niedrig angenommen. 127: Der Strompreis ist Null. 125: Der Jahresnutzungsgrad des Kessels ist unter 40 %. "}]
[121,null,"Brennstoffpreis Holz (ab Wärmezähler)",null,"CHF/MWh erzeugte Energie",{"$nulls":9},0,100,{"$f":"IF($D25<O25,1,0)","v":0},{"$f":"IF($D25>P25,1,0)","v":0},0,{"$f":"IF(Q25>0,U25,\"\")&IF(R25>0,V25,\"\")&IF(S25>0,W25,\"\")","v":""},"121: Der Rohstoffpreis (Biomasse) ist negativ angenommen. ","121: Der Rohstoffpreis (Biomasse) ist zu hoch. "]
[122,null,"Anteil der mit Biomasse erzeugten Nutzwärme",null,"%",{"$nulls":9},70,100,{"$f":"IF($D26<O26,1,0)","v":1},{"$f":"IF($D26>P26,1,0)","v":0},0,{"$f":"IF(Q26>0,U26,\"\")&IF(R26>0,V26,\"\")&IF(S26>0,W26,\"\")","v":"122: Der mit Biomasse erzeugte Anteil an der Jahreswärmemenge ist gering. "},"122: Der mit Biomasse erzeugte Anteil an der Jahreswärmemenge ist gering. ","122: Der mit Biomasse erzeugte Anteil an der Jahreswärmemenge ist zu hoch. "]
[123,null,"Anteil der fossil erzeugten Nutzwärme",{"$f":"100-Eing_Anteil_Biomasse","v":100},"%"]
[124,null,"Preis fossiler Brennstoff ",null,"CHF/MWh Primärenergie",{"$nulls":9},30,300,{"$f":"IF(Anteil_fossil_erzeugt=0,0,IF($D28<O28,1,0))","v":1},{"$f":"IF(Anteil_fossil_erzeugt=0,0,IF($D28>P28,1,0))","v":0},{"$f":"IF(Anteil_fossil_erzeugt=0,0,IF(Eing_Rohstoffpreis_fossil<Eing_Rohstoffpreis_Biomasse,1,0))","v":0},{"$f":"IF(Q28>0,U28,\"\")&IF(R28>0,V28,\"\")&IF(S28>0,W28,\"\")","v":"124: Der Preis des fossilen Brennstoffs ist zu niedrig. "},"124: Der Preis des fossilen Brennstoffs ist zu niedrig. ","124: Der angenommene Preis für den fossilen Brennstoff ist hoch. ","124: Der Preis für den fossilen Brennstoff liegt niedriger als der Biomassepreis. "]
[125,null,"Jahresnutzungsgrad Kessel fossil",null,"%",{"$nulls":9},40,98,{"$f":"IF(Anteil_fossil_erzeugt=0,0,IF($D29<O29,1,0))","v":1},{"$f":"IF(Anteil_fossil_erzeugt=0,0,IF($D29>P29,1,0))","v":0},{"$f":"IF(Anteil_fossil_erzeugt=0,0,IF(D29=\"\",1,0))","v":1},{"$f":"IF(Q29>0,U29,\"\")&IF(R29>0,V29,\"\")&IF(S29>0,W29,\"\")","v":"125: Der Jahresnutzungsgrad des Kessels ist unter 40 %. "},"125: Der Jahresnutzungsgrad des Kessels ist unter 40 %. ","125: Der Jahresnutzungsgrad des Kessels ist über 98 %. "]
[]
[126,null,"Hilfsenergie (Strom)",2,"% der produzierten Wärme",{"$nulls":9},1,3,{"$f":"IF($D31<O31,1,0)","v":0},{"$f":"IF($D31>P31,1,0)","v":0},{"$f":"IF(Eing_Spez_Stromverbrauch=0,1,0)","v":0},{"$f":"IF(Q31>0,U31,\"\")&IF(R31>0,V31,\"\")&IF(S31>0,W31,\"\")","v":""},"126: Der spezifische Stromverbrauch wurde sehr niedrig angenommen. ","126: Der spezifische Stromverbrauch wurde sehr hoch angenommen. ","126: Der spezifische Stromverbrauch wurde Null gesetzt. "]
[127,null,"Strompreis",null,"CHF/kWhel",{"$nulls":9},0.02,0.8,{"$f":"IF($D32<O32,1,0)","v":1},{"$f":"IF($D32>P32,1,0)","v":0},{"$f":"IF(Eing_Strompreis=0,1,0)","v":1},{"$f":"IF(Q32>0,U32,\"\")&IF(R32>0,V32,\"\")&IF(S32>0,W32,\"\")","v":"127:Der Strompreis wurde sehr niedrig angenommen. 127: Der Strompreis ist Null. "},"127:Der Strompreis wurde sehr niedrig angenommen. ","127: Der Strompreis wurde sehr hoch angenommen. ","127: Der Strompreis ist Null. "]
[]
[{"$nulls":19},{"$f":"T35&T36&T37&T39&T40&T41","v":"130: Die jährlichen Personalkosten sind sehr niedrig. 131: Der jährlichen externen Betriebskosten sind sehr niedrig. 132: Die jährlichen Unterhaltskosten sind sehr niedrig. 135: Die jährlichen Grundstückskosten wurden sehr klein angenommen. 136: Die sonstigen Kosten sind sehr niedrig. "}]
[130,null,"Personalkosten (für Bedienung, Reinigung, etc.)",{"$f":"ROUND(1.5%*SUM(D49:D51),-2)","v":0},"CHF/a",{"$nulls":9},1000,{"$f":"5%*SUM(D49:D51)","v":0},{"$f":"IF($D35<O35,1,0)","v":1},{"$f":"IF($D35>P35,1,0)","v":0},0,{"$f":"IF(Q35>0,U35,\"\")&IF(R35>0,V35,\"\")&IF(S35>0,W35,\"\")","v":"130: Die jährlichen Personalkosten sind sehr niedrig. "},"130: Die jährlichen Personalkosten sind sehr niedrig. ","130: Die jährlichen Personalkosten sind sehr hoch. "]
[131,null,"externe Betriebskosten (Service, Kaminfeger etc.)",null,"CHF/a",{"$nulls":9},1000,999999,1,0,0,{"$f":"IF(Q36>0,U36,\"\")&IF(R36>0,V36,\"\")&IF(S36>0,W36,\"\")","v":"131: Der jährlichen externen Betriebskosten sind sehr niedrig. "},"131: Der jährlichen externen Betriebskosten sind sehr niedrig. ","131: Die jährlichen externen Betriebskosten sind sehr hoch. "]
[132,null,"Unterhaltskosten",{"$f":"SUMPRODUCT(D48:D55,F48:F55)/100","v":0},"CHF/a",{"$nulls":9},1000,{"$f":"10%*Gesamtinvestition","v":0},1,0,0,{"$f":"IF(Q37>0,U37,\"\")&IF(R37>0,V37,\"\")&IF(S37>0,W37,\"\")","v":"132: Die jährlichen Unterhaltskosten sind sehr niedrig. "},"132: Die jährlichen Unterhaltskosten sind sehr niedrig. ","132: Die jährlichen Unterhaltskosten sind zu hoch. "]
[]
[135,null,"Kosten für Miete / Pacht / Grundstück",null,"CHF/a",{"$nulls":9},1000,{"$f":"Gesamtinvestition/20","v":0},{"$f":"IF($D39<O39,1,0)","v":1},{"$f":"IF($D39>P39,1,0)","v":0},0,{"$f":"IF(Q39>0,U39,\"\")&IF(R39>0,V39,\"\")&IF(S39>0,W39,\"\")","v":"135: Die jährlichen Grundstückskosten wurden sehr klein angenommen. "},"135: Die jährlichen Grundstückskosten wurden sehr klein angenommen. ","135: Die jährlichen Grundstückskosten sind sehr hoch. "]
[136,null,"Sonstige Kosten (Verwaltung, Versicherungen etc.)",{"$f":"ROUND(1%*Gesamtinvestition,-2)","v":0},"CHF/a",{"$nulls":9},1000,{"$f":"5%*Gesamtinvestition","v":0},{"$f":"IF($D40<O40,1,0)","v":1},{"$f":"IF($D40>P40,1,0)","v":0},0,{"$f":"IF(Q40>0,U40,\"\")&IF(R40>0,V40,\"\")&IF(S40>0,W40,\"\")","v":"136: Die sonstigen Kosten sind sehr niedrig. "},"136: Die sonstigen Kosten sind sehr niedrig. ","136: Die sonstigen Kosten sind sehr hoch. ","136: Die sonstigen Kosten wurden mit Null angenommen. "]
[137,null,"Allgemeine Teuerung",null,"%",{"$nulls":9},0,5,{"$f":"IF($D41<O41,1,0)","v":0},{"$f":"IF($D41>P41,1,0)","v":0},0,{"$f":"IF(Q41>0,U41,\"\")&IF(R41>0,V41,\"\")&IF(S41>0,W41,\"\")","v":""},"137: Die allgemeine Teuerung wurde sehr niedrig angenommen. ","137: Die allgemeine Teuerung wurde sehr hoch angenommen. "]
[138,null,"Nominalzins",null,"%",{"$nulls":9},0,10,{"$f":"IF($D42<O42,1,0)","v":0},{"$f":"IF($D42>P42,1,0)","v":0},0,{"$f":"IF(Q42>0,U42,\"\")&IF(R42>0,V42,\"\")&IF(S42>0,W42,\"\")","v":""},"138: Der nominale Zinssatz wurde negativ angenommen. ","138: Der Nominalzinssatz wurde sehr hoch angenommen. "]
[139,null,"Realzinssatz",{"$f":"Eing_Nominalzins-Eing_allg_Teuerung","v":{"v":0,"d":"0.00"}},"%",{"$nulls":9},0,8,{"$f":"IF($D43<O43,1,0)","v":0},{"$f":"IF($D43>P43,1,0)","v":0},0,"","139: DerRealzinssatz ist negativ ","139: Der Realzinssatz ist sehr hoch "]
[]
[140,"Investitionen, Abschreibung etc.",null,141,null,142,null,null,143]
[{"$nulls":6},"spezifische",null,"Nutzungsdauer"]
[150,"Investitionskosten","(inkl. Ausbauten)",{"$nulls":3},"Unterhaltskosten",null,"Abschreibung",{"$nulls":10},{"$f":"T48&T51&T52&T54&T55&T56&T49&T50&T53","v":"151: Die Baukosten für die Heizzentrale sind sehr niedrig. 154: Die Kosten für die Installationen in der Zentrale sind sehr niedrig. 155: Die Baukosten für das Wärmenetz sind sehr niedrig. 157: Die Kosten für die Hausstationen sind sehr niedrig. 152: Die Kosten für holzspezifische Anlagenteile sind sehr niedrig. 153: Die Kosten für spitzenlastspezifische Anlagenteile sind sehr niedrig. 156: Die Kosten für die Wärmemessung sind sehr niedrig. "}]
[151,null,"Baukosten Gebäude Umgebung",null,"CHF",1,"%",null,50,"Jahre",{"$nulls":4},10000,999999999,{"$f":"IF($D48<O48,1,0)","v":1},{"$f":"IF($D48>P48,1,0)","v":0},0,{"$f":"IF(Q48>0,U48,\"\")&IF(R48>0,V48,\"\")&IF(S48>0,W48,\"\")","v":"151: Die Baukosten für die Heizzentrale sind sehr niedrig. "},"151: Die Baukosten für die Heizzentrale sind sehr niedrig. ","151: Die Baukosten für die Heizzentrale sind sehr hoch. "]
[152,null,"Holzspezifische Anlagenteile",null,"CHF",3,"%",null,20,"Jahre",{"$nulls":4},10000,999999999,1,0,0,"152: Die Kosten für holzspezifische Anlagenteile sind sehr niedrig. ","152: Die Kosten für holzspezifische Anlagenteile sind sehr niedrig. ","152: Die Kosten für holzspezifische Anlagenteile sind sehr hoch. "]
[153,null,"Spitzenlastspezifische Anlagenteile",null,"CHF",2,"%",null,20,"Jahre",{"$nulls":4},10000,999999999,{"$f":"IF(Anteil_fossil_erzeugt=0,0,IF($D50<O50,1,0))","v":1},0,0,"153: Die Kosten für spitzenlastspezifische Anlagenteile sind sehr niedrig. ","153: Die Kosten für spitzenlastspezifische Anlagenteile sind sehr niedrig. ","153: Die Kosten für spitzenlastspezifische Anlagenteile sind sehr hoch. "]
[154,null,"Installationen Zentrale",null,"CHF",2,"%",null,20,"Jahre",{"$nulls":4},10000,999999999,{"$f":"IF($D51<O51,1,0)","v":1},0,0,"154: Die Kosten für die Installationen in der Zentrale sind sehr niedrig. ","154: Die Kosten für die Installationen in der Zentrale sind sehr niedrig. ","154: Die Kosten für die Installationen in der Zentrale sind sehr hoch. "]
[155,null,"Wärmenetz inkl. Tiefbau",null,"CHF",1,"%",null,40,"Jahre",{"$nulls":4},10000,999999999,1,0,0,"155: Die Baukosten für das Wärmenetz sind sehr niedrig. ","155: Die Baukosten für das Wärmenetz sind sehr niedrig. ","155: Die Baukosten für das Wärmenetz sind sind sehr hoch. "]
[156,null,"Wärmemessung und Regelarmaturen",null,"CHF",2,"%",null,15,"Jahre",{"$nulls":4},10000,999999999,1,0,0,"156: Die Kosten für die Wärmemessung sind sehr niedrig. ","156: Die Kosten für die Wärmemessung sind sehr niedrig. ","156: Die Kosten für die Wärmemessung sind sind sehr hoch. "]
[157,null,"Hausstationen",null,"CHF",2,"%",null,30,"Jahre",{"$nulls":4},10000,999999999,1,0,0,"157: Die Kosten für die Hausstationen sind sehr niedrig. ","157: Die Kosten für die Hausstationen sind sehr niedrig. ","157: Die Kosten für die Hausstationen sind sind sehr hoch. "]
[158,null,"Planung und Unvorhergesehenes",null,"CHF",0,"%",null,{"$f":"IF(SUM(D48:D54)=0,1,SUMPRODUCT(D48:D54,I48:I54)/SUM(D48:D54))","v":1},"Jahre",{"$nulls":4},0,999999999,0,0,{"$f":"IF(Eing_Kosten_Planung_QM<Gesamtinvestition/20,1,0)","v":0},"","158: Die Kosten für Planung und Unvorhergesehenes sind sehr niedrig ","158: Die Kosten für Planung und Unvorhergesehenes sind sehr hoch. ","158: Die Kosten für Planung und Unvorhergesehenes sind unter 5% der Investitionskosten. "]
[159,null,"Gesamte Investitionskosten",{"$f":"SUM(D48:D55)","v":0},"CHF",{"$nulls":3},{"$f":"IF(SUM(D48:D55)=0,\"\",SUMPRODUCT(D48:D55,I48:I55)/SUM(D48:D55))","v":""},"Jahre",{"$nulls":4},0,999999999,0,0,0,"","159: Die Investitionskosten sind sehr niedrig ","159: Die Investitionskosten sind sehr hoch. "]
[160,"Investitionsstaffelung",null,"Jahr",null,"Anteil"]
[161,null,"Ausbaustufe / Etappe 1",{"$f":"Eing_Beginnjahr","v":0},null,{"$f":"100-SUM(F59:F60)","v":100},"%",null,{"$f":"F58","v":100},"%"]
[162,null,"Ausbaustufe / Etappe 2",{"$f":"Eing_Beginnjahr+1","v":1},null,null,"%",null,{"$f":"F58+F59","v":100},"%"]
[163,null,"Ausbaustufe / Etappe 3",{"$f":"Eing_Beginnjahr+2","v":2},null,null,"%",null,{"$f":"I59+F60","v":100},"%"]
[]
[165,"Fremdfinanzierung","Kredit 1",{"$nulls":16},{"$f":"T63&T64&T66&T65","v":""}]
[166,null,"Kredit/Darlehen",null,"CHF",{"$nulls":9},0,{"$f":"Gesamtinvestition","v":0},{"$f":"IF($D63<O63,1,0)","v":0},{"$f":"IF($D63>P63,1,0)","v":0},0,{"$f":"IF(Q63>0,U63,\"\")&IF(R63>0,V63,\"\")&IF(S63>0,W63,\"\")","v":""},"166: Der Kreditanteil ist Null oder negativ. ","166: Der Kreditanteil ist höher als die gesamten Investitionskosten. "]
[167,null,"Laufzeit des Kredits in Jahren",null,"Jahre",{"$nulls":9},0,25,{"$f":"IF($D64<O64,Eing_Kredit_1,0)","v":0},{"$f":"IF($D64>P64,Eing_Kredit_1,0)","v":0},0,{"$f":"IF(Q64>0,U64,\"\")&IF(R64>0,V64,\"\")&IF(S64>0,W64,\"\")","v":""},"167: Die Kreditlaufzeit ist zu kurz. ","167: Die Kreditlaufzeit darf nicht über 25 Jahren liegen! "]
[168,null,"Startjahr",{"$nulls":11},{"$f":"Eing_Beginnjahr-1","v":-1},{"$f":"O65+20","v":19},{"$f":"IF($D65<=O65,Eing_Kredit_1,0)","v":0},{"$f":"IF($D65>P65,Eing_Kredit_1,0)","v":0},0,{"$f":"IF(Q65>0,U65,\"\")&IF(R65>0,V65,\"\")&IF(S65>0,W65,\"\")","v":""},"168: Das Startjahr der Finanzierung ist vor Projektbeginn.","168: Das Startjahr der Finanzierung ist weit nach Projektbeginn."]
[169,null,"Kreditzinssatz",null,"%",{"$nulls":9},2,10,{"$f":"IF($D66<=O66,Eing_Kredit_1,0)","v":0},{"$f":"IF($D66>P66,Eing_Kredit_1,0)","v":0},0,{"$f":"IF(Q66>0,U66,\"\")&IF(R66>0,V66,\"\")&IF(S66>0,W66,\"\")","v":""},"169: Der angegebene Kreditzinssatz ist sehr niedrig. ","169: Der Kreditzinssatz ist sehr hoch. "]
[]
[null,null,"Kredit 2",{"$nulls":16},{"$f":"T69&T70&T72&T71","v":""}]
[166,null,"Kredit/Darlehen",null,"CHF",{"$nulls":9},0,{"$f":"Gesamtinvestition","v":0},{"$f":"IF($D69<O69,1,0)","v":0},{"$f":"IF($D69>P69,1,0)","v":0},0,{"$f":"IF(Q69>0,U69,\"\")&IF(R69>0,V69,\"\")&IF(S69>0,W69,\"\")","v":""},"166: Der Kreditanteil ist Null oder negativ. ","166: Der Kreditanteil ist höher als die gesamten Investitionskosten. "]
[167,null,"Laufzeit des Kredits in Jahren",null,"Jahre",{"$nulls":9},0,25,{"$f":"IF($D70<O70,Eing_Kredit_2,0)","v":0},{"$f":"IF($D70>P70,Eing_Kredit_2,0)","v":0},0,{"$f":"IF(Q70>0,U70,\"\")&IF(R70>0,V70,\"\")&IF(S70>0,W70,\"\")","v":""},"167: Die Kreditlaufzeit ist zu kurz. ","167: Die Kreditlaufzeit darf nicht über 25 Jahren liegen! "]
[168,null,"Startjahr",{"$nulls":11},{"$f":"Eing_Beginnjahr-1","v":-1},{"$f":"O71+20","v":19},{"$f":"IF($D71<=O71,Eing_Kredit_2,0)","v":0},{"$f":"IF($D71>P71,Eing_Kredit_2,0)","v":0},0,{"$f":"IF(Q71>0,U71,\"\")&IF(R71>0,V71,\"\")&IF(S71>0,W71,\"\")","v":""},"168: Das Startjahr der Finanzierung ist vor Projektbeginn.","168: Das Startjahr der Finanzierung ist weit nach Projektbeginn."]
[169,null,"Kreditzinssatz",null,"%",{"$nulls":9},2,10,{"$f":"IF($D72<=O72,Eing_Kredit_2,0)","v":0},{"$f":"IF($D72>P72,Eing_Kredit_2,0)","v":0},0,{"$f":"IF(Q72>0,U72,\"\")&IF(R72>0,V72,\"\")&IF(S72>0,W72,\"\")","v":""},"169: Der angegebene Kreditzinssatz ist sehr niedrig. ","169: Der Kreditzinssatz ist sehr hoch. "]
[]
[170,"Förderung",{"$nulls":17},{"$f":"T76&T77&T82&T78&T79&T81&T83","v":""}]
[171,null,"Einmalige Förderung (z.B. Kantonale Förderung)"]
[172,null,"Einmaliger Förderbeitrag Paket 1",null,"CHF",{"$nulls":9},0,{"$f":"Gesamtinvestition","v":0},{"$f":"IF($D76<O76,1,0)","v":0},{"$f":"IF($D76>P76,1,0)","v":0},0,{"$f":"IF(Q76>0,U76,\"\")&IF(R76>0,V76,\"\")&IF(S76>0,W76,\"\")","v":""},"172: Der eingegebene Förderbeitrag Paket 1 ist zu niedrig. ","172: Der eingegebene Förderbeitrag Paket 1 ist zu hoch. "]
[173,null,"Jahr der Förderungsauszahlung",{"$nulls":11},{"$f":"Eing_Beginnjahr","v":0},{"$f":"O77+10","v":10},{"$f":"IF($D77<O77,Einmaliger_Förderbeitrag_1,0)","v":0},{"$f":"IF($D77>P77,Einmaliger_Förderbeitrag_1,0)","v":0},0,{"$f":"IF(Q77>0,U77,\"\")&IF(R77>0,V77,\"\")&IF(S77>0,W77,\"\")","v":""},"173: Die Förderauszahlung von Paket 1 kann erst nach Projektbeginn erfolgen! ","173: Die Förderauszahlung von Paket 1 wird mehr als 10 Jahre nach Projektbeginn angegeben! "]
[174,null,"Einmaliger Förderbeitrag Paket 2",null,"CHF",{"$nulls":9},0,{"$f":"Gesamtinvestition","v":0},{"$f":"IF($D78<O78,1,0)","v":0},{"$f":"IF($D78>P78,1,0)","v":0},0,{"$f":"IF(Q78>0,U78,\"\")&IF(R78>0,V78,\"\")&IF(S78>0,W78,\"\")","v":""},"174: Der eingegebene Förderbeitrag Paket 2 ist zu niedrig. ","174: Der eingegebene Förderbeitrag Paket 2 ist zu hoch. "]
[175,null,"Jahr der Förderungsauszahlung",{"$nulls":11},{"$f":"Eing_Beginnjahr","v":0},{"$f":"O79+10","v":10},{"$f":"IF($D79<O79,D78,0)","v":0},{"$f":"IF($D79>P79,Einmaliger_Förderbeitrag_2,0)","v":0},0,{"$f":"IF(Q79>0,U79,\"\")&IF(R79>0,V79,\"\")&IF(S79>0,W79,\"\")","v":""},"175: Die Förderauszahlung von Paket 2 kann erst nach Projektbeginn erfolgen! ","175: Die Förderauszahlung von Paket 2 wird mehr als 10 Jahre nach Projektbeginn angegeben! "]
[176,null,"Mehrjährige Förderung (z.B. KliK)"]
[177,null,"Durchschnittliche jährliche Förderung",null,"CHF/a",{"$nulls":9},0,{"$f":"IF(Eing_Förderung_wiederholend_Laufzeit=0,0,Gesamtinvestition/Eing_Förderung_wiederholend_Laufzeit)","v":0},{"$f":"IF($D81<O81,1,0)","v":0},{"$f":"IF($D81>P81,1,0)","v":0},0,{"$f":"IF(Q81>0,U81,\"\")&IF(R81>0,V81,\"\")&IF(S81>0,W81,\"\")","v":""},"177: Der eingegebene Förderbeitrag sehr niedrig. ","177: Der eingegebene Förderbeitrag ist zu hoch. "]
[178,null,"Förderlaufzeit",null,"a",{"$nulls":9},2,25,{"$f":"IF($D82<O82,jährlicher_Förderbeitrag,0)","v":0},{"$f":"IF($D82>P82,jährlicher_Förderbeitrag,0)","v":0},0,{"$f":"IF(Q82>0,U82,\"\")&IF(R82>0,V82,\"\")&IF(S82>0,W82,\"\")","v":""},"178: Die Dauer der Förderung ist zu tief. ","178: Die Dauer der Förderung ist zu lang. "]
[179,null,"Jahr der ersten Auszahlung",{"$nulls":11},{"$f":"Eing_Beginnjahr","v":0},{"$f":"O83+10","v":10},{"$f":"IF($D83<O83,jährlicher_Förderbeitrag,0)","v":0},{"$f":"IF($D83>P83,jährlicher_Förderbeitrag,0)","v":0},0,{"$f":"IF(Q83>0,U83,\"\")&IF(R83>0,V83,\"\")&IF(S83>0,W83,\"\")","v":""},"179: Die Förderauszahlung kann erst nach Projektbeginn erfolgen! ","179: Die Förderauszahlung wird mehr als 10 Jahre nach Projektbeginn angegeben! "]
[]
[180,"Berechnete Werte"]
[181,null,"max. erzeugte Wärmemenge",{"$f":"Eing_verkaufteWM/((100-Eing_Netzverluste))*100","v":0},"MWh/a"]
[182,null," max. jährliche Nutzwärmemenge aus Biomasse",{"$f":"D86*Eing_Anteil_Biomasse/100","v":0},"MWh/a"]
[183,null,"max. jährlicher Brennstoffbedarf fossil (primär)",{"$f":"IF(Eing_Jahresnutzungsgrad_Kessel=0,0,Erzeugte_Wärmemenge*(Anteil_fossil_erzeugt/100)/Eing_Jahresnutzungsgrad_Kessel*100)","v":0},"MWh/a"]
[184,null,"jährlicher Stromverbrauch",{"$f":"Erzeugte_Wärmemenge*Eing_Spez_Stromverbrauch/100","v":0},"MWh/a"]
[185,null,"max. jährliche Energiekosten Biomasse",{"$f":"Eingesetzte_Brennstoffwärme_Biomasse*Eing_Rohstoffpreis_Biomasse","v":0},"CHF/a"]
[186,null,"max. jährliche Energiekosten fossil",{"$f":"Eingesetzte_Brennstoffwärme_fossil*Eing_Rohstoffpreis_fossil","v":0},"CHF/a"]
[187,null,"max. jährliche Stromkosten",{"$f":"jährlicher_Stromverbrauch*Eing_Strompreis*1000","v":0},"CHF/a"]
[]
[190,null,"Gesamte Investitionskosten",{"$f":"Gesamtinvestition","v":0},"CHF"]
[191,null,"Gesamtsumme Förderung",{"$f":"Einmaliger_Förderbeitrag_1+Einmaliger_Förderbeitrag_2+(jährlicher_Förderbeitrag*Eing_Förderung_wiederholend_Laufzeit)","v":0},"CHF"]
[]
[192,"Jahreskosten / Wärmegestehungskosten",null,"Jahreskosten",null,"Wärmegestehungskosten"]
[193,"(ohne Förderung)","Kapitalkosten Wärmeerzeugung",{"$f":"ROUND(PMT(Eing_Realzins/100,SUMPRODUCT(D48:D51,I48:I51)/SUM(D48:D51),SUM(D48:D51,0.5*Eing_Kosten_Planung_QM))*-1,0)","v":{"$error":"#DIV/0!"}},"CHF/a",{"$f":"ROUND(D98/Eing_verkaufteWM/10,2)","v":{"$error":"#DIV/0!"}},"Rp/kWh"]
[194,null,"Kapitalkosten Wärmeverteilung",{"$f":"ROUND(PMT(Eing_Realzins/100,SUMPRODUCT(D52:D54,I52:I54)/SUM(D52:D54),SUM(D52:D54,0.5*Eing_Kosten_Planung_QM))*-1,0)","v":{"$error":"#DIV/0!"}},"CHF/a",{"$error":"#DIV/0!"},"Rp/kWh"]
[195,null,"Wartung und Unterhalt Wärmeerzeugung",{"$f":"SUM(D35:D37,D39:D40)-D101","v":{"$error":"#DIV/0!"}},"CHF/a",{"$error":"#DIV/0!"},"Rp/kWh"]
[196,null,"Wartung und Unterhalt Wärmeverteilung",{"$f":"(SUMPRODUCT(D52:D54,F52:F54)+0.5*Eing_Kosten_Planung_QM*F55)/100+((SUMPRODUCT(D52:D54,F52:F54)+0.5*Eing_Kosten_Planung_QM*F55)/100)/Eing_Unterhaltskosten*SUM(D35:D36,D39:D40)","v":{"$error":"#DIV/0!"}},"CHF/a",{"$error":"#DIV/0!"},"Rp/kWh"]
[197,null,"Energiekosten",{"$f":"SUM(D90:D92)","v":0},"CHF/a",{"$error":"#DIV/0!"},"Rp/kWh"]
[198,null,"Jahreskosten",{"$f":"SUM(D98:D102)","v":{"$error":"#DIV/0!"}},"CHF/a",{"$error":"#DIV/0!"},"Rp/kWh"]
[199,null,"Förderung (über 25 Jahre kapitalisiert)",{"$f":"ROUND(PMT(Eing_Realzins/100,25,SUM(Einmaliger_Förderbeitrag_1,Einmaliger_Förderbeitrag_2,Eing_Förderung_wiederholend_Laufzeit*jährlicher_Förderbeitrag)),0)","v":0},"CHF/a",{"$error":"#DIV/0!"},"Rp/kWh"]
[198,null,"Jahreskosten inkl. Förderung",{"$f":"SUM(D103:D104)","v":{"$error":"#DIV/0!"}},"CHF/a",{"$f":"SUM(F103:F104)","v":{"$error":"#DIV/0!"}},"Rp/kWh"]

{"sheet":"E2_Wärmepreis","index":2,"n_rows":35,"n_cols":11,"rows_kept":35,"merged":[[5,3,5,8],[6,3,6,8],[7,3,7,8],[9,3,9,8]]}
[200,"QM Holzheizwerke - Wirtschaftlichkeitsmodell - Wärmepreis "]
[]
[101,null,null,"Eingabefeld"]
[105,"(exkl. MWST)"]
[]
[206,"Projekt/Variante:",null,{"$f":"IF(E1_Projektdaten!C7=0,\"\",E1_Projektdaten!C7)","v":""}]
[{"$nulls":3},{"$f":"IF(E1_Projektdaten!C8=0,\"\",E1_Projektdaten!C8)","v":""}]
[{"$nulls":3},{"$f":"IF(E1_Projektdaten!C9=0,\"\",E1_Projektdaten!C9)","v":""}]
[]
[207,"Erfasst von:",null,{"$f":"IF(E1_Projektdaten!C11=0,\"\",E1_Projektdaten!C11)","v":""}]
[]
[210,"Eingabe Grund- und Arbeitspreis",{"$nulls":8},"Bemerkungen"]
[]
[211,"Tarif 1",{"$nulls":4},{"$f":"SUMPRODUCT(E3_Verbraucher!$D$18:$XFD$18*(E3_Verbraucher!$D$22:$XFD$22=\"T 1: \"&Eing_Abnehmerart1))/Eing_verkaufteWM*100","v":{"$error":"#DIV/0!"}},"% der Wärmemenge"]
[212,{"$nulls":4},"jährlicher Grundpreis",null,"CHF/kW a"]
[213,{"$nulls":4},"Arbeitspreis",null,"CHF/kWh"]
[214,{"$nulls":4},"Vertragslaufzeit",null,"Jahre"]
[]
[]
[221,"Tarif 2",{"$nulls":4},{"$f":"SUMPRODUCT(E3_Verbraucher!$D$18:$XFD$18*(E3_Verbraucher!$D$22:$XFD$22=\"T 2: \"&Eing_Abnehmerart2))/Eing_verkaufteWM*100","v":{"$error":"#DIV/0!"}},"% der Wärmemenge"]
[222,{"$nulls":4}," jährlicher Grundpreis",null,"CHF/kW a"]
[223,{"$nulls":4},"Arbeitspreis",null,"CHF/kWh"]
[224,{"$nulls":4},"Vertragslaufzeit",null,"Jahre"]
[]
[]
[231,"Tarif 3",{"$nulls":4},{"$f":"SUMPRODUCT(E3_Verbraucher!$D$18:$XFD$18*(E3_Verbraucher!$D$22:$XFD$22=\"T 3: \"&Eing_Abnehmerart3))/Eing_verkaufteWM*100","v":{"$error":"#DIV/0!"}},"% der Wärmemenge"]
[232,{"$nulls":4}," jährlicher Grundpreis",null,"CHF/kW a"]
[233,{"$nulls":4},"Arbeitspreis",null,"CHF/kWh"]
[234,{"$nulls":4},"Vertragslaufzeit",null,"Jahre"]
[]
[]
[241,"Tarif 4",{"$nulls":4},{"$f":"SUMPRODUCT(E3_Verbraucher!$D$18:$XFD$18*(E3_Verbraucher!$D$22:$XFD$22=\"T 4: \"&Eing_Abnehmerart4))/Eing_verkaufteWM*100","v":{"$error":"#DIV/0!"}},"% der Wärmemenge"]
[242,{"$nulls":4},"jährlicher Grundpreis",null,"CHF/kW a"]
[243,{"$nulls":4},"Arbeitspreis",null,"CHF/kWh"]
[244,{"$nulls":4},"Vertragslaufzeit",null,"Jahre"]

{"sheet":"E3_Verbraucher","index":3,"n_rows":38,"n_cols":183,"rows_kept":38}
[300,"QM Holzheizwerke - Wirtschaftlichkeitsmodell - Eingabe Verbraucher"]
[]
[101,null,"Eingabefeld"]
[102,null,"Standardwert oder Berechnung (kann geändert werden)"]
[103,null,"Feld für Übertrag aus Situationserfassung"]
[206,"Projekt/Variante:",{"$f":"IF(E1_Projektdaten!C7=0,\"\",E1_Projektdaten!C7)","v":""}]
[null,null,{"$f":"IF(E1_Projektdaten!C8=0,\"\",E1_Projektdaten!C8)","v":""}]
[null,null,{"$f":"IF(E1_Projektdaten!C9=0,\"\",E1_Projektdaten!C9)","v":""}]
[]
[207,"Erfasst von:",{"$f":"IF(E1_Projektdaten!C11=0,\"\",E1_Projektdaten!C11)","v":""}]
[]
[310,"Eingaben Verbraucher"]
[]
[311,"Allgemeines","Nummer"]
[312,null,"Bezeichnung"]
[null,null," "]
[null,null," "]
[320,"Wärmebedarf","Gesamtwärmebedarf [MWh/a]"]
[321,null,"abonnierte Leistung [kW]"]
[322,"Anschluss","Anschlusszeitpunkt"]
[323,null,"Anschlussjahr"]
[324,"Tarif","Wärmepreis-Tarif"]
[325,"(exkl. MWSt.)","Anschlusskosten (einmalig) [CHF]"]
[330,null,"jährliche Kapitalkosten [CHF/a]",{"$f":"IF(ISBLANK(D22),0,D23/VLOOKUP(D22,$B$35:$E$38,4,0))","v":0},0,0,0,0,0,0,0,0,0,0,0,0,0,0,0,0,0,0,0,0,0,0,0,0,0,0,0,0,0,0,0,{"$f":"IF(ISBLANK(AJ22),0,AJ23/VLOOKUP(AJ22,$B$35:$E$38,4,0))","v":0},0,0,0,0,0,0,0,0,0,0,0,0,0,0,0,0,0,0,0,0,0,0,0,0,0,0,0,0,0,0,0,{"$f":"IF(ISBLANK(BP22),0,BP23/VLOOKUP(BP22,$B$35:$E$38,4,0))","v":0},0,0,0,0,0,0,0,0,0,0,0,0,0,0,0,0,0,0,0,0,0,0,0,0,0,0,0,0,0,0,0,{"$f":"IF(ISBLANK(CV22),0,CV23/VLOOKUP(CV22,$B$35:$E$38,4,0))","v":0},0,0,0,0,0,0,0,0,0,0,0,0,0,0,0,0,0,0,0,0,0,0,0,0,0,0,0,0,0,0,0,{"$f":"IF(ISBLANK(EB22),0,EB23/VLOOKUP(EB22,$B$35:$E$38,4,0))","v":0},0,0,0,0,0,0,0,0,0,0,0,0,0,0,0,0,0,0,0,0,0,0,0,0,0,0,0,0,0,0,0,{"$f":"IF(ISBLANK(FH22),0,FH23/VLOOKUP(FH22,$B$35:$E$38,4,0))","v":0},0,0,0,0,0,0,0,0,0,0,0,0,0,0,0,0,0,0,0]
[331,null,"jährliche Grundkosten [CHF/a]",{"$f":"IF(ISBLANK(D22),0,(D19*VLOOKUP(D22,$B$35:$D$38,3,0)))","v":0},{"$f":"IF(ISBLANK(E22),0,(E19*VLOOKUP(E22,$B$35:$D$38,3,0)))","v":0},0,0,0,0,0,0,0,0,0,0,0,0,0,0,0,0,0,0,0,0,0,0,0,0,0,0,0,0,0,0,0,0,0,0,0,0,0,0,0,0,0,0,0,0,0,0,0,0,0,0,0,0,0,0,0,0,0,0,0,0,0,0,0,{"$f":"IF(ISBLANK(BQ22),0,(BQ19*VLOOKUP(BQ22,$B$35:$D$38,3,0)))","v":0},0,0,0,0,0,0,0,0,0,0,0,0,0,0,0,0,0,0,0,0,0,0,0,0,0,0,0,0,0,0,0,0,0,0,0,0,0,0,0,0,0,0,0,0,0,0,0,0,0,0,0,0,0,0,0,0,0,0,0,0,0,0,0,{"$f":"IF(ISBLANK(EC22),0,(EC19*VLOOKUP(EC22,$B$35:$D$38,3,0)))","v":0},0,0,0,0,0,0,0,0,0,0,0,0,0,0,0,0,0,0,0,0,0,0,0,0,0,0,0,0,0,0,0,0,0,0,0,0,0,0,0,0,0,0,0,0,0,0,0,0,0,0]
[332,null,"jährliche Energiekosten [CHF/a]",{"$f":"IF(ISBLANK(D22),0,(D18*1000*VLOOKUP(D22,$B$35:$D$38,2,0)))","v":0},{"$f":"IF(ISBLANK(E22),0,(E18*1000*VLOOKUP(E22,$B$35:$D$38,2,0)))","v":0},0,0,0,0,0,0,0,0,0,0,0,0,0,0,0,0,0,0,0,0,0,0,0,0,0,0,0,0,0,0,0,0,0,0,0,0,0,0,0,0,0,0,0,0,0,0,0,0,0,0,0,0,0,0,0,0,0,0,0,0,0,0,0,{"$f":"IF(ISBLANK(BQ22),0,(BQ18*1000*VLOOKUP(BQ22,$B$35:$D$38,2,0)))","v":0},0,0,0,0,0,0,0,0,0,0,0,0,0,0,0,0,0,0,0,0,0,0,0,0,0,0,0,0,0,0,0,0,0,0,0,0,0,0,0,0,0,0,0,0,0,0,0,0,0,0,0,0,0,0,0,0,0,0,0,0,0,0,0,{"$f":"IF(ISBLANK(EC22),0,(EC18*1000*VLOOKUP(EC22,$B$35:$D$38,2,0)))","v":0},0,0,0,0,0,0,0,0,0,0,0,0,0,0,0,0,0,0,0,0,0,0,0,0,0,0,0,0,0,0,0,0,0,0,0,0,0,0,0,0,0,0,0,0,0,0,0,0,0,0]
[333,null,"Grund- und Energiekosten [CHF/a]",{"$f":"IF(ISBLANK(D22),0,SUM(D25:D26))","v":0},{"$f":"IF(ISBLANK(E22),0,SUM(E25:E26))","v":0},0,0,0,0,0,0,0,0,0,0,0,0,0,0,0,0,0,0,0,0,0,0,0,0,0,0,0,0,0,0,0,0,0,0,0,0,0,0,0,0,0,0,0,0,0,0,0,0,0,0,0,0,0,0,0,0,0,0,0,0,0,0,0,{"$f":"IF(ISBLANK(BQ22),0,SUM(BQ25:BQ26))","v":0},0,0,0,0,0,0,0,0,0,0,0,0,0,0,0,0,0,0,0,0,0,0,0,0,0,0,0,0,0,0,0,0,0,0,0,0,0,0,0,0,0,0,0,0,0,0,0,0,0,0,0,0,0,0,0,0,0,0,0,0,0,0,0,{"$f":"IF(ISBLANK(EC22),0,SUM(EC25:EC26))","v":0},0,0,0,0,0,0,0,0,0,0,0,0,0,0,0,0,0,0,0,0,0,0,0,0,0,0,0,0,0,0,0,0,0,0,0,0,0,0,0,0,0,0,0,0,0,0,0,0,0,0]
[334,null,"Jahreskosten [CHF/a]",{"$f":"IF(ISBLANK(D23),0,SUM(D24:D26))","v":0},{"$f":"IF(ISBLANK(E23),0,SUM(E24:E26))","v":0},0,0,0,0,0,0,0,0,0,0,0,0,0,0,0,0,0,0,0,0,0,0,0,0,0,0,0,0,0,0,0,0,0,0,0,0,0,0,0,0,0,0,0,0,0,0,0,0,0,0,0,0,0,0,0,0,0,0,0,0,0,0,0,{"$f":"IF(ISBLANK(BQ23),0,SUM(BQ24:BQ26))","v":0},0,0,0,0,0,0,0,0,0,0,0,0,0,0,0,0,0,0,0,0,0,0,0,0,0,0,0,0,0,0,0,0,0,0,0,0,0,0,0,0,0,0,0,0,0,0,0,0,0,0,0,0,0,0,0,0,0,0,0,0,0,0,0,{"$f":"IF(ISBLANK(EC23),0,SUM(EC24:EC26))","v":0},0,0,0,0,0,0,0,0,0,0,0,0,0,0,0,0,0,0,0,0,0,0,0,0,0,0,0,0,0,0,0,0,0,0,0,0,0,0,0,0,0,0,0,0,0,0,0,0,0,0]
[335,null,"Wärmegestehungspreis [Rp/kWh]",{"$f":"IF(ISBLANK(D18),0,(D28/D18/10))","v":0},{"$f":"IF(ISBLANK(E18),0,(E28/E18/10))","v":0},0,0,0,0,0,0,0,0,0,0,0,0,0,0,0,0,0,0,0,0,0,0,0,0,0,0,0,0,0,0,0,0,0,0,0,0,0,0,0,0,0,0,0,0,0,0,0,0,0,0,0,0,0,0,0,0,0,0,0,0,0,0,0,{"$f":"IF(ISBLANK(BQ18),0,(BQ28/BQ18/10))","v":0},0,0,0,0,0,0,0,0,0,0,0,0,0,0,0,0,0,0,0,0,0,0,0,0,0,0,0,0,0,0,0,0,0,0,0,0,0,0,0,0,0,0,0,0,0,0,0,0,0,0,0,0,0,0,0,0,0,0,0,0,0,0,0,{"$f":"IF(ISBLANK(EC18),0,(EC28/EC18/10))","v":0},0,0,0,0,0,0,0,0,0,0,0,0,0,0,0,0,0,0,0,0,0,0,0,0,0,0,0,0,0,0,0,0,0,0,0,0,0,0,0,0,0,0,0,0,0,0,0,0,0,0]
[]
[]
[]
[]
[null,"Tarifname","Arbeitstarif [CHF/kWh a]","Leistungstarif [CHF/kW]","Vertragslaufzeit [Jahre]"]
[null,{"$f":"\"T 1: \"&Eing_Abnehmerart1","v":"T 1: "},{"$f":"Eing_Arbeitspreis1","v":0},{"$f":"Eing_Leistungspreis1","v":0},{"$f":"Eing_Vertragslaufzeit1","v":0}]
[null,{"$f":"\"T 2: \"&Eing_Abnehmerart2","v":"T 2: "},{"$f":"Eing_Arbeitspreis2","v":0},{"$f":"Eing_Leistungspreis2","v":0},{"$f":"Eing_Vertragslaufzeit2","v":0}]
[null,{"$f":"\"T 3: \"&Eing_Abnehmerart3","v":"T 3: "},{"$f":"Eing_Arbeitspreis3","v":0},{"$f":"Eing_Leistungspreis3","v":0},{"$f":"Eing_Vertragslaufzeit3","v":0}]
[null,{"$f":"\"T 4: \"&Eing_Abnehmerart4","v":"T 4: "},{"$f":"Eing_Arbeitspreis4","v":0},{"$f":"Eing_Leistungspreis4","v":0},{"$f":"Eing_Vertragslaufzeit4","v":0}]

{"sheet":"B1_Berechnungen","index":4,"n_rows":60,"n_cols":36,"rows_kept":60,"merged":[[2,3,2,8],[3,3,3,8],[5,3,5,8],[6,3,6,8],[7,3,7,8],[9,3,9,8],[11,3,11,8],[14,1,14,4],[15,2,15,4],[16,2,16,4],[17,2,17,4],[18,2,18,4],[19,2,19,4],[20,2,20,4],[21,2,21,4],[22,2,22,4],[26,2,26,4],[27,2,27,4],[28,2,28,4]]}
[500,"QM Holzheizwerke - Wirtschaftlichkeitsmodell - Ergebnis"]
[]
[101,null,null,"Eingabefeld"]
[102,null,null,"Standardwert oder Berechnung (kann geändert werden)"]
[]
[206,"Projekt/Variante:",null,{"$f":"IF(E1_Projektdaten!C7=0,\"\",E1_Projektdaten!C7)","v":""},{"$nulls":5},590,"Wirtschaftliche Entwicklung (Diagramm)",{"$nulls":10},591,"Entwicklung Kreditstand / Restwert (Diagramm)"]
[{"$nulls":3},{"$f":"IF(E1_Projektdaten!C8=0,\"\",E1_Projektdaten!C8)","v":""}]
[{"$nulls":3},{"$f":"IF(E1_Projektdaten!C9=0,\"\",E1_Projektdaten!C9)","v":""}]
[]
[207,"Erfasst von:",null,{"$f":"IF(E1_Projektdaten!C11=0,\"\",E1_Projektdaten!C11)","v":""}]
[]
[501,"Warnungen:",null,{"$f":"IF(E1_Projektdaten!C13<>\"\",\"Es existieren Warnungen im Register 'E1_Projektdaten'!\",\"\")","v":"Es existieren Warnungen im Register 'E1_Projektdaten'!"}]
[{"$nulls":6},505]
[510,"Betriebskosten",null,null," (100% Auslastung; Jahr 1)"," [CHF/a]","Teuerung [%]"]
[511,"Total Betriebskosten",{"$nulls":3},{"$f":"SUM(F16:F23)","v":0},{"$f":"IF(F15=0,0,(F16*G16+F17*G17+F19*G19+F18*G18+F20*G20+F21*G21+F22*G22+F23*G23)/(SUM(F16:F23)))","v":{"v":0,"d":"0.00%"}}]
[512,null,"Brennstoff Biomasse",null,null,{"$f":"Eing_Rohstoffpreis_Biomasse*Eingesetzte_Brennstoffwärme_Biomasse","v":0},{"$f":"Eing_allg_Teuerung/100","v":{"v":0,"d":"0.00%"}}]
[513,null,"Brennstoff fossil",null,null,{"$f":"Eingesetzte_Brennstoffwärme_fossil*Eing_Rohstoffpreis_fossil","v":0},{"v":0,"d":"0.00%"}]
[514,null,"Strom",null,null,{"$f":"järhliche_Stromkosten","v":0},{"v":0,"d":"0.00%"}]
[515,null,"Betriebskosten",null,null,{"$f":"Eing_Betriebskosten","v":0},{"v":0,"d":"0.00%"}]
[516,null,"Administration",null,null,{"$f":"Eing_Administration","v":0},{"$f":"Eing_allg_Teuerung/100","v":{"v":0,"d":"0.00%"}}]
[517,null,"Unterhaltskosten",null,null,{"$f":"Eing_Unterhaltskosten","v":0},{"v":0,"d":"0.00%"}]
[518,null,"Miete /Pacht / Grundstückskosten",null,null,{"$f":"Eing_Kosten_Grundstück","v":0},{"v":0,"d":"0.00%"}]
[519,null,"Sonstige (Versicherung etc.)",null,null,{"$f":"Eing_Sonstige_Kosten","v":0},{"v":0,"d":"0.00%"}]
[520,"Wärmepreis",{"$nulls":4},{"$f":"G15","v":{"v":0,"d":"0.00%"}}]
[]
[530,"Projektdaten",null,null,"Projektbeginn",{"$f":"Eing_Beginnjahr","v":0}]
[190,null,"Gesamtinvestitionsumme",null,null,{"$f":"Gesamtinvestition","v":0},"CHF"]
[191,null,"Total Förderung",null,null,{"$f":"E1_Projektdaten!D95","v":0},"CHF"]
[531,null,"max. Eigenmittelbedarf",null,null,{"$f":"-MIN(AB36:AB60)","v":0},"CHF","im Jahr",{"$f":"VLOOKUP(-maxEigenkapital,AB36:AH60,7,0)","v":0}]
[]
[550,{"$nulls":3},"Aufwand",{"$nulls":10},"Ertrag",{"$nulls":5},"Erfolgsrechnung",null,"Kapital",null,null,"Cashflow"]
[]
[null,"Jahr","Wärme-\u001fbedarf inkl. Netzverluste","Aus-lastung","Brennstoff Biomasse","Brennstoff fossil","Strom","Betrieb + Administra-tion","Unterhalt","Sonstige\n+ Miete/\nPacht","Zusätzlicher Aufwand","Effektiver Aufwand","Zins","Ab-schreibung","Gesamt-aufwand","Wärme-verkauf","Anschluss-beiträge","Förderung ","Zusätzlicher Ertrag","Effektiver Ertrag","Gesamt-ertrag","Jahres-gewinn/\n-verlust","Kumulierter Gewinn / Verlust","Investi-tionen","Kredit / Darlehen","Amortisa-tion","Cashflow","Kumulierter Cashflow",null,"Jahr nach IBN","Kreditstand","Restwert der Anlagen","Verzinsung Investitions-\nsumme","Jahr"]
[null,551,552,553,554,555,556,557,558,559,560,561,562,563,564,571,572,573,574,575,576,577,578,580,581,582,583,584,null,586,587,588,589,551]
[null,"[JJJJ]","MWh/a","%","CHF/a","CHF/a","CHF/a","CHF/a","CHF/a","CHF/a","CHF/a","CHF/a","CHF/a","CHF/a","CHF/a","CHF/a","CHF/a","CHF/a","CHF/a","CHF/a","CHF/a","CHF/a","CHF/a","CHF/a",null,null,"CHF/a","CHF",null,null,"CHF","CHF","%","[JJJJ]"]
[null,{"$f":"Eing_Beginnjahr","v":0},{"$f":"(SUMPRODUCT((E3_Verbraucher!$D$21:$XFD$21<B1_Berechnungen!B36)*E3_Verbraucher!$D$18:$XFD$18)+SUMPRODUCT((E3_Verbraucher!$D$21:$XFD$21=B1_Berechnungen!B36)*E3_Verbraucher!$D$18:$XFD$18*E3_Verbraucher!$D$20:$XFD$20))/(100-Eing_Netzverluste)*100*(1-E1_Projektdaten!$D$19/100)^(B1_Berechnungen!B36-E1_Projektdaten!$D$22)","v":0},{"$f":"IF(Erzeugte_Wärmemenge=0,0,C36/Erzeugte_Wärmemenge*100)","v":{"v":0,"d":"0.00"}},{"$f":"Eingesetzte_Brennstoffwärme_Biomasse*D36/100*Eing_Rohstoffpreis_Biomasse*((1+$G$16)^(B36-$B$36))","v":0},{"$f":"Eingesetzte_Brennstoffwärme_fossil*Eing_Rohstoffpreis_fossil*D36/100*(1+$G$17)^(B36-$B$36)","v":0},{"$f":"Eing_Spez_Stromverbrauch*10*C36*Eing_Strompreis*(1+$G$18)^(B36-B$36)","v":0},{"$f":"($F$19*(1+$G$19)^(B36-B$36)+$F$20*(1+$G$20)^(B36-B$36))*(B36>=E1_Projektdaten!$D$22)*VLOOKUP(B36,E1_Projektdaten!$D$58:$I$60,6)/100","v":0},{"$f":"$F$21*(1+$G$21)^(B36-B$36)*(B36>=E1_Projektdaten!$D$22)*VLOOKUP(B36,E1_Projektdaten!$D$58:$I$60,6)/100","v":0},{"$f":"Eing_Kosten_Grundstück+Eing_Sonstige_Kosten","v":0},null,null,{"$f":"-IF(Eing_Kreditlaufzeit_1=0,(B36>=Eing_Kreditstartjahr_1)*-Eing_Kredit_1,(-Eing_Kredit_1+(Eing_Kredit_1/Eing_Kreditlaufzeit_1)*(B36-Eing_Kreditstartjahr_1))*(Eing_Kreditlaufzeit_1>B36-Eing_Kreditstartjahr_1)*(B36>=Eing_Kreditstartjahr_1))*Eing_Kreditzinssatz_1/100-IF(Eing_Kreditlaufzeit_2=0,(B36>=Eing_Kreditstartjahr_2)*-Eing_Kredit_2,(-Eing_Kredit_2+(Eing_Kredit_2/Eing_Kreditlaufzeit_2)*(B36-Eing_Kreditstartjahr_2))*(Eing_Kreditlaufzeit_2>B36-Eing_Kreditstartjahr_2)*(B36>=Eing_Kreditstartjahr_2))*Eing_Kreditzinssatz_2/100","v":0},{"$f":"+(E1_Projektdaten!$D$48*(1+Eing_allg_Teuerung/100)^(E1_Projektdaten!$I$48*ROUNDDOWN((AD36-1)/E1_Projektdaten!$I$48,0))/E1_Projektdaten!$I$48\n+E1_Projektdaten!$D$49*(1+Eing_allg_Teuerung/100)^(E1_Projektdaten!$I$49*ROUNDDOWN((AD36-1)/E1_Projektdaten!$I$49,0))/E1_Projektdaten!$I$49\n+E1_Projektdaten!$D$50*(1+Eing_allg_Teuerung/100)^(E1_Projektdaten!$I$50*ROUNDDOWN((AD36-1)/E1_Projektdaten!$I$50,0))/E1_Projektdaten!$I$50\n+E1_Projektdaten!$D$51*(1+Eing_allg_Teuerung/100)^(E1_Projektdaten!$I$51*ROUNDDOWN((AD36-1)/E1_Projektdaten!$I$51,0))/E1_Projektdaten!$I$51\n+E1_Projektdaten!$D$52*(1+Eing_allg_Teuerung/100)^(E1_Projektdaten!$I$52*ROUNDDOWN((AD36-1)/E1_Projektdaten!$I$52,0))/E1_Projektdaten!$I$52\n+E1_Projektdaten!$D$53*(1+Eing_allg_Teuerung/100)^(E1_Projektdaten!$I$53*ROUNDDOWN((AD36-1)/E1_Projektdaten!$I$53,0))/E1_Projektdaten!$I$53\n)*((AD36)>0)*VLOOKUP(B36,E1_Projektdaten!$D$58:$I$60,6\n)/100","v":0},{"$f":"IF(L36,SUM(L36:N36),SUM(E36:N36))","v":0},{"$f":"SUM((SUMPRODUCT((E3_Verbraucher!$D$21:$XFD$21<B1_Berechnungen!B36)*E3_Verbraucher!$D$25:$XFD$25)+SUMPRODUCT((E3_Verbraucher!$D$21:$XFD$21=B1_Berechnungen!B36)*E3_Verbraucher!$D$25:$XFD$25*E3_Verbraucher!$D$20:$XFD$20))*(1+$G$24)^(B36-B$36),(SUMPRODUCT((E3_Verbraucher!$D$21:$XFD$21<B1_Berechnungen!B36)*E3_Verbraucher!$D$26:$XFD$26)+SUMPRODUCT((E3_Verbraucher!$D$21:$XFD$21=B1_Berechnungen!B36)*E3_Verbraucher!$D$26:$XFD$26*E3_Verbraucher!$D$20:$XFD$20))*((1+$G$24)*(1-E1_Projektdaten!$D$19/100))^(B36-B$36))","v":0},{"$f":"SUMPRODUCT((E3_Verbraucher!$D$21:$XFD$21<=B1_Berechnungen!B36)*E3_Verbraucher!$D$23:$XFD$23)","v":0},{"$f":"SUM(jährlicher_Förderbeitrag*(B36-Erstauszahlung_jährlFörderung<=Eing_Förderung_wiederholend_Laufzeit-1)*(B36>=E1_Projektdaten!$D$83),E1_Projektdaten!$D$76*(B36=E1_Projektdaten!$D$77),E1_Projektdaten!$D$78*(B36=E1_Projektdaten!$D$79))","v":0},null,null,{"$f":"IF(T36,T36,SUM(P36:S36))","v":0},{"$f":"U36-O36","v":0},{"$f":"V36","v":0},{"$f":"E1_Projektdaten!$D$48*(AD36-1=E1_Projektdaten!$I$48)*(1+Eing_allg_Teuerung/100)^E1_Projektdaten!$I$48\n+E1_Projektdaten!$D$49*(AD36-1=E1_Projektdaten!$I$49)*(1+Eing_allg_Teuerung/100)^E1_Projektdaten!$I$49\n+E1_Projektdaten!$D$50*(AD36-1=E1_Projektdaten!$I$50)*(1+Eing_allg_Teuerung/100)^E1_Projektdaten!$I$50\n+E1_Projektdaten!$D$51*(AD36-1=E1_Projektdaten!$I$51)*(1+Eing_allg_Teuerung/100)^E1_Projektdaten!$I$51\n+E1_Projektdaten!$D$52*(AD36-1=E1_Projektdaten!$I$52)*(1+Eing_allg_Teuerung/100)^E1_Projektdaten!$I$52\n+E1_Projektdaten!$D$53*(AD36-1=E1_Projektdaten!$I$53)*(1+Eing_allg_Teuerung/100)^E1_Projektdaten!$I$53\n+Gesamtinvestition*SUMPRODUCT((E1_Projektdaten!$D$58:$D$60=B36)*E1_Projektdaten!$F$58:$F$60)/100","v":0},{"$f":"Eing_Kredit_1*(B36=Eing_Kreditstartjahr_1)+Eing_Kredit_2*(B36=Eing_Kreditstartjahr_2)","v":0},{"$f":"IF(Eing_Kreditlaufzeit_1<>0,(Eing_Kredit_1/Eing_Kreditlaufzeit_1)*(Eing_Kreditlaufzeit_1>B36-1-Eing_Kreditstartjahr_1)*(B36>Eing_Kreditstartjahr_1))\n+IF(Eing_Kreditlaufzeit_2<>0,(Eing_Kredit_2/Eing_Kreditlaufzeit_2)*(Eing_Kreditlaufzeit_2>B36-1-Eing_Kreditstartjahr_2)*(B36>Eing_Kreditstartjahr_2))","v":0},{"$f":"U36-(O36-N36)-X36-Z36+Y36","v":0},{"$f":"AA36","v":0},null,{"$f":"MAX(B1_Berechnungen!B36+1-E1_Projektdaten!$D$22,0)","v":1},{"$f":"IF(Eing_Kreditlaufzeit_1=0,(B36>=Eing_Kreditstartjahr_1)*-Eing_Kredit_1,(-Eing_Kredit_1+(Eing_Kredit_1/Eing_Kreditlaufzeit_1)*(B36-Eing_Kreditstartjahr_1))*(Eing_Kreditlaufzeit_1>B36-Eing_Kreditstartjahr_1)*(B36>=Eing_Kreditstartjahr_1))+IF(Eing_Kreditlaufzeit_2=0,(B36>=Eing_Kreditstartjahr_2)*-Eing_Kredit_2,(-Eing_Kredit_2+(Eing_Kredit_2/Eing_Kreditlaufzeit_2)*(B36-Eing_Kreditstartjahr_2))*(Eing_Kreditlaufzeit_2>B36-Eing_Kreditstartjahr_2)*(B36>=Eing_Kreditstartjahr_2))","v":0},{"$f":"E1_Projektdaten!$D$48*(AD36-1=E1_Projektdaten!$I$48)*(1+Eing_allg_Teuerung/100)^E1_Projektdaten!$I$48\n+E1_Projektdaten!$D$49*(AD36-1=E1_Projektdaten!$I$49)*(1+Eing_allg_Teuerung/100)^E1_Projektdaten!$I$49\n+E1_Projektdaten!$D$50*(AD36-1=E1_Projektdaten!$I$50)*(1+Eing_allg_Teuerung/100)^E1_Projektdaten!$I$50\n+E1_Projektdaten!$D$51*(AD36-1=E1_Projektdaten!$I$51)*(1+Eing_allg_Teuerung/100)^E1_Projektdaten!$I$51\n+E1_Projektdaten!$D$52*(AD36-1=E1_Projektdaten!$I$52)*(1+Eing_allg_Teuerung/100)^E1_Projektdaten!$I$52\n+E1_Projektdaten!$D$53*(AD36-1=E1_Projektdaten!$I$53)*(1+Eing_allg_Teuerung/100)^E1_Projektdaten!$I$53\n+(Gesamtinvestition-SUM(E1_Projektdaten!$D$54:$D$55))*SUMPRODUCT((E1_Projektdaten!$D$58:$D$60=B36)*E1_Projektdaten!$F$58:$F$60)/100-N36","v":0},{"$f":"IF(ISNUMBER(IRR(AI36)),IRR(AI36),\"-\")","v":"-"},{"$f":"B36","v":0},{"$f":"SUM(-$X36,$V36,$N36,AF36)","v":0},{"$f":"SUM(-$X36,$V36,$N36)","v":0}]
[null,{"$f":"B36+1","v":1},{"$f":"(SUMPRODUCT((E3_Verbraucher!$D$21:$XFD$21<B1_Berechnungen!B37)*E3_Verbraucher!$D$18:$XFD$18)+SUMPRODUCT((E3_Verbraucher!$D$21:$XFD$21=B1_Berechnungen!B37)*E3_Verbraucher!$D$18:$XFD$18*E3_Verbraucher!$D$20:$XFD$20))/(100-Eing_Netzverluste)*100*(1-E1_Projektdaten!$D$19/100)^(B1_Berechnungen!B37-E1_Projektdaten!$D$22)","v":0},{"v":0,"d":"0.00"},0,0,0,{"$f":"($F$19*(1+$G$19)^(B37-B$36)+$F$20*(1+$G$20)^(B37-B$36))*(B37>=E1_Projektdaten!$D$22)*VLOOKUP(B37,E1_Projektdaten!$D$58:$I$60,6)/100","v":0},{"$f":"$F$21*(1+$G$21)^(B37-B$36)*(B37>=E1_Projektdaten!$D$22)*VLOOKUP(B37,E1_Projektdaten!$D$58:$I$60,6)/100","v":0},{"$f":"$F$22*(1+$G$22)^(B37-B$36)+$F$23*(1+$G$23)^(B37-B$36)","v":0},null,null,0,{"$f":"+(E1_Projektdaten!$D$48*(1+Eing_allg_Teuerung/100)^(E1_Projektdaten!$I$48*ROUNDDOWN((AD37-1)/E1_Projektdaten!$I$48,0))/E1_Projektdaten!$I$48\n+E1_Projektdaten!$D$49*(1+Eing_allg_Teuerung/100)^(E1_Projektdaten!$I$49*ROUNDDOWN((AD37-1)/E1_Projektdaten!$I$49,0))/E1_Projektdaten!$I$49\n+E1_Projektdaten!$D$50*(1+Eing_allg_Teuerung/100)^(E1_Projektdaten!$I$50*ROUNDDOWN((AD37-1)/E1_Projektdaten!$I$50,0))/E1_Projektdaten!$I$50\n+E1_Projektdaten!$D$51*(1+Eing_allg_Teuerung/100)^(E1_Projektdaten!$I$51*ROUNDDOWN((AD37-1)/E1_Projektdaten!$I$51,0))/E1_Projektdaten!$I$51\n+E1_Projektdaten!$D$52*(1+Eing_allg_Teuerung/100)^(E1_Projektdaten!$I$52*ROUNDDOWN((AD37-1)/E1_Projektdaten!$I$52,0))/E1_Projektdaten!$I$52\n+E1_Projektdaten!$D$53*(1+Eing_allg_Teuerung/100)^(E1_Projektdaten!$I$53*ROUNDDOWN((AD37-1)/E1_Projektdaten!$I$53,0))/E1_Projektdaten!$I$53\n)*((AD37)>0)*VLOOKUP(B37,E1_Projektdaten!$D$58:$I$60,6\n)/100","v":0},{"$f":"IF(L37,SUM(L37:N37),SUM(E37:N37))","v":0},{"$f":"SUM((SUMPRODUCT((E3_Verbraucher!$D$21:$XFD$21<B1_Berechnungen!B37)*E3_Verbraucher!$D$25:$XFD$25)+SUMPRODUCT((E3_Verbraucher!$D$21:$XFD$21=B1_Berechnungen!B37)*E3_Verbraucher!$D$25:$XFD$25*E3_Verbraucher!$D$20:$XFD$20))*(1+$G$24)^(B37-B$36),(SUMPRODUCT((E3_Verbraucher!$D$21:$XFD$21<B1_Berechnungen!B37)*E3_Verbraucher!$D$26:$XFD$26)+SUMPRODUCT((E3_Verbraucher!$D$21:$XFD$21=B1_Berechnungen!B37)*E3_Verbraucher!$D$26:$XFD$26*E3_Verbraucher!$D$20:$XFD$20))*((1+$G$24)*(1-E1_Projektdaten!$D$19/100))^(B37-B$36))","v":0},{"$f":"SUMPRODUCT((E3_Verbraucher!$D$21:$XFD$21=B1_Berechnungen!B37)*E3_Verbraucher!$D$23:$XFD$23)","v":0},{"$f":"SUM(jährlicher_Förderbeitrag*(B37-Erstauszahlung_jährlFörderung<=Eing_Förderung_wiederholend_Laufzeit-1)*(B37>=E1_Projektdaten!$D$83),E1_Projektdaten!$D$76*(B37=E1_Projektdaten!$D$77),E1_Projektdaten!$D$78*(B37=E1_Projektdaten!$D$79))","v":0},null,null,{"$f":"IF(T37,T37,SUM(P37:S37))","v":0},{"$f":"U37-O37","v":0},{"$f":"V37+W36","v":0},{"$f":"E1_Projektdaten!$D$48*(AD37-1=E1_Projektdaten!$I$48)*(1+Eing_allg_Teuerung/100)^E1_Projektdaten!$I$48\n+E1_Projektdaten!$D$49*(AD37-1=E1_Projektdaten!$I$49)*(1+Eing_allg_Teuerung/100)^E1_Projektdaten!$I$49\n+E1_Projektdaten!$D$50*(AD37-1=E1_Projektdaten!$I$50)*(1+Eing_allg_Teuerung/100)^E1_Projektdaten!$I$50\n+E1_Projektdaten!$D$51*(AD37-1=E1_Projektdaten!$I$51)*(1+Eing_allg_Teuerung/100)^E1_Projektdaten!$I$51\n+E1_Projektdaten!$D$52*(AD37-1=E1_Projektdaten!$I$52)*(1+Eing_allg_Teuerung/100)^E1_Projektdaten!$I$52\n+E1_Projektdaten!$D$53*(AD37-1=E1_Projektdaten!$I$53)*(1+Eing_allg_Teuerung/100)^E1_Projektdaten!$I$53\n+Gesamtinvestition*SUMPRODUCT((E1_Projektdaten!$D$58:$D$60=B37)*E1_Projektdaten!$F$58:$F$60)/100","v":0},0,0,{"$f":"U37-(O37-N37)-X37-Z37+Y37","v":0},{"$f":"AB36+AA37","v":0},null,{"$f":"MAX(B1_Berechnungen!B37+1-E1_Projektdaten!$D$22,0)","v":2},0,{"$f":"E1_Projektdaten!$D$48*(AD37-1=E1_Projektdaten!$I$48)*(1+Eing_allg_Teuerung/100)^E1_Projektdaten!$I$48\n+E1_Projektdaten!$D$49*(AD37-1=E1_Projektdaten!$I$49)*(1+Eing_allg_Teuerung/100)^E1_Projektdaten!$I$49\n+E1_Projektdaten!$D$50*(AD37-1=E1_Projektdaten!$I$50)*(1+Eing_allg_Teuerung/100)^E1_Projektdaten!$I$50\n+E1_Projektdaten!$D$51*(AD37-1=E1_Projektdaten!$I$51)*(1+Eing_allg_Teuerung/100)^E1_Projektdaten!$I$51\n+E1_Projektdaten!$D$52*(AD37-1=E1_Projektdaten!$I$52)*(1+Eing_allg_Teuerung/100)^E1_Projektdaten!$I$52\n+E1_Projektdaten!$D$53*(AD37-1=E1_Projektdaten!$I$53)*(1+Eing_allg_Teuerung/100)^E1_Projektdaten!$I$53\n+(Gesamtinvestition-SUM(E1_Projektdaten!$D$54:$D$55))*SUMPRODUCT((E1_Projektdaten!$D$58:$D$60=B37)*E1_Projektdaten!$F$58:$F$60)/100+AF36-N37","v":0},{"$f":"IF(ISNUMBER(IRR((AJ$36:AJ36,AI37))),IRR((AJ$36:AJ36,AI37)),\"-\")","v":"-"},1,{"$f":"SUM(-$X37,$V37,$N37,AF37)","v":0},{"$f":"SUM(-$X37,$V37,$N37)","v":0}]
[null,{"$f":"B37+1","v":2},{"$f":"(SUMPRODUCT((E3_Verbraucher!$D$21:$XFD$21<B1_Berechnungen!B38)*E3_Verbraucher!$D$18:$XFD$18)+SUMPRODUCT((E3_Verbraucher!$D$21:$XFD$21=B1_Berechnungen!B38)*E3_Verbraucher!$D$18:$XFD$18*E3_Verbraucher!$D$20:$XFD$20))/(100-Eing_Netzverluste)*100*(1-E1_Projektdaten!$D$19/100)^(B1_Berechnungen!B38-E1_Projektdaten!$D$22)","v":0},{"v":0,"d":"0.00"},0,0,0,{"$f":"($F$19*(1+$G$19)^(B38-B$36)+$F$20*(1+$G$20)^(B38-B$36))*(B38>=E1_Projektdaten!$D$22)*VLOOKUP(B38,E1_Projektdaten!$D$58:$I$60,6)/100","v":0},{"$f":"$F$21*(1+$G$21)^(B38-B$36)*(B38>=E1_Projektdaten!$D$22)*VLOOKUP(B38,E1_Projektdaten!$D$58:$I$60,6)/100","v":0},0,null,null,0,{"$f":"+(E1_Projektdaten!$D$48*(1+Eing_allg_Teuerung/100)^(E1_Projektdaten!$I$48*ROUNDDOWN((AD38-1)/E1_Projektdaten!$I$48,0))/E1_Projektdaten!$I$48\n+E1_Projektdaten!$D$49*(1+Eing_allg_Teuerung/100)^(E1_Projektdaten!$I$49*ROUNDDOWN((AD38-1)/E1_Projektdaten!$I$49,0))/E1_Projektdaten!$I$49\n+E1_Projektdaten!$D$50*(1+Eing_allg_Teuerung/100)^(E1_Projektdaten!$I$50*ROUNDDOWN((AD38-1)/E1_Projektdaten!$I$50,0))/E1_Projektdaten!$I$50\n+E1_Projektdaten!$D$51*(1+Eing_allg_Teuerung/100)^(E1_Projektdaten!$I$51*ROUNDDOWN((AD38-1)/E1_Projektdaten!$I$51,0))/E1_Projektdaten!$I$51\n+E1_Projektdaten!$D$52*(1+Eing_allg_Teuerung/100)^(E1_Projektdaten!$I$52*ROUNDDOWN((AD38-1)/E1_Projektdaten!$I$52,0))/E1_Projektdaten!$I$52\n+E1_Projektdaten!$D$53*(1+Eing_allg_Teuerung/100)^(E1_Projektdaten!$I$53*ROUNDDOWN((AD38-1)/E1_Projektdaten!$I$53,0))/E1_Projektdaten!$I$53\n)*((AD38)>0)*VLOOKUP(B38,E1_Projektdaten!$D$58:$I$60,6\n)/100","v":0},0,{"$f":"SUM((SUMPRODUCT((E3_Verbraucher!$D$21:$XFD$21<B1_Berechnungen!B38)*E3_Verbraucher!$D$25:$XFD$25)+SUMPRODUCT((E3_Verbraucher!$D$21:$XFD$21=B1_Berechnungen!B38)*E3_Verbraucher!$D$25:$XFD$25*E3_Verbraucher!$D$20:$XFD$20))*(1+$G$24)^(B38-B$36),(SUMPRODUCT((E3_Verbraucher!$D$21:$XFD$21<B1_Berechnungen!B38)*E3_Verbraucher!$D$26:$XFD$26)+SUMPRODUCT((E3_Verbraucher!$D$21:$XFD$21=B1_Berechnungen!B38)*E3_Verbraucher!$D$26:$XFD$26*E3_Verbraucher!$D$20:$XFD$20))*((1+$G$24)*(1-E1_Projektdaten!$D$19/100))^(B38-B$36))","v":0},{"$f":"SUMPRODUCT((E3_Verbraucher!$D$21:$XFD$21=B1_Berechnungen!B38)*E3_Verbraucher!$D$23:$XFD$23)","v":0},{"$f":"SUM(jährlicher_Förderbeitrag*(B38-Erstauszahlung_jährlFörderung<=Eing_Förderung_wiederholend_Laufzeit-1)*(B38>=E1_Projektdaten!$D$83),E1_Projektdaten!$D$76*(B38=E1_Projektdaten!$D$77),E1_Projektdaten!$D$78*(B38=E1_Projektdaten!$D$79))","v":0},null,null,0,0,{"$f":"V38+W37","v":0},{"$f":"E1_Projektdaten!$D$48*(AD38-1=E1_Projektdaten!$I$48)*(1+Eing_allg_Teuerung/100)^E1_Projektdaten!$I$48\n+E1_Projektdaten!$D$49*(AD38-1=E1_Projektdaten!$I$49)*(1+Eing_allg_Teuerung/100)^E1_Projektdaten!$I$49\n+E1_Projektdaten!$D$50*(AD38-1=E1_Projektdaten!$I$50)*(1+Eing_allg_Teuerung/100)^E1_Projektdaten!$I$50\n+E1_Projektdaten!$D$51*(AD38-1=E1_Projektdaten!$I$51)*(1+Eing_allg_Teuerung/100)^E1_Projektdaten!$I$51\n+E1_Projektdaten!$D$52*(AD38-1=E1_Projektdaten!$I$52)*(1+Eing_allg_Teuerung/100)^E1_Projektdaten!$I$52\n+E1_Projektdaten!$D$53*(AD38-1=E1_Projektdaten!$I$53)*(1+Eing_allg_Teuerung/100)^E1_Projektdaten!$I$53\n+Gesamtinvestition*SUMPRODUCT((E1_Projektdaten!$D$58:$D$60=B38)*E1_Projektdaten!$F$58:$F$60)/100","v":0},0,0,0,0,null,{"$f":"MAX(B1_Berechnungen!B38+1-E1_Projektdaten!$D$22,0)","v":3},0,{"$f":"E1_Projektdaten!$D$48*(AD38-1=E1_Projektdaten!$I$48)*(1+Eing_allg_Teuerung/100)^E1_Projektdaten!$I$48\n+E1_Projektdaten!$D$49*(AD38-1=E1_Projektdaten!$I$49)*(1+Eing_allg_Teuerung/100)^E1_Projektdaten!$I$49\n+E1_Projektdaten!$D$50*(AD38-1=E1_Projektdaten!$I$50)*(1+Eing_allg_Teuerung/100)^E1_Projektdaten!$I$50\n+E1_Projektdaten!$D$51*(AD38-1=E1_Projektdaten!$I$51)*(1+Eing_allg_Teuerung/100)^E1_Projektdaten!$I$51\n+E1_Projektdaten!$D$52*(AD38-1=E1_Projektdaten!$I$52)*(1+Eing_allg_Teuerung/100)^E1_Projektdaten!$I$52\n+E1_Projektdaten!$D$53*(AD38-1=E1_Projektdaten!$I$53)*(1+Eing_allg_Teuerung/100)^E1_Projektdaten!$I$53\n+(Gesamtinvestition-SUM(E1_Projektdaten!$D$54:$D$55))*SUMPRODUCT((E1_Projektdaten!$D$58:$D$60=B38)*E1_Projektdaten!$F$58:$F$60)/100+AF37-N38","v":0},{"$f":"IF(ISNUMBER(IRR((AJ$36:AJ37,AI38))),IRR((AJ$36:AJ37,AI38)),\"-\")","v":"-"},2,{"$f":"SUM(-$X38,$V38,$N38,AF38)","v":0},0]
[null,3,{"$f":"(SUMPRODUCT((E3_Verbraucher!$D$21:$XFD$21<B1_Berechnungen!B39)*E3_Verbraucher!$D$18:$XFD$18)+SUMPRODUCT((E3_Verbraucher!$D$21:$XFD$21=B1_Berechnungen!B39)*E3_Verbraucher!$D$18:$XFD$18*E3_Verbraucher!$D$20:$XFD$20))/(100-Eing_Netzverluste)*100*(1-E1_Projektdaten!$D$19/100)^(B1_Berechnungen!B39-E1_Projektdaten!$D$22)","v":0},{"v":0,"d":"0.00"},0,0,0,{"$f":"($F$19*(1+$G$19)^(B39-B$36)+$F$20*(1+$G$20)^(B39-B$36))*(B39>=E1_Projektdaten!$D$22)*VLOOKUP(B39,E1_Projektdaten!$D$58:$I$60,6)/100","v":0},{"$f":"$F$21*(1+$G$21)^(B39-B$36)*(B39>=E1_Projektdaten!$D$22)*VLOOKUP(B39,E1_Projektdaten!$D$58:$I$60,6)/100","v":0},0,null,null,0,{"$f":"+(E1_Projektdaten!$D$48*(1+Eing_allg_Teuerung/100)^(E1_Projektdaten!$I$48*ROUNDDOWN((AD39-1)/E1_Projektdaten!$I$48,0))/E1_Projektdaten!$I$48\n+E1_Projektdaten!$D$49*(1+Eing_allg_Teuerung/100)^(E1_Projektdaten!$I$49*ROUNDDOWN((AD39-1)/E1_Projektdaten!$I$49,0))/E1_Projektdaten!$I$49\n+E1_Projektdaten!$D$50*(1+Eing_allg_Teuerung/100)^(E1_Projektdaten!$I$50*ROUNDDOWN((AD39-1)/E1_Projektdaten!$I$50,0))/E1_Projektdaten!$I$50\n+E1_Projektdaten!$D$51*(1+Eing_allg_Teuerung/100)^(E1_Projektdaten!$I$51*ROUNDDOWN((AD39-1)/E1_Projektdaten!$I$51,0))/E1_Projektdaten!$I$51\n+E1_Projektdaten!$D$52*(1+Eing_allg_Teuerung/100)^(E1_Projektdaten!$I$52*ROUNDDOWN((AD39-1)/E1_Projektdaten!$I$52,0))/E1_Projektdaten!$I$52\n+E1_Projektdaten!$D$53*(1+Eing_allg_Teuerung/100)^(E1_Projektdaten!$I$53*ROUNDDOWN((AD39-1)/E1_Projektdaten!$I$53,0))/E1_Projektdaten!$I$53\n)*((AD39)>0)*VLOOKUP(B39,E1_Projektdaten!$D$58:$I$60,6\n)/100","v":0},0,{"$f":"SUM((SUMPRODUCT((E3_Verbraucher!$D$21:$XFD$21<B1_Berechnungen!B39)*E3_Verbraucher!$D$25:$XFD$25)+SUMPRODUCT((E3_Verbraucher!$D$21:$XFD$21=B1_Berechnungen!B39)*E3_Verbraucher!$D$25:$XFD$25*E3_Verbraucher!$D$20:$XFD$20))*(1+$G$24)^(B39-B$36),(SUMPRODUCT((E3_Verbraucher!$D$21:$XFD$21<B1_Berechnungen!B39)*E3_Verbraucher!$D$26:$XFD$26)+SUMPRODUCT((E3_Verbraucher!$D$21:$XFD$21=B1_Berechnungen!B39)*E3_Verbraucher!$D$26:$XFD$26*E3_Verbraucher!$D$20:$XFD$20))*((1+$G$24)*(1-E1_Projektdaten!$D$19/100))^(B39-B$36))","v":0},{"$f":"SUMPRODUCT((E3_Verbraucher!$D$21:$XFD$21=B1_Berechnungen!B39)*E3_Verbraucher!$D$23:$XFD$23)","v":0},{"$f":"SUM(jährlicher_Förderbeitrag*(B39-Erstauszahlung_jährlFörderung<=Eing_Förderung_wiederholend_Laufzeit-1)*(B39>=E1_Projektdaten!$D$83),E1_Projektdaten!$D$76*(B39=E1_Projektdaten!$D$77),E1_Projektdaten!$D$78*(B39=E1_Projektdaten!$D$79))","v":0},null,null,0,0,0,{"$f":"E1_Projektdaten!$D$48*(AD39-1=E1_Projektdaten!$I$48)*(1+Eing_allg_Teuerung/100)^E1_Projektdaten!$I$48\n+E1_Projektdaten!$D$49*(AD39-1=E1_Projektdaten!$I$49)*(1+Eing_allg_Teuerung/100)^E1_Projektdaten!$I$49\n+E1_Projektdaten!$D$50*(AD39-1=E1_Projektdaten!$I$50)*(1+Eing_allg_Teuerung/100)^E1_Projektdaten!$I$50\n+E1_Projektdaten!$D$51*(AD39-1=E1_Projektdaten!$I$51)*(1+Eing_allg_Teuerung/100)^E1_Projektdaten!$I$51\n+E1_Projektdaten!$D$52*(AD39-1=E1_Projektdaten!$I$52)*(1+Eing_allg_Teuerung/100)^E1_Projektdaten!$I$52\n+E1_Projektdaten!$D$53*(AD39-1=E1_Projektdaten!$I$53)*(1+Eing_allg_Teuerung/100)^E1_Projektdaten!$I$53\n+Gesamtinvestition*SUMPRODUCT((E1_Projektdaten!$D$58:$D$60=B39)*E1_Projektdaten!$F$58:$F$60)/100","v":0},0,0,0,0,null,{"$f":"MAX(B1_Berechnungen!B39+1-E1_Projektdaten!$D$22,0)","v":4},0,{"$f":"E1_Projektdaten!$D$48*(AD39-1=E1_Projektdaten!$I$48)*(1+Eing_allg_Teuerung/100)^E1_Projektdaten!$I$48\n+E1_Projektdaten!$D$49*(AD39-1=E1_Projektdaten!$I$49)*(1+Eing_allg_Teuerung/100)^E1_Projektdaten!$I$49\n+E1_Projektdaten!$D$50*(AD39-1=E1_Projektdaten!$I$50)*(1+Eing_allg_Teuerung/100)^E1_Projektdaten!$I$50\n+E1_Projektdaten!$D$51*(AD39-1=E1_Projektdaten!$I$51)*(1+Eing_allg_Teuerung/100)^E1_Projektdaten!$I$51\n+E1_Projektdaten!$D$52*(AD39-1=E1_Projektdaten!$I$52)*(1+Eing_allg_Teuerung/100)^E1_Projektdaten!$I$52\n+E1_Projektdaten!$D$53*(AD39-1=E1_Projektdaten!$I$53)*(1+Eing_allg_Teuerung/100)^E1_Projektdaten!$I$53\n+(Gesamtinvestition-SUM(E1_Projektdaten!$D$54:$D$55))*SUMPRODUCT((E1_Projektdaten!$D$58:$D$60=B39)*E1_Projektdaten!$F$58:$F$60)/100+AF38-N39","v":0},{"$f":"IF(ISNUMBER(IRR((AJ$36:AJ38,AI39))),IRR((AJ$36:AJ38,AI39)),\"-\")","v":"-"},3,0,0]
[null,4,{"$f":"(SUMPRODUCT((E3_Verbraucher!$D$21:$XFD$21<B1_Berechnungen!B40)*E3_Verbraucher!$D$18:$XFD$18)+SUMPRODUCT((E3_Verbraucher!$D$21:$XFD$21=B1_Berechnungen!B40)*E3_Verbraucher!$D$18:$XFD$18*E3_Verbraucher!$D$20:$XFD$20))/(100-Eing_Netzverluste)*100*(1-E1_Projektdaten!$D$19/100)^(B1_Berechnungen!B40-E1_Projektdaten!$D$22)","v":0},{"v":0,"d":"0.00"},0,0,0,{"$f":"($F$19*(1+$G$19)^(B40-B$36)+$F$20*(1+$G$20)^(B40-B$36))*(B40>=E1_Projektdaten!$D$22)*VLOOKUP(B40,E1_Projektdaten!$D$58:$I$60,6)/100","v":0},{"$f":"$F$21*(1+$G$21)^(B40-B$36)*(B40>=E1_Projektdaten!$D$22)*VLOOKUP(B40,E1_Projektdaten!$D$58:$I$60,6)/100","v":0},0,null,null,0,{"$f":"+(E1_Projektdaten!$D$48*(1+Eing_allg_Teuerung/100)^(E1_Projektdaten!$I$48*ROUNDDOWN((AD40-1)/E1_Projektdaten!$I$48,0))/E1_Projektdaten!$I$48\n+E1_Projektdaten!$D$49*(1+Eing_allg_Teuerung/100)^(E1_Projektdaten!$I$49*ROUNDDOWN((AD40-1)/E1_Projektdaten!$I$49,0))/E1_Projektdaten!$I$49\n+E1_Projektdaten!$D$50*(1+Eing_allg_Teuerung/100)^(E1_Projektdaten!$I$50*ROUNDDOWN((AD40-1)/E1_Projektdaten!$I$50,0))/E1_Projektdaten!$I$50\n+E1_Projektdaten!$D$51*(1+Eing_allg_Teuerung/100)^(E1_Projektdaten!$I$51*ROUNDDOWN((AD40-1)/E1_Projektdaten!$I$51,0))/E1_Projektdaten!$I$51\n+E1_Projektdaten!$D$52*(1+Eing_allg_Teuerung/100)^(E1_Projektdaten!$I$52*ROUNDDOWN((AD40-1)/E1_Projektdaten!$I$52,0))/E1_Projektdaten!$I$52\n+E1_Projektdaten!$D$53*(1+Eing_allg_Teuerung/100)^(E1_Projektdaten!$I$53*ROUNDDOWN((AD40-1)/E1_Projektdaten!$I$53,0))/E1_Projektdaten!$I$53\n)*((AD40)>0)*VLOOKUP(B40,E1_Projektdaten!$D$58:$I$60,6\n)/100","v":0},0,{"$f":"SUM((SUMPRODUCT((E3_Verbraucher!$D$21:$XFD$21<B1_Berechnungen!B40)*E3_Verbraucher!$D$25:$XFD$25)+SUMPRODUCT((E3_Verbraucher!$D$21:$XFD$21=B1_Berechnungen!B40)*E3_Verbraucher!$D$25:$XFD$25*E3_Verbraucher!$D$20:$XFD$20))*(1+$G$24)^(B40-B$36),(SUMPRODUCT((E3_Verbraucher!$D$21:$XFD$21<B1_Berechnungen!B40)*E3_Verbraucher!$D$26:$XFD$26)+SUMPRODUCT((E3_Verbraucher!$D$21:$XFD$21=B1_Berechnungen!B40)*E3_Verbraucher!$D$26:$XFD$26*E3_Verbraucher!$D$20:$XFD$20))*((1+$G$24)*(1-E1_Projektdaten!$D$19/100))^(B40-B$36))","v":0},{"$f":"SUMPRODUCT((E3_Verbraucher!$D$21:$XFD$21=B1_Berechnungen!B40)*E3_Verbraucher!$D$23:$XFD$23)","v":0},{"$f":"SUM(jährlicher_Förderbeitrag*(B40-Erstauszahlung_jährlFörderung<=Eing_Förderung_wiederholend_Laufzeit-1)*(B40>=E1_Projektdaten!$D$83),E1_Projektdaten!$D$76*(B40=E1_Projektdaten!$D$77),E1_Projektdaten!$D$78*(B40=E1_Projektdaten!$D$79))","v":0},null,null,0,0,0,{"$f":"E1_Projektdaten!$D$48*(AD40-1=E1_Projektdaten!$I$48)*(1+Eing_allg_Teuerung/100)^E1_Projektdaten!$I$48\n+E1_Projektdaten!$D$49*(AD40-1=E1_Projektdaten!$I$49)*(1+Eing_allg_Teuerung/100)^E1_Projektdaten!$I$49\n+E1_Projektdaten!$D$50*(AD40-1=E1_Projektdaten!$I$50)*(1+Eing_allg_Teuerung/100)^E1_Projektdaten!$I$50\n+E1_Projektdaten!$D$51*(AD40-1=E1_Projektdaten!$I$51)*(1+Eing_allg_Teuerung/100)^E1_Projektdaten!$I$51\n+E1_Projektdaten!$D$52*(AD40-1=E1_Projektdaten!$I$52)*(1+Eing_allg_Teuerung/100)^E1_Projektdaten!$I$52\n+E1_Projektdaten!$D$53*(AD40-1=E1_Projektdaten!$I$53)*(1+Eing_allg_Teuerung/100)^E1_Projektdaten!$I$53\n+Gesamtinvestition*SUMPRODUCT((E1_Projektdaten!$D$58:$D$60=B40)*E1_Projektdaten!$F$58:$F$60)/100","v":0},0,0,0,0,null,{"$f":"MAX(B1_Berechnungen!B40+1-E1_Projektdaten!$D$22,0)","v":5},0,{"$f":"E1_Projektdaten!$D$48*(AD40-1=E1_Projektdaten!$I$48)*(1+Eing_allg_Teuerung/100)^E1_Projektdaten!$I$48\n+E1_Projektdaten!$D$49*(AD40-1=E1_Projektdaten!$I$49)*(1+Eing_allg_Teuerung/100)^E1_Projektdaten!$I$49\n+E1_Projektdaten!$D$50*(AD40-1=E1_Projektdaten!$I$50)*(1+Eing_allg_Teuerung/100)^E1_Projektdaten!$I$50\n+E1_Projektdaten!$D$51*(AD40-1=E1_Projektdaten!$I$51)*(1+Eing_allg_Teuerung/100)^E1_Projektdaten!$I$51\n+E1_Projektdaten!$D$52*(AD40-1=E1_Projektdaten!$I$52)*(1+Eing_allg_Teuerung/100)^E1_Projektdaten!$I$52\n+E1_Projektdaten!$D$53*(AD40-1=E1_Projektdaten!$I$53)*(1+Eing_allg_Teuerung/100)^E1_Projektdaten!$I$53\n+(Gesamtinvestition-SUM(E1_Projektdaten!$D$54:$D$55))*SUMPRODUCT((E1_Projektdaten!$D$58:$D$60=B40)*E1_Projektdaten!$F$58:$F$60)/100+AF39-N40","v":0},{"$f":"IF(ISNUMBER(IRR((AJ$36:AJ39,AI40))),IRR((AJ$36:AJ39,AI40)),\"-\")","v":"-"},4,0,0]
[null,5,{"$f":"(SUMPRODUCT((E3_Verbraucher!$D$21:$XFD$21<B1_Berechnungen!B41)*E3_Verbraucher!$D$18:$XFD$18)+SUMPRODUCT((E3_Verbraucher!$D$21:$XFD$21=B1_Berechnungen!B41)*E3_Verbraucher!$D$18:$XFD$18*E3_Verbraucher!$D$20:$XFD$20))/(100-Eing_Netzverluste)*100*(1-E1_Projektdaten!$D$19/100)^(B1_Berechnungen!B41-E1_Projektdaten!$D$22)","v":0},{"v":0,"d":"0.00"},0,0,0,{"$f":"($F$19*(1+$G$19)^(B41-B$36)+$F$20*(1+$G$20)^(B41-B$36))*(B41>=E1_Projektdaten!$D$22)*VLOOKUP(B41,E1_Projektdaten!$D$58:$I$60,6)/100","v":0},{"$f":"$F$21*(1+$G$21)^(B41-B$36)*(B41>=E1_Projektdaten!$D$22)*VLOOKUP(B41,E1_Projektdaten!$D$58:$I$60,6)/100","v":0},0,null,null,0,{"$f":"+(E1_Projektdaten!$D$48*(1+Eing_allg_Teuerung/100)^(E1_Projektdaten!$I$48*ROUNDDOWN((AD41-1)/E1_Projektdaten!$I$48,0))/E1_Projektdaten!$I$48\n+E1_Projektdaten!$D$49*(1+Eing_allg_Teuerung/100)^(E1_Projektdaten!$I$49*ROUNDDOWN((AD41-1)/E1_Projektdaten!$I$49,0))/E1_Projektdaten!$I$49\n+E1_Projektdaten!$D$50*(1+Eing_allg_Teuerung/100)^(E1_Projektdaten!$I$50*ROUNDDOWN((AD41-1)/E1_Projektdaten!$I$50,0))/E1_Projektdaten!$I$50\n+E1_Projektdaten!$D$51*(1+Eing_allg_Teuerung/100)^(E1_Projektdaten!$I$51*ROUNDDOWN((AD41-1)/E1_Projektdaten!$I$51,0))/E1_Projektdaten!$I$51\n+E1_Projektdaten!$D$52*(1+Eing_allg_Teuerung/100)^(E1_Projektdaten!$I$52*ROUNDDOWN((AD41-1)/E1_Projektdaten!$I$52,0))/E1_Projektdaten!$I$52\n+E1_Projektdaten!$D$53*(1+Eing_allg_Teuerung/100)^(E1_Projektdaten!$I$53*ROUNDDOWN((AD41-1)/E1_Projektdaten!$I$53,0))/E1_Projektdaten!$I$53\n)*((AD41)>0)*VLOOKUP(B41,E1_Projektdaten!$D$58:$I$60,6\n)/100","v":0},0,{"$f":"SUM((SUMPRODUCT((E3_Verbraucher!$D$21:$XFD$21<B1_Berechnungen!B41)*E3_Verbraucher!$D$25:$XFD$25)+SUMPRODUCT((E3_Verbraucher!$D$21:$XFD$21=B1_Berechnungen!B41)*E3_Verbraucher!$D$25:$XFD$25*E3_Verbraucher!$D$20:$XFD$20))*(1+$G$24)^(B41-B$36),(SUMPRODUCT((E3_Verbraucher!$D$21:$XFD$21<B1_Berechnungen!B41)*E3_Verbraucher!$D$26:$XFD$26)+SUMPRODUCT((E3_Verbraucher!$D$21:$XFD$21=B1_Berechnungen!B41)*E3_Verbraucher!$D$26:$XFD$26*E3_Verbraucher!$D$20:$XFD$20))*((1+$G$24)*(1-E1_Projektdaten!$D$19/100))^(B41-B$36))","v":0},{"$f":"SUMPRODUCT((E3_Verbraucher!$D$21:$XFD$21=B1_Berechnungen!B41)*E3_Verbraucher!$D$23:$XFD$23)","v":0},{"$f":"SUM(jährlicher_Förderbeitrag*(B41-Erstauszahlung_jährlFörderung<=Eing_Förderung_wiederholend_Laufzeit-1)*(B41>=E1_Projektdaten!$D$83),E1_Projektdaten!$D$76*(B41=E1_Projektdaten!$D$77),E1_Projektdaten!$D$78*(B41=E1_Projektdaten!$D$79))","v":0},null,null,0,0,0,{"$f":"E1_Projektdaten!$D$48*(AD41-1=E1_Projektdaten!$I$48)*(1+Eing_allg_Teuerung/100)^E1_Projektdaten!$I$48\n+E1_Projektdaten!$D$49*(AD41-1=E1_Projektdaten!$I$49)*(1+Eing_allg_Teuerung/100)^E1_Projektdaten!$I$49\n+E1_Projektdaten!$D$50*(AD41-1=E1_Projektdaten!$I$50)*(1+Eing_allg_Teuerung/100)^E1_Projektdaten!$I$50\n+E1_Projektdaten!$D$51*(AD41-1=E1_Projektdaten!$I$51)*(1+Eing_allg_Teuerung/100)^E1_Projektdaten!$I$51\n+E1_Projektdaten!$D$52*(AD41-1=E1_Projektdaten!$I$52)*(1+Eing_allg_Teuerung/100)^E1_Projektdaten!$I$52\n+E1_Projektdaten!$D$53*(AD41-1=E1_Projektdaten!$I$53)*(1+Eing_allg_Teuerung/100)^E1_Projektdaten!$I$53\n+Gesamtinvestition*SUMPRODUCT((E1_Projektdaten!$D$58:$D$60=B41)*E1_Projektdaten!$F$58:$F$60)/100","v":0},0,0,0,0,null,{"$f":"MAX(B1_Berechnungen!B41+1-E1_Projektdaten!$D$22,0)","v":6},0,{"$f":"E1_Projektdaten!$D$48*(AD41-1=E1_Projektdaten!$I$48)*(1+Eing_allg_Teuerung/100)^E1_Projektdaten!$I$48\n+E1_Projektdaten!$D$49*(AD41-1=E1_Projektdaten!$I$49)*(1+Eing_allg_Teuerung/100)^E1_Projektdaten!$I$49\n+E1_Projektdaten!$D$50*(AD41-1=E1_Projektdaten!$I$50)*(1+Eing_allg_Teuerung/100)^E1_Projektdaten!$I$50\n+E1_Projektdaten!$D$51*(AD41-1=E1_Projektdaten!$I$51)*(1+Eing_allg_Teuerung/100)^E1_Projektdaten!$I$51\n+E1_Projektdaten!$D$52*(AD41-1=E1_Projektdaten!$I$52)*(1+Eing_allg_Teuerung/100)^E1_Projektdaten!$I$52\n+E1_Projektdaten!$D$53*(AD41-1=E1_Projektdaten!$I$53)*(1+Eing_allg_Teuerung/100)^E1_Projektdaten!$I$53\n+(Gesamtinvestition-SUM(E1_Projektdaten!$D$54:$D$55))*SUMPRODUCT((E1_Projektdaten!$D$58:$D$60=B41)*E1_Projektdaten!$F$58:$F$60)/100+AF40-N41","v":0},{"$f":"IF(ISNUMBER(IRR((AJ$36:AJ40,AI41))),IRR((AJ$36:AJ40,AI41)),\"-\")","v":"-"},5,0,0]
[null,6,{"$f":"(SUMPRODUCT((E3_Verbraucher!$D$21:$XFD$21<B1_Berechnungen!B42)*E3_Verbraucher!$D$18:$XFD$18)+SUMPRODUCT((E3_Verbraucher!$D$21:$XFD$21=B1_Berechnungen!B42)*E3_Verbraucher!$D$18:$XFD$18*E3_Verbraucher!$D$20:$XFD$20))/(100-Eing_Netzverluste)*100*(1-E1_Projektdaten!$D$19/100)^(B1_Berechnungen!B42-E1_Projektdaten!$D$22)","v":0},{"v":0,"d":"0.00"},0,0,0,{"$f":"($F$19*(1+$G$19)^(B42-B$36)+$F$20*(1+$G$20)^(B42-B$36))*(B42>=E1_Projektdaten!$D$22)*VLOOKUP(B42,E1_Projektdaten!$D$58:$I$60,6)/100","v":0},{"$f":"$F$21*(1+$G$21)^(B42-B$36)*(B42>=E1_Projektdaten!$D$22)*VLOOKUP(B42,E1_Projektdaten!$D$58:$I$60,6)/100","v":0},0,null,null,0,{"$f":"+(E1_Projektdaten!$D$48*(1+Eing_allg_Teuerung/100)^(E1_Projektdaten!$I$48*ROUNDDOWN((AD42-1)/E1_Projektdaten!$I$48,0))/E1_Projektdaten!$I$48\n+E1_Projektdaten!$D$49*(1+Eing_allg_Teuerung/100)^(E1_Projektdaten!$I$49*ROUNDDOWN((AD42-1)/E1_Projektdaten!$I$49,0))/E1_Projektdaten!$I$49\n+E1_Projektdaten!$D$50*(1+Eing_allg_Teuerung/100)^(E1_Projektdaten!$I$50*ROUNDDOWN((AD42-1)/E1_Projektdaten!$I$50,0))/E1_Projektdaten!$I$50\n+E1_Projektdaten!$D$51*(1+Eing_allg_Teuerung/100)^(E1_Projektdaten!$I$51*ROUNDDOWN((AD42-1)/E1_Projektdaten!$I$51,0))/E1_Projektdaten!$I$51\n+E1_Projektdaten!$D$52*(1+Eing_allg_Teuerung/100)^(E1_Projektdaten!$I$52*ROUNDDOWN((AD42-1)/E1_Projektdaten!$I$52,0))/E1_Projektdaten!$I$52\n+E1_Projektdaten!$D$53*(1+Eing_allg_Teuerung/100)^(E1_Projektdaten!$I$53*ROUNDDOWN((AD42-1)/E1_Projektdaten!$I$53,0))/E1_Projektdaten!$I$53\n)*((AD42)>0)*VLOOKUP(B42,E1_Projektdaten!$D$58:$I$60,6\n)/100","v":0},0,{"$f":"SUM((SUMPRODUCT((E3_Verbraucher!$D$21:$XFD$21<B1_Berechnungen!B42)*E3_Verbraucher!$D$25:$XFD$25)+SUMPRODUCT((E3_Verbraucher!$D$21:$XFD$21=B1_Berechnungen!B42)*E3_Verbraucher!$D$25:$XFD$25*E3_Verbraucher!$D$20:$XFD$20))*(1+$G$24)^(B42-B$36),(SUMPRODUCT((E3_Verbraucher!$D$21:$XFD$21<B1_Berechnungen!B42)*E3_Verbraucher!$D$26:$XFD$26)+SUMPRODUCT((E3_Verbraucher!$D$21:$XFD$21=B1_Berechnungen!B42)*E3_Verbraucher!$D$26:$XFD$26*E3_Verbraucher!$D$20:$XFD$20))*((1+$G$24)*(1-E1_Projektdaten!$D$19/100))^(B42-B$36))","v":0},{"$f":"SUMPRODUCT((E3_Verbraucher!$D$21:$XFD$21=B1_Berechnungen!B42)*E3_Verbraucher!$D$23:$XFD$23)","v":0},{"$f":"SUM(jährlicher_Förderbeitrag*(B42-Erstauszahlung_jährlFörderung<=Eing_Förderung_wiederholend_Laufzeit-1)*(B42>=E1_Projektdaten!$D$83),E1_Projektdaten!$D$76*(B42=E1_Projektdaten!$D$77),E1_Projektdaten!$D$78*(B42=E1_Projektdaten!$D$79))","v":0},null,null,0,0,0,{"$f":"E1_Projektdaten!$D$48*(AD42-1=E1_Projektdaten!$I$48)*(1+Eing_allg_Teuerung/100)^E1_Projektdaten!$I$48\n+E1_Projektdaten!$D$49*(AD42-1=E1_Projektdaten!$I$49)*(1+Eing_allg_Teuerung/100)^E1_Projektdaten!$I$49\n+E1_Projektdaten!$D$50*(AD42-1=E1_Projektdaten!$I$50)*(1+Eing_allg_Teuerung/100)^E1_Projektdaten!$I$50\n+E1_Projektdaten!$D$51*(AD42-1=E1_Projektdaten!$I$51)*(1+Eing_allg_Teuerung/100)^E1_Projektdaten!$I$51\n+E1_Projektdaten!$D$52*(AD42-1=E1_Projektdaten!$I$52)*(1+Eing_allg_Teuerung/100)^E1_Projektdaten!$I$52\n+E1_Projektdaten!$D$53*(AD42-1=E1_Projektdaten!$I$53)*(1+Eing_allg_Teuerung/100)^E1_Projektdaten!$I$53\n+Gesamtinvestition*SUMPRODUCT((E1_Projektdaten!$D$58:$D$60=B42)*E1_Projektdaten!$F$58:$F$60)/100","v":0},0,0,0,0,null,{"$f":"MAX(B1_Berechnungen!B42+1-E1_Projektdaten!$D$22,0)","v":7},0,{"$f":"E1_Projektdaten!$D$48*(AD42-1=E1_Projektdaten!$I$48)*(1+Eing_allg_Teuerung/100)^E1_Projektdaten!$I$48\n+E1_Projektdaten!$D$49*(AD42-1=E1_Projektdaten!$I$49)*(1+Eing_allg_Teuerung/100)^E1_Projektdaten!$I$49\n+E1_Projektdaten!$D$50*(AD42-1=E1_Projektdaten!$I$50)*(1+Eing_allg_Teuerung/100)^E1_Projektdaten!$I$50\n+E1_Projektdaten!$D$51*(AD42-1=E1_Projektdaten!$I$51)*(1+Eing_allg_Teuerung/100)^E1_Projektdaten!$I$51\n+E1_Projektdaten!$D$52*(AD42-1=E1_Projektdaten!$I$52)*(1+Eing_allg_Teuerung/100)^E1_Projektdaten!$I$52\n+E1_Projektdaten!$D$53*(AD42-1=E1_Projektdaten!$I$53)*(1+Eing_allg_Teuerung/100)^E1_Projektdaten!$I$53\n+(Gesamtinvestition-SUM(E1_Projektdaten!$D$54:$D$55))*SUMPRODUCT((E1_Projektdaten!$D$58:$D$60=B42)*E1_Projektdaten!$F$58:$F$60)/100+AF41-N42","v":0},{"$f":"IF(ISNUMBER(IRR((AJ$36:AJ41,AI42))),IRR((AJ$36:AJ41,AI42)),\"-\")","v":"-"},6,0,0]
[null,7,{"$f":"(SUMPRODUCT((E3_Verbraucher!$D$21:$XFD$21<B1_Berechnungen!B43)*E3_Verbraucher!$D$18:$XFD$18)+SUMPRODUCT((E3_Verbraucher!$D$21:$XFD$21=B1_Berechnungen!B43)*E3_Verbraucher!$D$18:$XFD$18*E3_Verbraucher!$D$20:$XFD$20))/(100-Eing_Netzverluste)*100*(1-E1_Projektdaten!$D$19/100)^(B1_Berechnungen!B43-E1_Projektdaten!$D$22)","v":0},{"v":0,"d":"0.00"},0,0,0,{"$f":"($F$19*(1+$G$19)^(B43-B$36)+$F$20*(1+$G$20)^(B43-B$36))*(B43>=E1_Projektdaten!$D$22)*VLOOKUP(B43,E1_Projektdaten!$D$58:$I$60,6)/100","v":0},{"$f":"$F$21*(1+$G$21)^(B43-B$36)*(B43>=E1_Projektdaten!$D$22)*VLOOKUP(B43,E1_Projektdaten!$D$58:$I$60,6)/100","v":0},0,null,null,0,{"$f":"+(E1_Projektdaten!$D$48*(1+Eing_allg_Teuerung/100)^(E1_Projektdaten!$I$48*ROUNDDOWN((AD43-1)/E1_Projektdaten!$I$48,0))/E1_Projektdaten!$I$48\n+E1_Projektdaten!$D$49*(1+Eing_allg_Teuerung/100)^(E1_Projektdaten!$I$49*ROUNDDOWN((AD43-1)/E1_Projektdaten!$I$49,0))/E1_Projektdaten!$I$49\n+E1_Projektdaten!$D$50*(1+Eing_allg_Teuerung/100)^(E1_Projektdaten!$I$50*ROUNDDOWN((AD43-1)/E1_Projektdaten!$I$50,0))/E1_Projektdaten!$I$50\n+E1_Projektdaten!$D$51*(1+Eing_allg_Teuerung/100)^(E1_Projektdaten!$I$51*ROUNDDOWN((AD43-1)/E1_Projektdaten!$I$51,0))/E1_Projektdaten!$I$51\n+E1_Projektdaten!$D$52*(1+Eing_allg_Teuerung/100)^(E1_Projektdaten!$I$52*ROUNDDOWN((AD43-1)/E1_Projektdaten!$I$52,0))/E1_Projektdaten!$I$52\n+E1_Projektdaten!$D$53*(1+Eing_allg_Teuerung/100)^(E1_Projektdaten!$I$53*ROUNDDOWN((AD43-1)/E1_Projektdaten!$I$53,0))/E1_Projektdaten!$I$53\n)*((AD43)>0)*VLOOKUP(B43,E1_Projektdaten!$D$58:$I$60,6\n)/100","v":0},0,{"$f":"SUM((SUMPRODUCT((E3_Verbraucher!$D$21:$XFD$21<B1_Berechnungen!B43)*E3_Verbraucher!$D$25:$XFD$25)+SUMPRODUCT((E3_Verbraucher!$D$21:$XFD$21=B1_Berechnungen!B43)*E3_Verbraucher!$D$25:$XFD$25*E3_Verbraucher!$D$20:$XFD$20))*(1+$G$24)^(B43-B$36),(SUMPRODUCT((E3_Verbraucher!$D$21:$XFD$21<B1_Berechnungen!B43)*E3_Verbraucher!$D$26:$XFD$26)+SUMPRODUCT((E3_Verbraucher!$D$21:$XFD$21=B1_Berechnungen!B43)*E3_Verbraucher!$D$26:$XFD$26*E3_Verbraucher!$D$20:$XFD$20))*((1+$G$24)*(1-E1_Projektdaten!$D$19/100))^(B43-B$36))","v":0},{"$f":"SUMPRODUCT((E3_Verbraucher!$D$21:$XFD$21=B1_Berechnungen!B43)*E3_Verbraucher!$D$23:$XFD$23)","v":0},{"$f":"SUM(jährlicher_Förderbeitrag*(B43-Erstauszahlung_jährlFörderung<=Eing_Förderung_wiederholend_Laufzeit-1)*(B43>=E1_Projektdaten!$D$83),E1_Projektdaten!$D$76*(B43=E1_Projektdaten!$D$77),E1_Projektdaten!$D$78*(B43=E1_Projektdaten!$D$79))","v":0},null,null,0,0,0,{"$f":"E1_Projektdaten!$D$48*(AD43-1=E1_Projektdaten!$I$48)*(1+Eing_allg_Teuerung/100)^E1_Projektdaten!$I$48\n+E1_Projektdaten!$D$49*(AD43-1=E1_Projektdaten!$I$49)*(1+Eing_allg_Teuerung/100)^E1_Projektdaten!$I$49\n+E1_Projektdaten!$D$50*(AD43-1=E1_Projektdaten!$I$50)*(1+Eing_allg_Teuerung/100)^E1_Projektdaten!$I$50\n+E1_Projektdaten!$D$51*(AD43-1=E1_Projektdaten!$I$51)*(1+Eing_allg_Teuerung/100)^E1_Projektdaten!$I$51\n+E1_Projektdaten!$D$52*(AD43-1=E1_Projektdaten!$I$52)*(1+Eing_allg_Teuerung/100)^E1_Projektdaten!$I$52\n+E1_Projektdaten!$D$53*(AD43-1=E1_Projektdaten!$I$53)*(1+Eing_allg_Teuerung/100)^E1_Projektdaten!$I$53\n+Gesamtinvestition*SUMPRODUCT((E1_Projektdaten!$D$58:$D$60=B43)*E1_Projektdaten!$F$58:$F$60)/100","v":0},0,0,0,0,null,{"$f":"MAX(B1_Berechnungen!B43+1-E1_Projektdaten!$D$22,0)","v":8},0,{"$f":"E1_Projektdaten!$D$48*(AD43-1=E1_Projektdaten!$I$48)*(1+Eing_allg_Teuerung/100)^E1_Projektdaten!$I$48\n+E1_Projektdaten!$D$49*(AD43-1=E1_Projektdaten!$I$49)*(1+Eing_allg_Teuerung/100)^E1_Projektdaten!$I$49\n+E1_Projektdaten!$D$50*(AD43-1=E1_Projektdaten!$I$50)*(1+Eing_allg_Teuerung/100)^E1_Projektdaten!$I$50\n+E1_Projektdaten!$D$51*(AD43-1=E1_Projektdaten!$I$51)*(1+Eing_allg_Teuerung/100)^E1_Projektdaten!$I$51\n+E1_Projektdaten!$D$52*(AD43-1=E1_Projektdaten!$I$52)*(1+Eing_allg_Teuerung/100)^E1_Projektdaten!$I$52\n+E1_Projektdaten!$D$53*(AD43-1=E1_Projektdaten!$I$53)*(1+Eing_allg_Teuerung/100)^E1_Projektdaten!$I$53\n+(Gesamtinvestition-SUM(E1_Projektdaten!$D$54:$D$55))*SUMPRODUCT((E1_Projektdaten!$D$58:$D$60=B43)*E1_Projektdaten!$F$58:$F$60)/100+AF42-N43","v":0},{"$f":"IF(ISNUMBER(IRR((AJ$36:AJ42,AI43))),IRR((AJ$36:AJ42,AI43)),\"-\")","v":"-"},7,0,0]
[null,8,{"$f":"(SUMPRODUCT((E3_Verbraucher!$D$21:$XFD$21<B1_Berechnungen!B44)*E3_Verbraucher!$D$18:$XFD$18)+SUMPRODUCT((E3_Verbraucher!$D$21:$XFD$21=B1_Berechnungen!B44)*E3_Verbraucher!$D$18:$XFD$18*E3_Verbraucher!$D$20:$XFD$20))/(100-Eing_Netzverluste)*100*(1-E1_Projektdaten!$D$19/100)^(B1_Berechnungen!B44-E1_Projektdaten!$D$22)","v":0},{"v":0,"d":"0.00"},0,0,0,{"$f":"($F$19*(1+$G$19)^(B44-B$36)+$F$20*(1+$G$20)^(B44-B$36))*(B44>=E1_Projektdaten!$D$22)*VLOOKUP(B44,E1_Projektdaten!$D$58:$I$60,6)/100","v":0},{"$f":"$F$21*(1+$G$21)^(B44-B$36)*(B44>=E1_Projektdaten!$D$22)*VLOOKUP(B44,E1_Projektdaten!$D$58:$I$60,6)/100","v":0},0,null,null,0,{"$f":"+(E1_Projektdaten!$D$48*(1+Eing_allg_Teuerung/100)^(E1_Projektdaten!$I$48*ROUNDDOWN((AD44-1)/E1_Projektdaten!$I$48,0))/E1_Projektdaten!$I$48\n+E1_Projektdaten!$D$49*(1+Eing_allg_Teuerung/100)^(E1_Projektdaten!$I$49*ROUNDDOWN((AD44-1)/E1_Projektdaten!$I$49,0))/E1_Projektdaten!$I$49\n+E1_Projektdaten!$D$50*(1+Eing_allg_Teuerung/100)^(E1_Projektdaten!$I$50*ROUNDDOWN((AD44-1)/E1_Projektdaten!$I$50,0))/E1_Projektdaten!$I$50\n+E1_Projektdaten!$D$51*(1+Eing_allg_Teuerung/100)^(E1_Projektdaten!$I$51*ROUNDDOWN((AD44-1)/E1_Projektdaten!$I$51,0))/E1_Projektdaten!$I$51\n+E1_Projektdaten!$D$52*(1+Eing_allg_Teuerung/100)^(E1_Projektdaten!$I$52*ROUNDDOWN((AD44-1)/E1_Projektdaten!$I$52,0))/E1_Projektdaten!$I$52\n+E1_Projektdaten!$D$53*(1+Eing_allg_Teuerung/100)^(E1_Projektdaten!$I$53*ROUNDDOWN((AD44-1)/E1_Projektdaten!$I$53,0))/E1_Projektdaten!$I$53\n)*((AD44)>0)*VLOOKUP(B44,E1_Projektdaten!$D$58:$I$60,6\n)/100","v":0},0,{"$f":"SUM((SUMPRODUCT((E3_Verbraucher!$D$21:$XFD$21<B1_Berechnungen!B44)*E3_Verbraucher!$D$25:$XFD$25)+SUMPRODUCT((E3_Verbraucher!$D$21:$XFD$21=B1_Berechnungen!B44)*E3_Verbraucher!$D$25:$XFD$25*E3_Verbraucher!$D$20:$XFD$20))*(1+$G$24)^(B44-B$36),(SUMPRODUCT((E3_Verbraucher!$D$21:$XFD$21<B1_Berechnungen!B44)*E3_Verbraucher!$D$26:$XFD$26)+SUMPRODUCT((E3_Verbraucher!$D$21:$XFD$21=B1_Berechnungen!B44)*E3_Verbraucher!$D$26:$XFD$26*E3_Verbraucher!$D$20:$XFD$20))*((1+$G$24)*(1-E1_Projektdaten!$D$19/100))^(B44-B$36))","v":0},{"$f":"SUMPRODUCT((E3_Verbraucher!$D$21:$XFD$21=B1_Berechnungen!B44)*E3_Verbraucher!$D$23:$XFD$23)","v":0},{"$f":"SUM(jährlicher_Förderbeitrag*(B44-Erstauszahlung_jährlFörderung<=Eing_Förderung_wiederholend_Laufzeit-1)*(B44>=E1_Projektdaten!$D$83),E1_Projektdaten!$D$76*(B44=E1_Projektdaten!$D$77),E1_Projektdaten!$D$78*(B44=E1_Projektdaten!$D$79))","v":0},null,null,0,0,0,{"$f":"E1_Projektdaten!$D$48*(AD44-1=E1_Projektdaten!$I$48)*(1+Eing_allg_Teuerung/100)^E1_Projektdaten!$I$48\n+E1_Projektdaten!$D$49*(AD44-1=E1_Projektdaten!$I$49)*(1+Eing_allg_Teuerung/100)^E1_Projektdaten!$I$49\n+E1_Projektdaten!$D$50*(AD44-1=E1_Projektdaten!$I$50)*(1+Eing_allg_Teuerung/100)^E1_Projektdaten!$I$50\n+E1_Projektdaten!$D$51*(AD44-1=E1_Projektdaten!$I$51)*(1+Eing_allg_Teuerung/100)^E1_Projektdaten!$I$51\n+E1_Projektdaten!$D$52*(AD44-1=E1_Projektdaten!$I$52)*(1+Eing_allg_Teuerung/100)^E1_Projektdaten!$I$52\n+E1_Projektdaten!$D$53*(AD44-1=E1_Projektdaten!$I$53)*(1+Eing_allg_Teuerung/100)^E1_Projektdaten!$I$53\n+Gesamtinvestition*SUMPRODUCT((E1_Projektdaten!$D$58:$D$60=B44)*E1_Projektdaten!$F$58:$F$60)/100","v":0},0,0,0,0,null,{"$f":"MAX(B1_Berechnungen!B44+1-E1_Projektdaten!$D$22,0)","v":9},0,{"$f":"E1_Projektdaten!$D$48*(AD44-1=E1_Projektdaten!$I$48)*(1+Eing_allg_Teuerung/100)^E1_Projektdaten!$I$48\n+E1_Projektdaten!$D$49*(AD44-1=E1_Projektdaten!$I$49)*(1+Eing_allg_Teuerung/100)^E1_Projektdaten!$I$49\n+E1_Projektdaten!$D$50*(AD44-1=E1_Projektdaten!$I$50)*(1+Eing_allg_Teuerung/100)^E1_Projektdaten!$I$50\n+E1_Projektdaten!$D$51*(AD44-1=E1_Projektdaten!$I$51)*(1+Eing_allg_Teuerung/100)^E1_Projektdaten!$I$51\n+E1_Projektdaten!$D$52*(AD44-1=E1_Projektdaten!$I$52)*(1+Eing_allg_Teuerung/100)^E1_Projektdaten!$I$52\n+E1_Projektdaten!$D$53*(AD44-1=E1_Projektdaten!$I$53)*(1+Eing_allg_Teuerung/100)^E1_Projektdaten!$I$53\n+(Gesamtinvestition-SUM(E1_Projektdaten!$D$54:$D$55))*SUMPRODUCT((E1_Projektdaten!$D$58:$D$60=B44)*E1_Projektdaten!$F$58:$F$60)/100+AF43-N44","v":0},{"$f":"IF(ISNUMBER(IRR((AJ$36:AJ43,AI44))),IRR((AJ$36:AJ43,AI44)),\"-\")","v":"-"},8,0,0]
[null,9,{"$f":"(SUMPRODUCT((E3_Verbraucher!$D$21:$XFD$21<B1_Berechnungen!B45)*E3_Verbraucher!$D$18:$XFD$18)+SUMPRODUCT((E3_Verbraucher!$D$21:$XFD$21=B1_Berechnungen!B45)*E3_Verbraucher!$D$18:$XFD$18*E3_Verbraucher!$D$20:$XFD$20))/(100-Eing_Netzverluste)*100*(1-E1_Projektdaten!$D$19/100)^(B1_Berechnungen!B45-E1_Projektdaten!$D$22)","v":0},{"v":0,"d":"0.00"},0,0,0,{"$f":"($F$19*(1+$G$19)^(B45-B$36)+$F$20*(1+$G$20)^(B45-B$36))*(B45>=E1_Projektdaten!$D$22)*VLOOKUP(B45,E1_Projektdaten!$D$58:$I$60,6)/100","v":0},{"$f":"$F$21*(1+$G$21)^(B45-B$36)*(B45>=E1_Projektdaten!$D$22)*VLOOKUP(B45,E1_Projektdaten!$D$58:$I$60,6)/100","v":0},0,null,null,0,{"$f":"+(E1_Projektdaten!$D$48*(1+Eing_allg_Teuerung/100)^(E1_Projektdaten!$I$48*ROUNDDOWN((AD45-1)/E1_Projektdaten!$I$48,0))/E1_Projektdaten!$I$48\n+E1_Projektdaten!$D$49*(1+Eing_allg_Teuerung/100)^(E1_Projektdaten!$I$49*ROUNDDOWN((AD45-1)/E1_Projektdaten!$I$49,0))/E1_Projektdaten!$I$49\n+E1_Projektdaten!$D$50*(1+Eing_allg_Teuerung/100)^(E1_Projektdaten!$I$50*ROUNDDOWN((AD45-1)/E1_Projektdaten!$I$50,0))/E1_Projektdaten!$I$50\n+E1_Projektdaten!$D$51*(1+Eing_allg_Teuerung/100)^(E1_Projektdaten!$I$51*ROUNDDOWN((AD45-1)/E1_Projektdaten!$I$51,0))/E1_Projektdaten!$I$51\n+E1_Projektdaten!$D$52*(1+Eing_allg_Teuerung/100)^(E1_Projektdaten!$I$52*ROUNDDOWN((AD45-1)/E1_Projektdaten!$I$52,0))/E1_Projektdaten!$I$52\n+E1_Projektdaten!$D$53*(1+Eing_allg_Teuerung/100)^(E1_Projektdaten!$I$53*ROUNDDOWN((AD45-1)/E1_Projektdaten!$I$53,0))/E1_Projektdaten!$I$53\n)*((AD45)>0)*VLOOKUP(B45,E1_Projektdaten!$D$58:$I$60,6\n)/100","v":0},0,{"$f":"SUM((SUMPRODUCT((E3_Verbraucher!$D$21:$XFD$21<B1_Berechnungen!B45)*E3_Verbraucher!$D$25:$XFD$25)+SUMPRODUCT((E3_Verbraucher!$D$21:$XFD$21=B1_Berechnungen!B45)*E3_Verbraucher!$D$25:$XFD$25*E3_Verbraucher!$D$20:$XFD$20))*(1+$G$24)^(B45-B$36),(SUMPRODUCT((E3_Verbraucher!$D$21:$XFD$21<B1_Berechnungen!B45)*E3_Verbraucher!$D$26:$XFD$26)+SUMPRODUCT((E3_Verbraucher!$D$21:$XFD$21=B1_Berechnungen!B45)*E3_Verbraucher!$D$26:$XFD$26*E3_Verbraucher!$D$20:$XFD$20))*((1+$G$24)*(1-E1_Projektdaten!$D$19/100))^(B45-B$36))","v":0},{"$f":"SUMPRODUCT((E3_Verbraucher!$D$21:$XFD$21=B1_Berechnungen!B45)*E3_Verbraucher!$D$23:$XFD$23)","v":0},{"$f":"SUM(jährlicher_Förderbeitrag*(B45-Erstauszahlung_jährlFörderung<=Eing_Förderung_wiederholend_Laufzeit-1)*(B45>=E1_Projektdaten!$D$83),E1_Projektdaten!$D$76*(B45=E1_Projektdaten!$D$77),E1_Projektdaten!$D$78*(B45=E1_Projektdaten!$D$79))","v":0},null,null,0,0,0,{"$f":"E1_Projektdaten!$D$48*(AD45-1=E1_Projektdaten!$I$48)*(1+Eing_allg_Teuerung/100)^E1_Projektdaten!$I$48\n+E1_Projektdaten!$D$49*(AD45-1=E1_Projektdaten!$I$49)*(1+Eing_allg_Teuerung/100)^E1_Projektdaten!$I$49\n+E1_Projektdaten!$D$50*(AD45-1=E1_Projektdaten!$I$50)*(1+Eing_allg_Teuerung/100)^E1_Projektdaten!$I$50\n+E1_Projektdaten!$D$51*(AD45-1=E1_Projektdaten!$I$51)*(1+Eing_allg_Teuerung/100)^E1_Projektdaten!$I$51\n+E1_Projektdaten!$D$52*(AD45-1=E1_Projektdaten!$I$52)*(1+Eing_allg_Teuerung/100)^E1_Projektdaten!$I$52\n+E1_Projektdaten!$D$53*(AD45-1=E1_Projektdaten!$I$53)*(1+Eing_allg_Teuerung/100)^E1_Projektdaten!$I$53\n+Gesamtinvestition*SUMPRODUCT((E1_Projektdaten!$D$58:$D$60=B45)*E1_Projektdaten!$F$58:$F$60)/100","v":0},0,0,0,0,null,{"$f":"MAX(B1_Berechnungen!B45+1-E1_Projektdaten!$D$22,0)","v":10},0,{"$f":"E1_Projektdaten!$D$48*(AD45-1=E1_Projektdaten!$I$48)*(1+Eing_allg_Teuerung/100)^E1_Projektdaten!$I$48\n+E1_Projektdaten!$D$49*(AD45-1=E1_Projektdaten!$I$49)*(1+Eing_allg_Teuerung/100)^E1_Projektdaten!$I$49\n+E1_Projektdaten!$D$50*(AD45-1=E1_Projektdaten!$I$50)*(1+Eing_allg_Teuerung/100)^E1_Projektdaten!$I$50\n+E1_Projektdaten!$D$51*(AD45-1=E1_Projektdaten!$I$51)*(1+Eing_allg_Teuerung/100)^E1_Projektdaten!$I$51\n+E1_Projektdaten!$D$52*(AD45-1=E1_Projektdaten!$I$52)*(1+Eing_allg_Teuerung/100)^E1_Projektdaten!$I$52\n+E1_Projektdaten!$D$53*(AD45-1=E1_Projektdaten!$I$53)*(1+Eing_allg_Teuerung/100)^E1_Projektdaten!$I$53\n+(Gesamtinvestition-SUM(E1_Projektdaten!$D$54:$D$55))*SUMPRODUCT((E1_Projektdaten!$D$58:$D$60=B45)*E1_Projektdaten!$F$58:$F$60)/100+AF44-N45","v":0},{"$f":"IF(ISNUMBER(IRR((AJ$36:AJ44,AI45))),IRR((AJ$36:AJ44,AI45)),\"-\")","v":"-"},9,0,0]
[null,10,{"$f":"(SUMPRODUCT((E3_Verbraucher!$D$21:$XFD$21<B1_Berechnungen!B46)*E3_Verbraucher!$D$18:$XFD$18)+SUMPRODUCT((E3_Verbraucher!$D$21:$XFD$21=B1_Berechnungen!B46)*E3_Verbraucher!$D$18:$XFD$18*E3_Verbraucher!$D$20:$XFD$20))/(100-Eing_Netzverluste)*100*(1-E1_Projektdaten!$D$19/100)^(B1_Berechnungen!B46-E1_Projektdaten!$D$22)","v":0},{"v":0,"d":"0.00"},0,0,0,{"$f":"($F$19*(1+$G$19)^(B46-B$36)+$F$20*(1+$G$20)^(B46-B$36))*(B46>=E1_Projektdaten!$D$22)*VLOOKUP(B46,E1_Projektdaten!$D$58:$I$60,6)/100","v":0},{"$f":"$F$21*(1+$G$21)^(B46-B$36)*(B46>=E1_Projektdaten!$D$22)*VLOOKUP(B46,E1_Projektdaten!$D$58:$I$60,6)/100","v":0},0,null,null,0,{"$f":"+(E1_Projektdaten!$D$48*(1+Eing_allg_Teuerung/100)^(E1_Projektdaten!$I$48*ROUNDDOWN((AD46-1)/E1_Projektdaten!$I$48,0))/E1_Projektdaten!$I$48\n+E1_Projektdaten!$D$49*(1+Eing_allg_Teuerung/100)^(E1_Projektdaten!$I$49*ROUNDDOWN((AD46-1)/E1_Projektdaten!$I$49,0))/E1_Projektdaten!$I$49\n+E1_Projektdaten!$D$50*(1+Eing_allg_Teuerung/100)^(E1_Projektdaten!$I$50*ROUNDDOWN((AD46-1)/E1_Projektdaten!$I$50,0))/E1_Projektdaten!$I$50\n+E1_Projektdaten!$D$51*(1+Eing_allg_Teuerung/100)^(E1_Projektdaten!$I$51*ROUNDDOWN((AD46-1)/E1_Projektdaten!$I$51,0))/E1_Projektdaten!$I$51\n+E1_Projektdaten!$D$52*(1+Eing_allg_Teuerung/100)^(E1_Projektdaten!$I$52*ROUNDDOWN((AD46-1)/E1_Projektdaten!$I$52,0))/E1_Projektdaten!$I$52\n+E1_Projektdaten!$D$53*(1+Eing_allg_Teuerung/100)^(E1_Projektdaten!$I$53*ROUNDDOWN((AD46-1)/E1_Projektdaten!$I$53,0))/E1_Projektdaten!$I$53\n)*((AD46)>0)*VLOOKUP(B46,E1_Projektdaten!$D$58:$I$60,6\n)/100","v":0},0,{"$f":"SUM((SUMPRODUCT((E3_Verbraucher!$D$21:$XFD$21<B1_Berechnungen!B46)*E3_Verbraucher!$D$25:$XFD$25)+SUMPRODUCT((E3_Verbraucher!$D$21:$XFD$21=B1_Berechnungen!B46)*E3_Verbraucher!$D$25:$XFD$25*E3_Verbraucher!$D$20:$XFD$20))*(1+$G$24)^(B46-B$36),(SUMPRODUCT((E3_Verbraucher!$D$21:$XFD$21<B1_Berechnungen!B46)*E3_Verbraucher!$D$26:$XFD$26)+SUMPRODUCT((E3_Verbraucher!$D$21:$XFD$21=B1_Berechnungen!B46)*E3_Verbraucher!$D$26:$XFD$26*E3_Verbraucher!$D$20:$XFD$20))*((1+$G$24)*(1-E1_Projektdaten!$D$19/100))^(B46-B$36))","v":0},{"$f":"SUMPRODUCT((E3_Verbraucher!$D$21:$XFD$21=B1_Berechnungen!B46)*E3_Verbraucher!$D$23:$XFD$23)","v":0},{"$f":"SUM(jährlicher_Förderbeitrag*(B46-Erstauszahlung_jährlFörderung<=Eing_Förderung_wiederholend_Laufzeit-1)*(B46>=E1_Projektdaten!$D$83),E1_Projektdaten!$D$76*(B46=E1_Projektdaten!$D$77),E1_Projektdaten!$D$78*(B46=E1_Projektdaten!$D$79))","v":0},null,null,0,0,0,{"$f":"E1_Projektdaten!$D$48*(AD46-1=E1_Projektdaten!$I$48)*(1+Eing_allg_Teuerung/100)^E1_Projektdaten!$I$48\n+E1_Projektdaten!$D$49*(AD46-1=E1_Projektdaten!$I$49)*(1+Eing_allg_Teuerung/100)^E1_Projektdaten!$I$49\n+E1_Projektdaten!$D$50*(AD46-1=E1_Projektdaten!$I$50)*(1+Eing_allg_Teuerung/100)^E1_Projektdaten!$I$50\n+E1_Projektdaten!$D$51*(AD46-1=E1_Projektdaten!$I$51)*(1+Eing_allg_Teuerung/100)^E1_Projektdaten!$I$51\n+E1_Projektdaten!$D$52*(AD46-1=E1_Projektdaten!$I$52)*(1+Eing_allg_Teuerung/100)^E1_Projektdaten!$I$52\n+E1_Projektdaten!$D$53*(AD46-1=E1_Projektdaten!$I$53)*(1+Eing_allg_Teuerung/100)^E1_Projektdaten!$I$53\n+Gesamtinvestition*SUMPRODUCT((E1_Projektdaten!$D$58:$D$60=B46)*E1_Projektdaten!$F$58:$F$60)/100","v":0},0,0,0,0,null,{"$f":"MAX(B1_Berechnungen!B46+1-E1_Projektdaten!$D$22,0)","v":11},0,{"$f":"E1_Projektdaten!$D$48*(AD46-1=E1_Projektdaten!$I$48)*(1+Eing_allg_Teuerung/100)^E1_Projektdaten!$I$48\n+E1_Projektdaten!$D$49*(AD46-1=E1_Projektdaten!$I$49)*(1+Eing_allg_Teuerung/100)^E1_Projektdaten!$I$49\n+E1_Projektdaten!$D$50*(AD46-1=E1_Projektdaten!$I$50)*(1+Eing_allg_Teuerung/100)^E1_Projektdaten!$I$50\n+E1_Projektdaten!$D$51*(AD46-1=E1_Projektdaten!$I$51)*(1+Eing_allg_Teuerung/100)^E1_Projektdaten!$I$51\n+E1_Projektdaten!$D$52*(AD46-1=E1_Projektdaten!$I$52)*(1+Eing_allg_Teuerung/100)^E1_Projektdaten!$I$52\n+E1_Projektdaten!$D$53*(AD46-1=E1_Projektdaten!$I$53)*(1+Eing_allg_Teuerung/100)^E1_Projektdaten!$I$53\n+(Gesamtinvestition-SUM(E1_Projektdaten!$D$54:$D$55))*SUMPRODUCT((E1_Projektdaten!$D$58:$D$60=B46)*E1_Projektdaten!$F$58:$F$60)/100+AF45-N46","v":0},{"$f":"IF(ISNUMBER(IRR((AJ$36:AJ45,AI46))),IRR((AJ$36:AJ45,AI46)),\"-\")","v":"-"},10,0,0]
[null,11,{"$f":"(SUMPRODUCT((E3_Verbraucher!$D$21:$XFD$21<B1_Berechnungen!B47)*E3_Verbraucher!$D$18:$XFD$18)+SUMPRODUCT((E3_Verbraucher!$D$21:$XFD$21=B1_Berechnungen!B47)*E3_Verbraucher!$D$18:$XFD$18*E3_Verbraucher!$D$20:$XFD$20))/(100-Eing_Netzverluste)*100*(1-E1_Projektdaten!$D$19/100)^(B1_Berechnungen!B47-E1_Projektdaten!$D$22)","v":0},{"v":0,"d":"0.00"},0,0,0,{"$f":"($F$19*(1+$G$19)^(B47-B$36)+$F$20*(1+$G$20)^(B47-B$36))*(B47>=E1_Projektdaten!$D$22)*VLOOKUP(B47,E1_Projektdaten!$D$58:$I$60,6)/100","v":0},{"$f":"$F$21*(1+$G$21)^(B47-B$36)*(B47>=E1_Projektdaten!$D$22)*VLOOKUP(B47,E1_Projektdaten!$D$58:$I$60,6)/100","v":0},0,null,null,0,{"$f":"+(E1_Projektdaten!$D$48*(1+Eing_allg_Teuerung/100)^(E1_Projektdaten!$I$48*ROUNDDOWN((AD47-1)/E1_Projektdaten!$I$48,0))/E1_Projektdaten!$I$48\n+E1_Projektdaten!$D$49*(1+Eing_allg_Teuerung/100)^(E1_Projektdaten!$I$49*ROUNDDOWN((AD47-1)/E1_Projektdaten!$I$49,0))/E1_Projektdaten!$I$49\n+E1_Projektdaten!$D$50*(1+Eing_allg_Teuerung/100)^(E1_Projektdaten!$I$50*ROUNDDOWN((AD47-1)/E1_Projektdaten!$I$50,0))/E1_Projektdaten!$I$50\n+E1_Projektdaten!$D$51*(1+Eing_allg_Teuerung/100)^(E1_Projektdaten!$I$51*ROUNDDOWN((AD47-1)/E1_Projektdaten!$I$51,0))/E1_Projektdaten!$I$51\n+E1_Projektdaten!$D$52*(1+Eing_allg_Teuerung/100)^(E1_Projektdaten!$I$52*ROUNDDOWN((AD47-1)/E1_Projektdaten!$I$52,0))/E1_Projektdaten!$I$52\n+E1_Projektdaten!$D$53*(1+Eing_allg_Teuerung/100)^(E1_Projektdaten!$I$53*ROUNDDOWN((AD47-1)/E1_Projektdaten!$I$53,0))/E1_Projektdaten!$I$53\n)*((AD47)>0)*VLOOKUP(B47,E1_Projektdaten!$D$58:$I$60,6\n)/100","v":0},0,{"$f":"SUM((SUMPRODUCT((E3_Verbraucher!$D$21:$XFD$21<B1_Berechnungen!B47)*E3_Verbraucher!$D$25:$XFD$25)+SUMPRODUCT((E3_Verbraucher!$D$21:$XFD$21=B1_Berechnungen!B47)*E3_Verbraucher!$D$25:$XFD$25*E3_Verbraucher!$D$20:$XFD$20))*(1+$G$24)^(B47-B$36),(SUMPRODUCT((E3_Verbraucher!$D$21:$XFD$21<B1_Berechnungen!B47)*E3_Verbraucher!$D$26:$XFD$26)+SUMPRODUCT((E3_Verbraucher!$D$21:$XFD$21=B1_Berechnungen!B47)*E3_Verbraucher!$D$26:$XFD$26*E3_Verbraucher!$D$20:$XFD$20))*((1+$G$24)*(1-E1_Projektdaten!$D$19/100))^(B47-B$36))","v":0},{"$f":"SUMPRODUCT((E3_Verbraucher!$D$21:$XFD$21=B1_Berechnungen!B47)*E3_Verbraucher!$D$23:$XFD$23)","v":0},{"$f":"SUM(jährlicher_Förderbeitrag*(B47-Erstauszahlung_jährlFörderung<=Eing_Förderung_wiederholend_Laufzeit-1)*(B47>=E1_Projektdaten!$D$83),E1_Projektdaten!$D$76*(B47=E1_Projektdaten!$D$77),E1_Projektdaten!$D$78*(B47=E1_Projektdaten!$D$79))","v":0},null,null,0,0,0,{"$f":"E1_Projektdaten!$D$48*(AD47-1=E1_Projektdaten!$I$48)*(1+Eing_allg_Teuerung/100)^E1_Projektdaten!$I$48\n+E1_Projektdaten!$D$49*(AD47-1=E1_Projektdaten!$I$49)*(1+Eing_allg_Teuerung/100)^E1_Projektdaten!$I$49\n+E1_Projektdaten!$D$50*(AD47-1=E1_Projektdaten!$I$50)*(1+Eing_allg_Teuerung/100)^E1_Projektdaten!$I$50\n+E1_Projektdaten!$D$51*(AD47-1=E1_Projektdaten!$I$51)*(1+Eing_allg_Teuerung/100)^E1_Projektdaten!$I$51\n+E1_Projektdaten!$D$52*(AD47-1=E1_Projektdaten!$I$52)*(1+Eing_allg_Teuerung/100)^E1_Projektdaten!$I$52\n+E1_Projektdaten!$D$53*(AD47-1=E1_Projektdaten!$I$53)*(1+Eing_allg_Teuerung/100)^E1_Projektdaten!$I$53\n+Gesamtinvestition*SUMPRODUCT((E1_Projektdaten!$D$58:$D$60=B47)*E1_Projektdaten!$F$58:$F$60)/100","v":0},0,0,0,0,null,{"$f":"MAX(B1_Berechnungen!B47+1-E1_Projektdaten!$D$22,0)","v":12},0,{"$f":"E1_Projektdaten!$D$48*(AD47-1=E1_Projektdaten!$I$48)*(1+Eing_allg_Teuerung/100)^E1_Projektdaten!$I$48\n+E1_Projektdaten!$D$49*(AD47-1=E1_Projektdaten!$I$49)*(1+Eing_allg_Teuerung/100)^E1_Projektdaten!$I$49\n+E1_Projektdaten!$D$50*(AD47-1=E1_Projektdaten!$I$50)*(1+Eing_allg_Teuerung/100)^E1_Projektdaten!$I$50\n+E1_Projektdaten!$D$51*(AD47-1=E1_Projektdaten!$I$51)*(1+Eing_allg_Teuerung/100)^E1_Projektdaten!$I$51\n+E1_Projektdaten!$D$52*(AD47-1=E1_Projektdaten!$I$52)*(1+Eing_allg_Teuerung/100)^E1_Projektdaten!$I$52\n+E1_Projektdaten!$D$53*(AD47-1=E1_Projektdaten!$I$53)*(1+Eing_allg_Teuerung/100)^E1_Projektdaten!$I$53\n+(Gesamtinvestition-SUM(E1_Projektdaten!$D$54:$D$55))*SUMPRODUCT((E1_Projektdaten!$D$58:$D$60=B47)*E1_Projektdaten!$F$58:$F$60)/100+AF46-N47","v":0},{"$f":"IF(ISNUMBER(IRR((AJ$36:AJ46,AI47))),IRR((AJ$36:AJ46,AI47)),\"-\")","v":"-"},11,0,0]
[null,12,{"$f":"(SUMPRODUCT((E3_Verbraucher!$D$21:$XFD$21<B1_Berechnungen!B48)*E3_Verbraucher!$D$18:$XFD$18)+SUMPRODUCT((E3_Verbraucher!$D$21:$XFD$21=B1_Berechnungen!B48)*E3_Verbraucher!$D$18:$XFD$18*E3_Verbraucher!$D$20:$XFD$20))/(100-Eing_Netzverluste)*100*(1-E1_Projektdaten!$D$19/100)^(B1_Berechnungen!B48-E1_Projektdaten!$D$22)","v":0},{"v":0,"d":"0.00"},0,0,0,{"$f":"($F$19*(1+$G$19)^(B48-B$36)+$F$20*(1+$G$20)^(B48-B$36))*(B48>=E1_Projektdaten!$D$22)*VLOOKUP(B48,E1_Projektdaten!$D$58:$I$60,6)/100","v":0},{"$f":"$F$21*(1+$G$21)^(B48-B$36)*(B48>=E1_Projektdaten!$D$22)*VLOOKUP(B48,E1_Projektdaten!$D$58:$I$60,6)/100","v":0},0,null,null,0,{"$f":"+(E1_Projektdaten!$D$48*(1+Eing_allg_Teuerung/100)^(E1_Projektdaten!$I$48*ROUNDDOWN((AD48-1)/E1_Projektdaten!$I$48,0))/E1_Projektdaten!$I$48\n+E1_Projektdaten!$D$49*(1+Eing_allg_Teuerung/100)^(E1_Projektdaten!$I$49*ROUNDDOWN((AD48-1)/E1_Projektdaten!$I$49,0))/E1_Projektdaten!$I$49\n+E1_Projektdaten!$D$50*(1+Eing_allg_Teuerung/100)^(E1_Projektdaten!$I$50*ROUNDDOWN((AD48-1)/E1_Projektdaten!$I$50,0))/E1_Projektdaten!$I$50\n+E1_Projektdaten!$D$51*(1+Eing_allg_Teuerung/100)^(E1_Projektdaten!$I$51*ROUNDDOWN((AD48-1)/E1_Projektdaten!$I$51,0))/E1_Projektdaten!$I$51\n+E1_Projektdaten!$D$52*(1+Eing_allg_Teuerung/100)^(E1_Projektdaten!$I$52*ROUNDDOWN((AD48-1)/E1_Projektdaten!$I$52,0))/E1_Projektdaten!$I$52\n+E1_Projektdaten!$D$53*(1+Eing_allg_Teuerung/100)^(E1_Projektdaten!$I$53*ROUNDDOWN((AD48-1)/E1_Projektdaten!$I$53,0))/E1_Projektdaten!$I$53\n)*((AD48)>0)*VLOOKUP(B48,E1_Projektdaten!$D$58:$I$60,6\n)/100","v":0},0,{"$f":"SUM((SUMPRODUCT((E3_Verbraucher!$D$21:$XFD$21<B1_Berechnungen!B48)*E3_Verbraucher!$D$25:$XFD$25)+SUMPRODUCT((E3_Verbraucher!$D$21:$XFD$21=B1_Berechnungen!B48)*E3_Verbraucher!$D$25:$XFD$25*E3_Verbraucher!$D$20:$XFD$20))*(1+$G$24)^(B48-B$36),(SUMPRODUCT((E3_Verbraucher!$D$21:$XFD$21<B1_Berechnungen!B48)*E3_Verbraucher!$D$26:$XFD$26)+SUMPRODUCT((E3_Verbraucher!$D$21:$XFD$21=B1_Berechnungen!B48)*E3_Verbraucher!$D$26:$XFD$26*E3_Verbraucher!$D$20:$XFD$20))*((1+$G$24)*(1-E1_Projektdaten!$D$19/100))^(B48-B$36))","v":0},{"$f":"SUMPRODUCT((E3_Verbraucher!$D$21:$XFD$21=B1_Berechnungen!B48)*E3_Verbraucher!$D$23:$XFD$23)","v":0},{"$f":"SUM(jährlicher_Förderbeitrag*(B48-Erstauszahlung_jährlFörderung<=Eing_Förderung_wiederholend_Laufzeit-1)*(B48>=E1_Projektdaten!$D$83),E1_Projektdaten!$D$76*(B48=E1_Projektdaten!$D$77),E1_Projektdaten!$D$78*(B48=E1_Projektdaten!$D$79))","v":0},null,null,0,0,0,{"$f":"E1_Projektdaten!$D$48*(AD48-1=E1_Projektdaten!$I$48)*(1+Eing_allg_Teuerung/100)^E1_Projektdaten!$I$48\n+E1_Projektdaten!$D$49*(AD48-1=E1_Projektdaten!$I$49)*(1+Eing_allg_Teuerung/100)^E1_Projektdaten!$I$49\n+E1_Projektdaten!$D$50*(AD48-1=E1_Projektdaten!$I$50)*(1+Eing_allg_Teuerung/100)^E1_Projektdaten!$I$50\n+E1_Projektdaten!$D$51*(AD48-1=E1_Projektdaten!$I$51)*(1+Eing_allg_Teuerung/100)^E1_Projektdaten!$I$51\n+E1_Projektdaten!$D$52*(AD48-1=E1_Projektdaten!$I$52)*(1+Eing_allg_Teuerung/100)^E1_Projektdaten!$I$52\n+E1_Projektdaten!$D$53*(AD48-1=E1_Projektdaten!$I$53)*(1+Eing_allg_Teuerung/100)^E1_Projektdaten!$I$53\n+Gesamtinvestition*SUMPRODUCT((E1_Projektdaten!$D$58:$D$60=B48)*E1_Projektdaten!$F$58:$F$60)/100","v":0},0,0,0,0,null,{"$f":"MAX(B1_Berechnungen!B48+1-E1_Projektdaten!$D$22,0)","v":13},0,{"$f":"E1_Projektdaten!$D$48*(AD48-1=E1_Projektdaten!$I$48)*(1+Eing_allg_Teuerung/100)^E1_Projektdaten!$I$48\n+E1_Projektdaten!$D$49*(AD48-1=E1_Projektdaten!$I$49)*(1+Eing_allg_Teuerung/100)^E1_Projektdaten!$I$49\n+E1_Projektdaten!$D$50*(AD48-1=E1_Projektdaten!$I$50)*(1+Eing_allg_Teuerung/100)^E1_Projektdaten!$I$50\n+E1_Projektdaten!$D$51*(AD48-1=E1_Projektdaten!$I$51)*(1+Eing_allg_Teuerung/100)^E1_Projektdaten!$I$51\n+E1_Projektdaten!$D$52*(AD48-1=E1_Projektdaten!$I$52)*(1+Eing_allg_Teuerung/100)^E1_Projektdaten!$I$52\n+E1_Projektdaten!$D$53*(AD48-1=E1_Projektdaten!$I$53)*(1+Eing_allg_Teuerung/100)^E1_Projektdaten!$I$53\n+(Gesamtinvestition-SUM(E1_Projektdaten!$D$54:$D$55))*SUMPRODUCT((E1_Projektdaten!$D$58:$D$60=B48)*E1_Projektdaten!$F$58:$F$60)/100+AF47-N48","v":0},{"$f":"IF(ISNUMBER(IRR((AJ$36:AJ47,AI48))),IRR((AJ$36:AJ47,AI48)),\"-\")","v":"-"},12,0,0]
[null,13,{"$f":"(SUMPRODUCT((E3_Verbraucher!$D$21:$XFD$21<B1_Berechnungen!B49)*E3_Verbraucher!$D$18:$XFD$18)+SUMPRODUCT((E3_Verbraucher!$D$21:$XFD$21=B1_Berechnungen!B49)*E3_Verbraucher!$D$18:$XFD$18*E3_Verbraucher!$D$20:$XFD$20))/(100-Eing_Netzverluste)*100*(1-E1_Projektdaten!$D$19/100)^(B1_Berechnungen!B49-E1_Projektdaten!$D$22)","v":0},{"v":0,"d":"0.00"},0,0,0,{"$f":"($F$19*(1+$G$19)^(B49-B$36)+$F$20*(1+$G$20)^(B49-B$36))*(B49>=E1_Projektdaten!$D$22)*VLOOKUP(B49,E1_Projektdaten!$D$58:$I$60,6)/100","v":0},{"$f":"$F$21*(1+$G$21)^(B49-B$36)*(B49>=E1_Projektdaten!$D$22)*VLOOKUP(B49,E1_Projektdaten!$D$58:$I$60,6)/100","v":0},0,null,null,0,{"$f":"+(E1_Projektdaten!$D$48*(1+Eing_allg_Teuerung/100)^(E1_Projektdaten!$I$48*ROUNDDOWN((AD49-1)/E1_Projektdaten!$I$48,0))/E1_Projektdaten!$I$48\n+E1_Projektdaten!$D$49*(1+Eing_allg_Teuerung/100)^(E1_Projektdaten!$I$49*ROUNDDOWN((AD49-1)/E1_Projektdaten!$I$49,0))/E1_Projektdaten!$I$49\n+E1_Projektdaten!$D$50*(1+Eing_allg_Teuerung/100)^(E1_Projektdaten!$I$50*ROUNDDOWN((AD49-1)/E1_Projektdaten!$I$50,0))/E1_Projektdaten!$I$50\n+E1_Projektdaten!$D$51*(1+Eing_allg_Teuerung/100)^(E1_Projektdaten!$I$51*ROUNDDOWN((AD49-1)/E1_Projektdaten!$I$51,0))/E1_Projektdaten!$I$51\n+E1_Projektdaten!$D$52*(1+Eing_allg_Teuerung/100)^(E1_Projektdaten!$I$52*ROUNDDOWN((AD49-1)/E1_Projektdaten!$I$52,0))/E1_Projektdaten!$I$52\n+E1_Projektdaten!$D$53*(1+Eing_allg_Teuerung/100)^(E1_Projektdaten!$I$53*ROUNDDOWN((AD49-1)/E1_Projektdaten!$I$53,0))/E1_Projektdaten!$I$53\n)*((AD49)>0)*VLOOKUP(B49,E1_Projektdaten!$D$58:$I$60,6\n)/100","v":0},0,{"$f":"SUM((SUMPRODUCT((E3_Verbraucher!$D$21:$XFD$21<B1_Berechnungen!B49)*E3_Verbraucher!$D$25:$XFD$25)+SUMPRODUCT((E3_Verbraucher!$D$21:$XFD$21=B1_Berechnungen!B49)*E3_Verbraucher!$D$25:$XFD$25*E3_Verbraucher!$D$20:$XFD$20))*(1+$G$24)^(B49-B$36),(SUMPRODUCT((E3_Verbraucher!$D$21:$XFD$21<B1_Berechnungen!B49)*E3_Verbraucher!$D$26:$XFD$26)+SUMPRODUCT((E3_Verbraucher!$D$21:$XFD$21=B1_Berechnungen!B49)*E3_Verbraucher!$D$26:$XFD$26*E3_Verbraucher!$D$20:$XFD$20))*((1+$G$24)*(1-E1_Projektdaten!$D$19/100))^(B49-B$36))","v":0},{"$f":"SUMPRODUCT((E3_Verbraucher!$D$21:$XFD$21=B1_Berechnungen!B49)*E3_Verbraucher!$D$23:$XFD$23)","v":0},{"$f":"SUM(jährlicher_Förderbeitrag*(B49-Erstauszahlung_jährlFörderung<=Eing_Förderung_wiederholend_Laufzeit-1)*(B49>=E1_Projektdaten!$D$83),E1_Projektdaten!$D$76*(B49=E1_Projektdaten!$D$77),E1_Projektdaten!$D$78*(B49=E1_Projektdaten!$D$79))","v":0},null,null,0,0,0,{"$f":"E1_Projektdaten!$D$48*(AD49-1=E1_Projektdaten!$I$48)*(1+Eing_allg_Teuerung/100)^E1_Projektdaten!$I$48\n+E1_Projektdaten!$D$49*(AD49-1=E1_Projektdaten!$I$49)*(1+Eing_allg_Teuerung/100)^E1_Projektdaten!$I$49\n+E1_Projektdaten!$D$50*(AD49-1=E1_Projektdaten!$I$50)*(1+Eing_allg_Teuerung/100)^E1_Projektdaten!$I$50\n+E1_Projektdaten!$D$51*(AD49-1=E1_Projektdaten!$I$51)*(1+Eing_allg_Teuerung/100)^E1_Projektdaten!$I$51\n+E1_Projektdaten!$D$52*(AD49-1=E1_Projektdaten!$I$52)*(1+Eing_allg_Teuerung/100)^E1_Projektdaten!$I$52\n+E1_Projektdaten!$D$53*(AD49-1=E1_Projektdaten!$I$53)*(1+Eing_allg_Teuerung/100)^E1_Projektdaten!$I$53\n+Gesamtinvestition*SUMPRODUCT((E1_Projektdaten!$D$58:$D$60=B49)*E1_Projektdaten!$F$58:$F$60)/100","v":0},0,0,0,0,null,{"$f":"MAX(B1_Berechnungen!B49+1-E1_Projektdaten!$D$22,0)","v":14},0,{"$f":"E1_Projektdaten!$D$48*(AD49-1=E1_Projektdaten!$I$48)*(1+Eing_allg_Teuerung/100)^E1_Projektdaten!$I$48\n+E1_Projektdaten!$D$49*(AD49-1=E1_Projektdaten!$I$49)*(1+Eing_allg_Teuerung/100)^E1_Projektdaten!$I$49\n+E1_Projektdaten!$D$50*(AD49-1=E1_Projektdaten!$I$50)*(1+Eing_allg_Teuerung/100)^E1_Projektdaten!$I$50\n+E1_Projektdaten!$D$51*(AD49-1=E1_Projektdaten!$I$51)*(1+Eing_allg_Teuerung/100)^E1_Projektdaten!$I$51\n+E1_Projektdaten!$D$52*(AD49-1=E1_Projektdaten!$I$52)*(1+Eing_allg_Teuerung/100)^E1_Projektdaten!$I$52\n+E1_Projektdaten!$D$53*(AD49-1=E1_Projektdaten!$I$53)*(1+Eing_allg_Teuerung/100)^E1_Projektdaten!$I$53\n+(Gesamtinvestition-SUM(E1_Projektdaten!$D$54:$D$55))*SUMPRODUCT((E1_Projektdaten!$D$58:$D$60=B49)*E1_Projektdaten!$F$58:$F$60)/100+AF48-N49","v":0},{"$f":"IF(ISNUMBER(IRR((AJ$36:AJ48,AI49))),IRR((AJ$36:AJ48,AI49)),\"-\")","v":"-"},13,0,0]
[null,14,{"$f":"(SUMPRODUCT((E3_Verbraucher!$D$21:$XFD$21<B1_Berechnungen!B50)*E3_Verbraucher!$D$18:$XFD$18)+SUMPRODUCT((E3_Verbraucher!$D$21:$XFD$21=B1_Berechnungen!B50)*E3_Verbraucher!$D$18:$XFD$18*E3_Verbraucher!$D$20:$XFD$20))/(100-Eing_Netzverluste)*100*(1-E1_Projektdaten!$D$19/100)^(B1_Berechnungen!B50-E1_Projektdaten!$D$22)","v":0},{"v":0,"d":"0.00"},0,0,0,{"$f":"($F$19*(1+$G$19)^(B50-B$36)+$F$20*(1+$G$20)^(B50-B$36))*(B50>=E1_Projektdaten!$D$22)*VLOOKUP(B50,E1_Projektdaten!$D$58:$I$60,6)/100","v":0},{"$f":"$F$21*(1+$G$21)^(B50-B$36)*(B50>=E1_Projektdaten!$D$22)*VLOOKUP(B50,E1_Projektdaten!$D$58:$I$60,6)/100","v":0},0,null,null,0,{"$f":"+(E1_Projektdaten!$D$48*(1+Eing_allg_Teuerung/100)^(E1_Projektdaten!$I$48*ROUNDDOWN((AD50-1)/E1_Projektdaten!$I$48,0))/E1_Projektdaten!$I$48\n+E1_Projektdaten!$D$49*(1+Eing_allg_Teuerung/100)^(E1_Projektdaten!$I$49*ROUNDDOWN((AD50-1)/E1_Projektdaten!$I$49,0))/E1_Projektdaten!$I$49\n+E1_Projektdaten!$D$50*(1+Eing_allg_Teuerung/100)^(E1_Projektdaten!$I$50*ROUNDDOWN((AD50-1)/E1_Projektdaten!$I$50,0))/E1_Projektdaten!$I$50\n+E1_Projektdaten!$D$51*(1+Eing_allg_Teuerung/100)^(E1_Projektdaten!$I$51*ROUNDDOWN((AD50-1)/E1_Projektdaten!$I$51,0))/E1_Projektdaten!$I$51\n+E1_Projektdaten!$D$52*(1+Eing_allg_Teuerung/100)^(E1_Projektdaten!$I$52*ROUNDDOWN((AD50-1)/E1_Projektdaten!$I$52,0))/E1_Projektdaten!$I$52\n+E1_Projektdaten!$D$53*(1+Eing_allg_Teuerung/100)^(E1_Projektdaten!$I$53*ROUNDDOWN((AD50-1)/E1_Projektdaten!$I$53,0))/E1_Projektdaten!$I$53\n)*((AD50)>0)*VLOOKUP(B50,E1_Projektdaten!$D$58:$I$60,6\n)/100","v":0},0,{"$f":"SUM((SUMPRODUCT((E3_Verbraucher!$D$21:$XFD$21<B1_Berechnungen!B50)*E3_Verbraucher!$D$25:$XFD$25)+SUMPRODUCT((E3_Verbraucher!$D$21:$XFD$21=B1_Berechnungen!B50)*E3_Verbraucher!$D$25:$XFD$25*E3_Verbraucher!$D$20:$XFD$20))*(1+$G$24)^(B50-B$36),(SUMPRODUCT((E3_Verbraucher!$D$21:$XFD$21<B1_Berechnungen!B50)*E3_Verbraucher!$D$26:$XFD$26)+SUMPRODUCT((E3_Verbraucher!$D$21:$XFD$21=B1_Berechnungen!B50)*E3_Verbraucher!$D$26:$XFD$26*E3_Verbraucher!$D$20:$XFD$20))*((1+$G$24)*(1-E1_Projektdaten!$D$19/100))^(B50-B$36))","v":0},{"$f":"SUMPRODUCT((E3_Verbraucher!$D$21:$XFD$21=B1_Berechnungen!B50)*E3_Verbraucher!$D$23:$XFD$23)","v":0},{"$f":"SUM(jährlicher_Förderbeitrag*(B50-Erstauszahlung_jährlFörderung<=Eing_Förderung_wiederholend_Laufzeit-1)*(B50>=E1_Projektdaten!$D$83),E1_Projektdaten!$D$76*(B50=E1_Projektdaten!$D$77),E1_Projektdaten!$D$78*(B50=E1_Projektdaten!$D$79))","v":0},null,null,0,0,0,{"$f":"E1_Projektdaten!$D$48*(AD50-1=E1_Projektdaten!$I$48)*(1+Eing_allg_Teuerung/100)^E1_Projektdaten!$I$48\n+E1_Projektdaten!$D$49*(AD50-1=E1_Projektdaten!$I$49)*(1+Eing_allg_Teuerung/100)^E1_Projektdaten!$I$49\n+E1_Projektdaten!$D$50*(AD50-1=E1_Projektdaten!$I$50)*(1+Eing_allg_Teuerung/100)^E1_Projektdaten!$I$50\n+E1_Projektdaten!$D$51*(AD50-1=E1_Projektdaten!$I$51)*(1+Eing_allg_Teuerung/100)^E1_Projektdaten!$I$51\n+E1_Projektdaten!$D$52*(AD50-1=E1_Projektdaten!$I$52)*(1+Eing_allg_Teuerung/100)^E1_Projektdaten!$I$52\n+E1_Projektdaten!$D$53*(AD50-1=E1_Projektdaten!$I$53)*(1+Eing_allg_Teuerung/100)^E1_Projektdaten!$I$53\n+Gesamtinvestition*SUMPRODUCT((E1_Projektdaten!$D$58:$D$60=B50)*E1_Projektdaten!$F$58:$F$60)/100","v":0},0,0,0,0,null,{"$f":"MAX(B1_Berechnungen!B50+1-E1_Projektdaten!$D$22,0)","v":15},0,{"$f":"E1_Projektdaten!$D$48*(AD50-1=E1_Projektdaten!$I$48)*(1+Eing_allg_Teuerung/100)^E1_Projektdaten!$I$48\n+E1_Projektdaten!$D$49*(AD50-1=E1_Projektdaten!$I$49)*(1+Eing_allg_Teuerung/100)^E1_Projektdaten!$I$49\n+E1_Projektdaten!$D$50*(AD50-1=E1_Projektdaten!$I$50)*(1+Eing_allg_Teuerung/100)^E1_Projektdaten!$I$50\n+E1_Projektdaten!$D$51*(AD50-1=E1_Projektdaten!$I$51)*(1+Eing_allg_Teuerung/100)^E1_Projektdaten!$I$51\n+E1_Projektdaten!$D$52*(AD50-1=E1_Projektdaten!$I$52)*(1+Eing_allg_Teuerung/100)^E1_Projektdaten!$I$52\n+E1_Projektdaten!$D$53*(AD50-1=E1_Projektdaten!$I$53)*(1+Eing_allg_Teuerung/100)^E1_Projektdaten!$I$53\n+(Gesamtinvestition-SUM(E1_Projektdaten!$D$54:$D$55))*SUMPRODUCT((E1_Projektdaten!$D$58:$D$60=B50)*E1_Projektdaten!$F$58:$F$60)/100+AF49-N50","v":0},{"$f":"IF(ISNUMBER(IRR((AJ$36:AJ49,AI50))),IRR((AJ$36:AJ49,AI50)),\"-\")","v":"-"},14,0,0]
[null,15,{"$f":"(SUMPRODUCT((E3_Verbraucher!$D$21:$XFD$21<B1_Berechnungen!B51)*E3_Verbraucher!$D$18:$XFD$18)+SUMPRODUCT((E3_Verbraucher!$D$21:$XFD$21=B1_Berechnungen!B51)*E3_Verbraucher!$D$18:$XFD$18*E3_Verbraucher!$D$20:$XFD$20))/(100-Eing_Netzverluste)*100*(1-E1_Projektdaten!$D$19/100)^(B1_Berechnungen!B51-E1_Projektdaten!$D$22)","v":0},{"v":0,"d":"0.00"},0,0,0,{"$f":"($F$19*(1+$G$19)^(B51-B$36)+$F$20*(1+$G$20)^(B51-B$36))*(B51>=E1_Projektdaten!$D$22)*VLOOKUP(B51,E1_Projektdaten!$D$58:$I$60,6)/100","v":0},{"$f":"$F$21*(1+$G$21)^(B51-B$36)*(B51>=E1_Projektdaten!$D$22)*VLOOKUP(B51,E1_Projektdaten!$D$58:$I$60,6)/100","v":0},0,null,null,0,{"$f":"+(E1_Projektdaten!$D$48*(1+Eing_allg_Teuerung/100)^(E1_Projektdaten!$I$48*ROUNDDOWN((AD51-1)/E1_Projektdaten!$I$48,0))/E1_Projektdaten!$I$48\n+E1_Projektdaten!$D$49*(1+Eing_allg_Teuerung/100)^(E1_Projektdaten!$I$49*ROUNDDOWN((AD51-1)/E1_Projektdaten!$I$49,0))/E1_Projektdaten!$I$49\n+E1_Projektdaten!$D$50*(1+Eing_allg_Teuerung/100)^(E1_Projektdaten!$I$50*ROUNDDOWN((AD51-1)/E1_Projektdaten!$I$50,0))/E1_Projektdaten!$I$50\n+E1_Projektdaten!$D$51*(1+Eing_allg_Teuerung/100)^(E1_Projektdaten!$I$51*ROUNDDOWN((AD51-1)/E1_Projektdaten!$I$51,0))/E1_Projektdaten!$I$51\n+E1_Projektdaten!$D$52*(1+Eing_allg_Teuerung/100)^(E1_Projektdaten!$I$52*ROUNDDOWN((AD51-1)/E1_Projektdaten!$I$52,0))/E1_Projektdaten!$I$52\n+E1_Projektdaten!$D$53*(1+Eing_allg_Teuerung/100)^(E1_Projektdaten!$I$53*ROUNDDOWN((AD51-1)/E1_Projektdaten!$I$53,0))/E1_Projektdaten!$I$53\n)*((AD51)>0)*VLOOKUP(B51,E1_Projektdaten!$D$58:$I$60,6\n)/100","v":0},0,{"$f":"SUM((SUMPRODUCT((E3_Verbraucher!$D$21:$XFD$21<B1_Berechnungen!B51)*E3_Verbraucher!$D$25:$XFD$25)+SUMPRODUCT((E3_Verbraucher!$D$21:$XFD$21=B1_Berechnungen!B51)*E3_Verbraucher!$D$25:$XFD$25*E3_Verbraucher!$D$20:$XFD$20))*(1+$G$24)^(B51-B$36),(SUMPRODUCT((E3_Verbraucher!$D$21:$XFD$21<B1_Berechnungen!B51)*E3_Verbraucher!$D$26:$XFD$26)+SUMPRODUCT((E3_Verbraucher!$D$21:$XFD$21=B1_Berechnungen!B51)*E3_Verbraucher!$D$26:$XFD$26*E3_Verbraucher!$D$20:$XFD$20))*((1+$G$24)*(1-E1_Projektdaten!$D$19/100))^(B51-B$36))","v":0},{"$f":"SUMPRODUCT((E3_Verbraucher!$D$21:$XFD$21=B1_Berechnungen!B51)*E3_Verbraucher!$D$23:$XFD$23)","v":0},{"$f":"SUM(jährlicher_Förderbeitrag*(B51-Erstauszahlung_jährlFörderung<=Eing_Förderung_wiederholend_Laufzeit-1)*(B51>=E1_Projektdaten!$D$83),E1_Projektdaten!$D$76*(B51=E1_Projektdaten!$D$77),E1_Projektdaten!$D$78*(B51=E1_Projektdaten!$D$79))","v":0},null,null,0,0,0,{"$f":"E1_Projektdaten!$D$48*(AD51-1=E1_Projektdaten!$I$48)*(1+Eing_allg_Teuerung/100)^E1_Projektdaten!$I$48\n+E1_Projektdaten!$D$49*(AD51-1=E1_Projektdaten!$I$49)*(1+Eing_allg_Teuerung/100)^E1_Projektdaten!$I$49\n+E1_Projektdaten!$D$50*(AD51-1=E1_Projektdaten!$I$50)*(1+Eing_allg_Teuerung/100)^E1_Projektdaten!$I$50\n+E1_Projektdaten!$D$51*(AD51-1=E1_Projektdaten!$I$51)*(1+Eing_allg_Teuerung/100)^E1_Projektdaten!$I$51\n+E1_Projektdaten!$D$52*(AD51-1=E1_Projektdaten!$I$52)*(1+Eing_allg_Teuerung/100)^E1_Projektdaten!$I$52\n+E1_Projektdaten!$D$53*(AD51-1=E1_Projektdaten!$I$53)*(1+Eing_allg_Teuerung/100)^E1_Projektdaten!$I$53\n+Gesamtinvestition*SUMPRODUCT((E1_Projektdaten!$D$58:$D$60=B51)*E1_Projektdaten!$F$58:$F$60)/100","v":0},0,0,0,0,null,{"$f":"MAX(B1_Berechnungen!B51+1-E1_Projektdaten!$D$22,0)","v":16},0,{"$f":"E1_Projektdaten!$D$48*(AD51-1=E1_Projektdaten!$I$48)*(1+Eing_allg_Teuerung/100)^E1_Projektdaten!$I$48\n+E1_Projektdaten!$D$49*(AD51-1=E1_Projektdaten!$I$49)*(1+Eing_allg_Teuerung/100)^E1_Projektdaten!$I$49\n+E1_Projektdaten!$D$50*(AD51-1=E1_Projektdaten!$I$50)*(1+Eing_allg_Teuerung/100)^E1_Projektdaten!$I$50\n+E1_Projektdaten!$D$51*(AD51-1=E1_Projektdaten!$I$51)*(1+Eing_allg_Teuerung/100)^E1_Projektdaten!$I$51\n+E1_Projektdaten!$D$52*(AD51-1=E1_Projektdaten!$I$52)*(1+Eing_allg_Teuerung/100)^E1_Projektdaten!$I$52\n+E1_Projektdaten!$D$53*(AD51-1=E1_Projektdaten!$I$53)*(1+Eing_allg_Teuerung/100)^E1_Projektdaten!$I$53\n+(Gesamtinvestition-SUM(E1_Projektdaten!$D$54:$D$55))*SUMPRODUCT((E1_Projektdaten!$D$58:$D$60=B51)*E1_Projektdaten!$F$58:$F$60)/100+AF50-N51","v":0},{"$f":"IF(ISNUMBER(IRR((AJ$36:AJ50,AI51))),IRR((AJ$36:AJ50,AI51)),\"-\")","v":"-"},15,0,0]
[null,16,{"$f":"(SUMPRODUCT((E3_Verbraucher!$D$21:$XFD$21<B1_Berechnungen!B52)*E3_Verbraucher!$D$18:$XFD$18)+SUMPRODUCT((E3_Verbraucher!$D$21:$XFD$21=B1_Berechnungen!B52)*E3_Verbraucher!$D$18:$XFD$18*E3_Verbraucher!$D$20:$XFD$20))/(100-Eing_Netzverluste)*100*(1-E1_Projektdaten!$D$19/100)^(B1_Berechnungen!B52-E1_Projektdaten!$D$22)","v":0},{"v":0,"d":"0.00"},0,0,0,{"$f":"($F$19*(1+$G$19)^(B52-B$36)+$F$20*(1+$G$20)^(B52-B$36))*(B52>=E1_Projektdaten!$D$22)*VLOOKUP(B52,E1_Projektdaten!$D$58:$I$60,6)/100","v":0},{"$f":"$F$21*(1+$G$21)^(B52-B$36)*(B52>=E1_Projektdaten!$D$22)*VLOOKUP(B52,E1_Projektdaten!$D$58:$I$60,6)/100","v":0},0,null,null,0,{"$f":"+(E1_Projektdaten!$D$48*(1+Eing_allg_Teuerung/100)^(E1_Projektdaten!$I$48*ROUNDDOWN((AD52-1)/E1_Projektdaten!$I$48,0))/E1_Projektdaten!$I$48\n+E1_Projektdaten!$D$49*(1+Eing_allg_Teuerung/100)^(E1_Projektdaten!$I$49*ROUNDDOWN((AD52-1)/E1_Projektdaten!$I$49,0))/E1_Projektdaten!$I$49\n+E1_Projektdaten!$D$50*(1+Eing_allg_Teuerung/100)^(E1_Projektdaten!$I$50*ROUNDDOWN((AD52-1)/E1_Projektdaten!$I$50,0))/E1_Projektdaten!$I$50\n+E1_Projektdaten!$D$51*(1+Eing_allg_Teuerung/100)^(E1_Projektdaten!$I$51*ROUNDDOWN((AD52-1)/E1_Projektdaten!$I$51,0))/E1_Projektdaten!$I$51\n+E1_Projektdaten!$D$52*(1+Eing_allg_Teuerung/100)^(E1_Projektdaten!$I$52*ROUNDDOWN((AD52-1)/E1_Projektdaten!$I$52,0))/E1_Projektdaten!$I$52\n+E1_Projektdaten!$D$53*(1+Eing_allg_Teuerung/100)^(E1_Projektdaten!$I$53*ROUNDDOWN((AD52-1)/E1_Projektdaten!$I$53,0))/E1_Projektdaten!$I$53\n)*((AD52)>0)*VLOOKUP(B52,E1_Projektdaten!$D$58:$I$60,6\n)/100","v":0},0,{"$f":"SUM((SUMPRODUCT((E3_Verbraucher!$D$21:$XFD$21<B1_Berechnungen!B52)*E3_Verbraucher!$D$25:$XFD$25)+SUMPRODUCT((E3_Verbraucher!$D$21:$XFD$21=B1_Berechnungen!B52)*E3_Verbraucher!$D$25:$XFD$25*E3_Verbraucher!$D$20:$XFD$20))*(1+$G$24)^(B52-B$36),(SUMPRODUCT((E3_Verbraucher!$D$21:$XFD$21<B1_Berechnungen!B52)*E3_Verbraucher!$D$26:$XFD$26)+SUMPRODUCT((E3_Verbraucher!$D$21:$XFD$21=B1_Berechnungen!B52)*E3_Verbraucher!$D$26:$XFD$26*E3_Verbraucher!$D$20:$XFD$20))*((1+$G$24)*(1-E1_Projektdaten!$D$19/100))^(B52-B$36))","v":0},{"$f":"SUMPRODUCT((E3_Verbraucher!$D$21:$XFD$21=B1_Berechnungen!B52)*E3_Verbraucher!$D$23:$XFD$23)","v":0},{"$f":"SUM(jährlicher_Förderbeitrag*(B52-Erstauszahlung_jährlFörderung<=Eing_Förderung_wiederholend_Laufzeit-1)*(B52>=E1_Projektdaten!$D$83),E1_Projektdaten!$D$76*(B52=E1_Projektdaten!$D$77),E1_Projektdaten!$D$78*(B52=E1_Projektdaten!$D$79))","v":0},null,null,0,0,0,{"$f":"E1_Projektdaten!$D$48*(AD52-1=E1_Projektdaten!$I$48)*(1+Eing_allg_Teuerung/100)^E1_Projektdaten!$I$48\n+E1_Projektdaten!$D$49*(AD52-1=E1_Projektdaten!$I$49)*(1+Eing_allg_Teuerung/100)^E1_Projektdaten!$I$49\n+E1_Projektdaten!$D$50*(AD52-1=E1_Projektdaten!$I$50)*(1+Eing_allg_Teuerung/100)^E1_Projektdaten!$I$50\n+E1_Projektdaten!$D$51*(AD52-1=E1_Projektdaten!$I$51)*(1+Eing_allg_Teuerung/100)^E1_Projektdaten!$I$51\n+E1_Projektdaten!$D$52*(AD52-1=E1_Projektdaten!$I$52)*(1+Eing_allg_Teuerung/100)^E1_Projektdaten!$I$52\n+E1_Projektdaten!$D$53*(AD52-1=E1_Projektdaten!$I$53)*(1+Eing_allg_Teuerung/100)^E1_Projektdaten!$I$53\n+Gesamtinvestition*SUMPRODUCT((E1_Projektdaten!$D$58:$D$60=B52)*E1_Projektdaten!$F$58:$F$60)/100","v":0},0,0,0,0,null,{"$f":"MAX(B1_Berechnungen!B52+1-E1_Projektdaten!$D$22,0)","v":17},0,{"$f":"E1_Projektdaten!$D$48*(AD52-1=E1_Projektdaten!$I$48)*(1+Eing_allg_Teuerung/100)^E1_Projektdaten!$I$48\n+E1_Projektdaten!$D$49*(AD52-1=E1_Projektdaten!$I$49)*(1+Eing_allg_Teuerung/100)^E1_Projektdaten!$I$49\n+E1_Projektdaten!$D$50*(AD52-1=E1_Projektdaten!$I$50)*(1+Eing_allg_Teuerung/100)^E1_Projektdaten!$I$50\n+E1_Projektdaten!$D$51*(AD52-1=E1_Projektdaten!$I$51)*(1+Eing_allg_Teuerung/100)^E1_Projektdaten!$I$51\n+E1_Projektdaten!$D$52*(AD52-1=E1_Projektdaten!$I$52)*(1+Eing_allg_Teuerung/100)^E1_Projektdaten!$I$52\n+E1_Projektdaten!$D$53*(AD52-1=E1_Projektdaten!$I$53)*(1+Eing_allg_Teuerung/100)^E1_Projektdaten!$I$53\n+(Gesamtinvestition-SUM(E1_Projektdaten!$D$54:$D$55))*SUMPRODUCT((E1_Projektdaten!$D$58:$D$60=B52)*E1_Projektdaten!$F$58:$F$60)/100+AF51-N52","v":0},{"$f":"IF(ISNUMBER(IRR((AJ$36:AJ51,AI52))),IRR((AJ$36:AJ51,AI52)),\"-\")","v":"-"},16,0,0]
[null,17,{"$f":"(SUMPRODUCT((E3_Verbraucher!$D$21:$XFD$21<B1_Berechnungen!B53)*E3_Verbraucher!$D$18:$XFD$18)+SUMPRODUCT((E3_Verbraucher!$D$21:$XFD$21=B1_Berechnungen!B53)*E3_Verbraucher!$D$18:$XFD$18*E3_Verbraucher!$D$20:$XFD$20))/(100-Eing_Netzverluste)*100*(1-E1_Projektdaten!$D$19/100)^(B1_Berechnungen!B53-E1_Projektdaten!$D$22)","v":0},{"v":0,"d":"0.00"},0,0,0,{"$f":"($F$19*(1+$G$19)^(B53-B$36)+$F$20*(1+$G$20)^(B53-B$36))*(B53>=E1_Projektdaten!$D$22)*VLOOKUP(B53,E1_Projektdaten!$D$58:$I$60,6)/100","v":0},{"$f":"$F$21*(1+$G$21)^(B53-B$36)*(B53>=E1_Projektdaten!$D$22)*VLOOKUP(B53,E1_Projektdaten!$D$58:$I$60,6)/100","v":0},0,null,null,0,{"$f":"+(E1_Projektdaten!$D$48*(1+Eing_allg_Teuerung/100)^(E1_Projektdaten!$I$48*ROUNDDOWN((AD53-1)/E1_Projektdaten!$I$48,0))/E1_Projektdaten!$I$48\n+E1_Projektdaten!$D$49*(1+Eing_allg_Teuerung/100)^(E1_Projektdaten!$I$49*ROUNDDOWN((AD53-1)/E1_Projektdaten!$I$49,0))/E1_Projektdaten!$I$49\n+E1_Projektdaten!$D$50*(1+Eing_allg_Teuerung/100)^(E1_Projektdaten!$I$50*ROUNDDOWN((AD53-1)/E1_Projektdaten!$I$50,0))/E1_Projektdaten!$I$50\n+E1_Projektdaten!$D$51*(1+Eing_allg_Teuerung/100)^(E1_Projektdaten!$I$51*ROUNDDOWN((AD53-1)/E1_Projektdaten!$I$51,0))/E1_Projektdaten!$I$51\n+E1_Projektdaten!$D$52*(1+Eing_allg_Teuerung/100)^(E1_Projektdaten!$I$52*ROUNDDOWN((AD53-1)/E1_Projektdaten!$I$52,0))/E1_Projektdaten!$I$52\n+E1_Projektdaten!$D$53*(1+Eing_allg_Teuerung/100)^(E1_Projektdaten!$I$53*ROUNDDOWN((AD53-1)/E1_Projektdaten!$I$53,0))/E1_Projektdaten!$I$53\n)*((AD53)>0)*VLOOKUP(B53,E1_Projektdaten!$D$58:$I$60,6\n)/100","v":0},0,{"$f":"SUM((SUMPRODUCT((E3_Verbraucher!$D$21:$XFD$21<B1_Berechnungen!B53)*E3_Verbraucher!$D$25:$XFD$25)+SUMPRODUCT((E3_Verbraucher!$D$21:$XFD$21=B1_Berechnungen!B53)*E3_Verbraucher!$D$25:$XFD$25*E3_Verbraucher!$D$20:$XFD$20))*(1+$G$24)^(B53-B$36),(SUMPRODUCT((E3_Verbraucher!$D$21:$XFD$21<B1_Berechnungen!B53)*E3_Verbraucher!$D$26:$XFD$26)+SUMPRODUCT((E3_Verbraucher!$D$21:$XFD$21=B1_Berechnungen!B53)*E3_Verbraucher!$D$26:$XFD$26*E3_Verbraucher!$D$20:$XFD$20))*((1+$G$24)*(1-E1_Projektdaten!$D$19/100))^(B53-B$36))","v":0},{"$f":"SUMPRODUCT((E3_Verbraucher!$D$21:$XFD$21=B1_Berechnungen!B53)*E3_Verbraucher!$D$23:$XFD$23)","v":0},{"$f":"SUM(jährlicher_Förderbeitrag*(B53-Erstauszahlung_jährlFörderung<=Eing_Förderung_wiederholend_Laufzeit-1)*(B53>=E1_Projektdaten!$D$83),E1_Projektdaten!$D$76*(B53=E1_Projektdaten!$D$77),E1_Projektdaten!$D$78*(B53=E1_Projektdaten!$D$79))","v":0},null,null,0,0,0,{"$f":"E1_Projektdaten!$D$48*(AD53-1=E1_Projektdaten!$I$48)*(1+Eing_allg_Teuerung/100)^E1_Projektdaten!$I$48\n+E1_Projektdaten!$D$49*(AD53-1=E1_Projektdaten!$I$49)*(1+Eing_allg_Teuerung/100)^E1_Projektdaten!$I$49\n+E1_Projektdaten!$D$50*(AD53-1=E1_Projektdaten!$I$50)*(1+Eing_allg_Teuerung/100)^E1_Projektdaten!$I$50\n+E1_Projektdaten!$D$51*(AD53-1=E1_Projektdaten!$I$51)*(1+Eing_allg_Teuerung/100)^E1_Projektdaten!$I$51\n+E1_Projektdaten!$D$52*(AD53-1=E1_Projektdaten!$I$52)*(1+Eing_allg_Teuerung/100)^E1_Projektdaten!$I$52\n+E1_Projektdaten!$D$53*(AD53-1=E1_Projektdaten!$I$53)*(1+Eing_allg_Teuerung/100)^E1_Projektdaten!$I$53\n+Gesamtinvestition*SUMPRODUCT((E1_Projektdaten!$D$58:$D$60=B53)*E1_Projektdaten!$F$58:$F$60)/100","v":0},0,0,0,0,null,{"$f":"MAX(B1_Berechnungen!B53+1-E1_Projektdaten!$D$22,0)","v":18},0,{"$f":"E1_Projektdaten!$D$48*(AD53-1=E1_Projektdaten!$I$48)*(1+Eing_allg_Teuerung/100)^E1_Projektdaten!$I$48\n+E1_Projektdaten!$D$49*(AD53-1=E1_Projektdaten!$I$49)*(1+Eing_allg_Teuerung/100)^E1_Projektdaten!$I$49\n+E1_Projektdaten!$D$50*(AD53-1=E1_Projektdaten!$I$50)*(1+Eing_allg_Teuerung/100)^E1_Projektdaten!$I$50\n+E1_Projektdaten!$D$51*(AD53-1=E1_Projektdaten!$I$51)*(1+Eing_allg_Teuerung/100)^E1_Projektdaten!$I$51\n+E1_Projektdaten!$D$52*(AD53-1=E1_Projektdaten!$I$52)*(1+Eing_allg_Teuerung/100)^E1_Projektdaten!$I$52\n+E1_Projektdaten!$D$53*(AD53-1=E1_Projektdaten!$I$53)*(1+Eing_allg_Teuerung/100)^E1_Projektdaten!$I$53\n+(Gesamtinvestition-SUM(E1_Projektdaten!$D$54:$D$55))*SUMPRODUCT((E1_Projektdaten!$D$58:$D$60=B53)*E1_Projektdaten!$F$58:$F$60)/100+AF52-N53","v":0},{"$f":"IF(ISNUMBER(IRR((AJ$36:AJ52,AI53))),IRR((AJ$36:AJ52,AI53)),\"-\")","v":"-"},17,0,0]
[null,18,{"$f":"(SUMPRODUCT((E3_Verbraucher!$D$21:$XFD$21<B1_Berechnungen!B54)*E3_Verbraucher!$D$18:$XFD$18)+SUMPRODUCT((E3_Verbraucher!$D$21:$XFD$21=B1_Berechnungen!B54)*E3_Verbraucher!$D$18:$XFD$18*E3_Verbraucher!$D$20:$XFD$20))/(100-Eing_Netzverluste)*100*(1-E1_Projektdaten!$D$19/100)^(B1_Berechnungen!B54-E1_Projektdaten!$D$22)","v":0},{"v":0,"d":"0.00"},0,0,0,{"$f":"($F$19*(1+$G$19)^(B54-B$36)+$F$20*(1+$G$20)^(B54-B$36))*(B54>=E1_Projektdaten!$D$22)*VLOOKUP(B54,E1_Projektdaten!$D$58:$I$60,6)/100","v":0},{"$f":"$F$21*(1+$G$21)^(B54-B$36)*(B54>=E1_Projektdaten!$D$22)*VLOOKUP(B54,E1_Projektdaten!$D$58:$I$60,6)/100","v":0},0,null,null,0,{"$f":"+(E1_Projektdaten!$D$48*(1+Eing_allg_Teuerung/100)^(E1_Projektdaten!$I$48*ROUNDDOWN((AD54-1)/E1_Projektdaten!$I$48,0))/E1_Projektdaten!$I$48\n+E1_Projektdaten!$D$49*(1+Eing_allg_Teuerung/100)^(E1_Projektdaten!$I$49*ROUNDDOWN((AD54-1)/E1_Projektdaten!$I$49,0))/E1_Projektdaten!$I$49\n+E1_Projektdaten!$D$50*(1+Eing_allg_Teuerung/100)^(E1_Projektdaten!$I$50*ROUNDDOWN((AD54-1)/E1_Projektdaten!$I$50,0))/E1_Projektdaten!$I$50\n+E1_Projektdaten!$D$51*(1+Eing_allg_Teuerung/100)^(E1_Projektdaten!$I$51*ROUNDDOWN((AD54-1)/E1_Projektdaten!$I$51,0))/E1_Projektdaten!$I$51\n+E1_Projektdaten!$D$52*(1+Eing_allg_Teuerung/100)^(E1_Projektdaten!$I$52*ROUNDDOWN((AD54-1)/E1_Projektdaten!$I$52,0))/E1_Projektdaten!$I$52\n+E1_Projektdaten!$D$53*(1+Eing_allg_Teuerung/100)^(E1_Projektdaten!$I$53*ROUNDDOWN((AD54-1)/E1_Projektdaten!$I$53,0))/E1_Projektdaten!$I$53\n)*((AD54)>0)*VLOOKUP(B54,E1_Projektdaten!$D$58:$I$60,6\n)/100","v":0},0,{"$f":"SUM((SUMPRODUCT((E3_Verbraucher!$D$21:$XFD$21<B1_Berechnungen!B54)*E3_Verbraucher!$D$25:$XFD$25)+SUMPRODUCT((E3_Verbraucher!$D$21:$XFD$21=B1_Berechnungen!B54)*E3_Verbraucher!$D$25:$XFD$25*E3_Verbraucher!$D$20:$XFD$20))*(1+$G$24)^(B54-B$36),(SUMPRODUCT((E3_Verbraucher!$D$21:$XFD$21<B1_Berechnungen!B54)*E3_Verbraucher!$D$26:$XFD$26)+SUMPRODUCT((E3_Verbraucher!$D$21:$XFD$21=B1_Berechnungen!B54)*E3_Verbraucher!$D$26:$XFD$26*E3_Verbraucher!$D$20:$XFD$20))*((1+$G$24)*(1-E1_Projektdaten!$D$19/100))^(B54-B$36))","v":0},{"$f":"SUMPRODUCT((E3_Verbraucher!$D$21:$XFD$21=B1_Berechnungen!B54)*E3_Verbraucher!$D$23:$XFD$23)","v":0},{"$f":"SUM(jährlicher_Förderbeitrag*(B54-Erstauszahlung_jährlFörderung<=Eing_Förderung_wiederholend_Laufzeit-1)*(B54>=E1_Projektdaten!$D$83),E1_Projektdaten!$D$76*(B54=E1_Projektdaten!$D$77),E1_Projektdaten!$D$78*(B54=E1_Projektdaten!$D$79))","v":0},null,null,0,0,0,{"$f":"E1_Projektdaten!$D$48*(AD54-1=E1_Projektdaten!$I$48)*(1+Eing_allg_Teuerung/100)^E1_Projektdaten!$I$48\n+E1_Projektdaten!$D$49*(AD54-1=E1_Projektdaten!$I$49)*(1+Eing_allg_Teuerung/100)^E1_Projektdaten!$I$49\n+E1_Projektdaten!$D$50*(AD54-1=E1_Projektdaten!$I$50)*(1+Eing_allg_Teuerung/100)^E1_Projektdaten!$I$50\n+E1_Projektdaten!$D$51*(AD54-1=E1_Projektdaten!$I$51)*(1+Eing_allg_Teuerung/100)^E1_Projektdaten!$I$51\n+E1_Projektdaten!$D$52*(AD54-1=E1_Projektdaten!$I$52)*(1+Eing_allg_Teuerung/100)^E1_Projektdaten!$I$52\n+E1_Projektdaten!$D$53*(AD54-1=E1_Projektdaten!$I$53)*(1+Eing_allg_Teuerung/100)^E1_Projektdaten!$I$53\n+Gesamtinvestition*SUMPRODUCT((E1_Projektdaten!$D$58:$D$60=B54)*E1_Projektdaten!$F$58:$F$60)/100","v":0},0,0,0,0,null,{"$f":"MAX(B1_Berechnungen!B54+1-E1_Projektdaten!$D$22,0)","v":19},0,{"$f":"E1_Projektdaten!$D$48*(AD54-1=E1_Projektdaten!$I$48)*(1+Eing_allg_Teuerung/100)^E1_Projektdaten!$I$48\n+E1_Projektdaten!$D$49*(AD54-1=E1_Projektdaten!$I$49)*(1+Eing_allg_Teuerung/100)^E1_Projektdaten!$I$49\n+E1_Projektdaten!$D$50*(AD54-1=E1_Projektdaten!$I$50)*(1+Eing_allg_Teuerung/100)^E1_Projektdaten!$I$50\n+E1_Projektdaten!$D$51*(AD54-1=E1_Projektdaten!$I$51)*(1+Eing_allg_Teuerung/100)^E1_Projektdaten!$I$51\n+E1_Projektdaten!$D$52*(AD54-1=E1_Projektdaten!$I$52)*(1+Eing_allg_Teuerung/100)^E1_Projektdaten!$I$52\n+E1_Projektdaten!$D$53*(AD54-1=E1_Projektdaten!$I$53)*(1+Eing_allg_Teuerung/100)^E1_Projektdaten!$I$53\n+(Gesamtinvestition-SUM(E1_Projektdaten!$D$54:$D$55))*SUMPRODUCT((E1_Projektdaten!$D$58:$D$60=B54)*E1_Projektdaten!$F$58:$F$60)/100+AF53-N54","v":0},{"$f":"IF(ISNUMBER(IRR((AJ$36:AJ53,AI54))),IRR((AJ$36:AJ53,AI54)),\"-\")","v":"-"},18,0,0]
[null,19,{"$f":"(SUMPRODUCT((E3_Verbraucher!$D$21:$XFD$21<B1_Berechnungen!B55)*E3_Verbraucher!$D$18:$XFD$18)+SUMPRODUCT((E3_Verbraucher!$D$21:$XFD$21=B1_Berechnungen!B55)*E3_Verbraucher!$D$18:$XFD$18*E3_Verbraucher!$D$20:$XFD$20))/(100-Eing_Netzverluste)*100*(1-E1_Projektdaten!$D$19/100)^(B1_Berechnungen!B55-E1_Projektdaten!$D$22)","v":0},{"v":0,"d":"0.00"},0,0,0,{"$f":"($F$19*(1+$G$19)^(B55-B$36)+$F$20*(1+$G$20)^(B55-B$36))*(B55>=E1_Projektdaten!$D$22)*VLOOKUP(B55,E1_Projektdaten!$D$58:$I$60,6)/100","v":0},{"$f":"$F$21*(1+$G$21)^(B55-B$36)*(B55>=E1_Projektdaten!$D$22)*VLOOKUP(B55,E1_Projektdaten!$D$58:$I$60,6)/100","v":0},0,null,null,0,{"$f":"+(E1_Projektdaten!$D$48*(1+Eing_allg_Teuerung/100)^(E1_Projektdaten!$I$48*ROUNDDOWN((AD55-1)/E1_Projektdaten!$I$48,0))/E1_Projektdaten!$I$48\n+E1_Projektdaten!$D$49*(1+Eing_allg_Teuerung/100)^(E1_Projektdaten!$I$49*ROUNDDOWN((AD55-1)/E1_Projektdaten!$I$49,0))/E1_Projektdaten!$I$49\n+E1_Projektdaten!$D$50*(1+Eing_allg_Teuerung/100)^(E1_Projektdaten!$I$50*ROUNDDOWN((AD55-1)/E1_Projektdaten!$I$50,0))/E1_Projektdaten!$I$50\n+E1_Projektdaten!$D$51*(1+Eing_allg_Teuerung/100)^(E1_Projektdaten!$I$51*ROUNDDOWN((AD55-1)/E1_Projektdaten!$I$51,0))/E1_Projektdaten!$I$51\n+E1_Projektdaten!$D$52*(1+Eing_allg_Teuerung/100)^(E1_Projektdaten!$I$52*ROUNDDOWN((AD55-1)/E1_Projektdaten!$I$52,0))/E1_Projektdaten!$I$52\n+E1_Projektdaten!$D$53*(1+Eing_allg_Teuerung/100)^(E1_Projektdaten!$I$53*ROUNDDOWN((AD55-1)/E1_Projektdaten!$I$53,0))/E1_Projektdaten!$I$53\n)*((AD55)>0)*VLOOKUP(B55,E1_Projektdaten!$D$58:$I$60,6\n)/100","v":0},0,{"$f":"SUM((SUMPRODUCT((E3_Verbraucher!$D$21:$XFD$21<B1_Berechnungen!B55)*E3_Verbraucher!$D$25:$XFD$25)+SUMPRODUCT((E3_Verbraucher!$D$21:$XFD$21=B1_Berechnungen!B55)*E3_Verbraucher!$D$25:$XFD$25*E3_Verbraucher!$D$20:$XFD$20))*(1+$G$24)^(B55-B$36),(SUMPRODUCT((E3_Verbraucher!$D$21:$XFD$21<B1_Berechnungen!B55)*E3_Verbraucher!$D$26:$XFD$26)+SUMPRODUCT((E3_Verbraucher!$D$21:$XFD$21=B1_Berechnungen!B55)*E3_Verbraucher!$D$26:$XFD$26*E3_Verbraucher!$D$20:$XFD$20))*((1+$G$24)*(1-E1_Projektdaten!$D$19/100))^(B55-B$36))","v":0},{"$f":"SUMPRODUCT((E3_Verbraucher!$D$21:$XFD$21=B1_Berechnungen!B55)*E3_Verbraucher!$D$23:$XFD$23)","v":0},{"$f":"SUM(jährlicher_Förderbeitrag*(B55-Erstauszahlung_jährlFörderung<=Eing_Förderung_wiederholend_Laufzeit-1)*(B55>=E1_Projektdaten!$D$83),E1_Projektdaten!$D$76*(B55=E1_Projektdaten!$D$77),E1_Projektdaten!$D$78*(B55=E1_Projektdaten!$D$79))","v":0},null,null,0,0,0,{"$f":"E1_Projektdaten!$D$48*(AD55-1=E1_Projektdaten!$I$48)*(1+Eing_allg_Teuerung/100)^E1_Projektdaten!$I$48\n+E1_Projektdaten!$D$49*(AD55-1=E1_Projektdaten!$I$49)*(1+Eing_allg_Teuerung/100)^E1_Projektdaten!$I$49\n+E1_Projektdaten!$D$50*(AD55-1=E1_Projektdaten!$I$50)*(1+Eing_allg_Teuerung/100)^E1_Projektdaten!$I$50\n+E1_Projektdaten!$D$51*(AD55-1=E1_Projektdaten!$I$51)*(1+Eing_allg_Teuerung/100)^E1_Projektdaten!$I$51\n+E1_Projektdaten!$D$52*(AD55-1=E1_Projektdaten!$I$52)*(1+Eing_allg_Teuerung/100)^E1_Projektdaten!$I$52\n+E1_Projektdaten!$D$53*(AD55-1=E1_Projektdaten!$I$53)*(1+Eing_allg_Teuerung/100)^E1_Projektdaten!$I$53\n+Gesamtinvestition*SUMPRODUCT((E1_Projektdaten!$D$58:$D$60=B55)*E1_Projektdaten!$F$58:$F$60)/100","v":0},0,0,0,0,null,{"$f":"MAX(B1_Berechnungen!B55+1-E1_Projektdaten!$D$22,0)","v":20},0,{"$f":"E1_Projektdaten!$D$48*(AD55-1=E1_Projektdaten!$I$48)*(1+Eing_allg_Teuerung/100)^E1_Projektdaten!$I$48\n+E1_Projektdaten!$D$49*(AD55-1=E1_Projektdaten!$I$49)*(1+Eing_allg_Teuerung/100)^E1_Projektdaten!$I$49\n+E1_Projektdaten!$D$50*(AD55-1=E1_Projektdaten!$I$50)*(1+Eing_allg_Teuerung/100)^E1_Projektdaten!$I$50\n+E1_Projektdaten!$D$51*(AD55-1=E1_Projektdaten!$I$51)*(1+Eing_allg_Teuerung/100)^E1_Projektdaten!$I$51\n+E1_Projektdaten!$D$52*(AD55-1=E1_Projektdaten!$I$52)*(1+Eing_allg_Teuerung/100)^E1_Projektdaten!$I$52\n+E1_Projektdaten!$D$53*(AD55-1=E1_Projektdaten!$I$53)*(1+Eing_allg_Teuerung/100)^E1_Projektdaten!$I$53\n+(Gesamtinvestition-SUM(E1_Projektdaten!$D$54:$D$55))*SUMPRODUCT((E1_Projektdaten!$D$58:$D$60=B55)*E1_Projektdaten!$F$58:$F$60)/100+AF54-N55","v":0},{"$f":"IF(ISNUMBER(IRR((AJ$36:AJ54,AI55))),IRR((AJ$36:AJ54,AI55)),\"-\")","v":"-"},19,0,0]
[null,20,{"$f":"(SUMPRODUCT((E3_Verbraucher!$D$21:$XFD$21<B1_Berechnungen!B56)*E3_Verbraucher!$D$18:$XFD$18)+SUMPRODUCT((E3_Verbraucher!$D$21:$XFD$21=B1_Berechnungen!B56)*E3_Verbraucher!$D$18:$XFD$18*E3_Verbraucher!$D$20:$XFD$20))/(100-Eing_Netzverluste)*100*(1-E1_Projektdaten!$D$19/100)^(B1_Berechnungen!B56-E1_Projektdaten!$D$22)","v":0},{"v":0,"d":"0.00"},0,0,0,{"$f":"($F$19*(1+$G$19)^(B56-B$36)+$F$20*(1+$G$20)^(B56-B$36))*(B56>=E1_Projektdaten!$D$22)*VLOOKUP(B56,E1_Projektdaten!$D$58:$I$60,6)/100","v":0},{"$f":"$F$21*(1+$G$21)^(B56-B$36)*(B56>=E1_Projektdaten!$D$22)*VLOOKUP(B56,E1_Projektdaten!$D$58:$I$60,6)/100","v":0},0,null,null,0,{"$f":"+(E1_Projektdaten!$D$48*(1+Eing_allg_Teuerung/100)^(E1_Projektdaten!$I$48*ROUNDDOWN((AD56-1)/E1_Projektdaten!$I$48,0))/E1_Projektdaten!$I$48\n+E1_Projektdaten!$D$49*(1+Eing_allg_Teuerung/100)^(E1_Projektdaten!$I$49*ROUNDDOWN((AD56-1)/E1_Projektdaten!$I$49,0))/E1_Projektdaten!$I$49\n+E1_Projektdaten!$D$50*(1+Eing_allg_Teuerung/100)^(E1_Projektdaten!$I$50*ROUNDDOWN((AD56-1)/E1_Projektdaten!$I$50,0))/E1_Projektdaten!$I$50\n+E1_Projektdaten!$D$51*(1+Eing_allg_Teuerung/100)^(E1_Projektdaten!$I$51*ROUNDDOWN((AD56-1)/E1_Projektdaten!$I$51,0))/E1_Projektdaten!$I$51\n+E1_Projektdaten!$D$52*(1+Eing_allg_Teuerung/100)^(E1_Projektdaten!$I$52*ROUNDDOWN((AD56-1)/E1_Projektdaten!$I$52,0))/E1_Projektdaten!$I$52\n+E1_Projektdaten!$D$53*(1+Eing_allg_Teuerung/100)^(E1_Projektdaten!$I$53*ROUNDDOWN((AD56-1)/E1_Projektdaten!$I$53,0))/E1_Projektdaten!$I$53\n)*((AD56)>0)*VLOOKUP(B56,E1_Projektdaten!$D$58:$I$60,6\n)/100","v":0},0,{"$f":"SUM((SUMPRODUCT((E3_Verbraucher!$D$21:$XFD$21<B1_Berechnungen!B56)*E3_Verbraucher!$D$25:$XFD$25)+SUMPRODUCT((E3_Verbraucher!$D$21:$XFD$21=B1_Berechnungen!B56)*E3_Verbraucher!$D$25:$XFD$25*E3_Verbraucher!$D$20:$XFD$20))*(1+$G$24)^(B56-B$36),(SUMPRODUCT((E3_Verbraucher!$D$21:$XFD$21<B1_Berechnungen!B56)*E3_Verbraucher!$D$26:$XFD$26)+SUMPRODUCT((E3_Verbraucher!$D$21:$XFD$21=B1_Berechnungen!B56)*E3_Verbraucher!$D$26:$XFD$26*E3_Verbraucher!$D$20:$XFD$20))*((1+$G$24)*(1-E1_Projektdaten!$D$19/100))^(B56-B$36))","v":0},{"$f":"SUMPRODUCT((E3_Verbraucher!$D$21:$XFD$21=B1_Berechnungen!B56)*E3_Verbraucher!$D$23:$XFD$23)","v":0},{"$f":"SUM(jährlicher_Förderbeitrag*(B56-Erstauszahlung_jährlFörderung<=Eing_Förderung_wiederholend_Laufzeit-1)*(B56>=E1_Projektdaten!$D$83),E1_Projektdaten!$D$76*(B56=E1_Projektdaten!$D$77),E1_Projektdaten!$D$78*(B56=E1_Projektdaten!$D$79))","v":0},null,null,0,0,0,{"$f":"E1_Projektdaten!$D$48*(AD56-1=E1_Projektdaten!$I$48)*(1+Eing_allg_Teuerung/100)^E1_Projektdaten!$I$48\n+E1_Projektdaten!$D$49*(AD56-1=E1_Projektdaten!$I$49)*(1+Eing_allg_Teuerung/100)^E1_Projektdaten!$I$49\n+E1_Projektdaten!$D$50*(AD56-1=E1_Projektdaten!$I$50)*(1+Eing_allg_Teuerung/100)^E1_Projektdaten!$I$50\n+E1_Projektdaten!$D$51*(AD56-1=E1_Projektdaten!$I$51)*(1+Eing_allg_Teuerung/100)^E1_Projektdaten!$I$51\n+E1_Projektdaten!$D$52*(AD56-1=E1_Projektdaten!$I$52)*(1+Eing_allg_Teuerung/100)^E1_Projektdaten!$I$52\n+E1_Projektdaten!$D$53*(AD56-1=E1_Projektdaten!$I$53)*(1+Eing_allg_Teuerung/100)^E1_Projektdaten!$I$53\n+Gesamtinvestition*SUMPRODUCT((E1_Projektdaten!$D$58:$D$60=B56)*E1_Projektdaten!$F$58:$F$60)/100","v":0},0,0,0,0,null,{"$f":"MAX(B1_Berechnungen!B56+1-E1_Projektdaten!$D$22,0)","v":21},0,{"$f":"E1_Projektdaten!$D$48*(AD56-1=E1_Projektdaten!$I$48)*(1+Eing_allg_Teuerung/100)^E1_Projektdaten!$I$48\n+E1_Projektdaten!$D$49*(AD56-1=E1_Projektdaten!$I$49)*(1+Eing_allg_Teuerung/100)^E1_Projektdaten!$I$49\n+E1_Projektdaten!$D$50*(AD56-1=E1_Projektdaten!$I$50)*(1+Eing_allg_Teuerung/100)^E1_Projektdaten!$I$50\n+E1_Projektdaten!$D$51*(AD56-1=E1_Projektdaten!$I$51)*(1+Eing_allg_Teuerung/100)^E1_Projektdaten!$I$51\n+E1_Projektdaten!$D$52*(AD56-1=E1_Projektdaten!$I$52)*(1+Eing_allg_Teuerung/100)^E1_Projektdaten!$I$52\n+E1_Projektdaten!$D$53*(AD56-1=E1_Projektdaten!$I$53)*(1+Eing_allg_Teuerung/100)^E1_Projektdaten!$I$53\n+(Gesamtinvestition-SUM(E1_Projektdaten!$D$54:$D$55))*SUMPRODUCT((E1_Projektdaten!$D$58:$D$60=B56)*E1_Projektdaten!$F$58:$F$60)/100+AF55-N56","v":0},{"$f":"IF(ISNUMBER(IRR((AJ$36:AJ55,AI56))),IRR((AJ$36:AJ55,AI56)),\"-\")","v":"-"},20,0,0]
[null,21,{"$f":"(SUMPRODUCT((E3_Verbraucher!$D$21:$XFD$21<B1_Berechnungen!B57)*E3_Verbraucher!$D$18:$XFD$18)+SUMPRODUCT((E3_Verbraucher!$D$21:$XFD$21=B1_Berechnungen!B57)*E3_Verbraucher!$D$18:$XFD$18*E3_Verbraucher!$D$20:$XFD$20))/(100-Eing_Netzverluste)*100*(1-E1_Projektdaten!$D$19/100)^(B1_Berechnungen!B57-E1_Projektdaten!$D$22)","v":0},{"v":0,"d":"0.00"},0,0,0,{"$f":"($F$19*(1+$G$19)^(B57-B$36)+$F$20*(1+$G$20)^(B57-B$36))*(B57>=E1_Projektdaten!$D$22)*VLOOKUP(B57,E1_Projektdaten!$D$58:$I$60,6)/100","v":0},{"$f":"$F$21*(1+$G$21)^(B57-B$36)*(B57>=E1_Projektdaten!$D$22)*VLOOKUP(B57,E1_Projektdaten!$D$58:$I$60,6)/100","v":0},0,null,null,0,{"$f":"+(E1_Projektdaten!$D$48*(1+Eing_allg_Teuerung/100)^(E1_Projektdaten!$I$48*ROUNDDOWN((AD57-1)/E1_Projektdaten!$I$48,0))/E1_Projektdaten!$I$48\n+E1_Projektdaten!$D$49*(1+Eing_allg_Teuerung/100)^(E1_Projektdaten!$I$49*ROUNDDOWN((AD57-1)/E1_Projektdaten!$I$49,0))/E1_Projektdaten!$I$49\n+E1_Projektdaten!$D$50*(1+Eing_allg_Teuerung/100)^(E1_Projektdaten!$I$50*ROUNDDOWN((AD57-1)/E1_Projektdaten!$I$50,0))/E1_Projektdaten!$I$50\n+E1_Projektdaten!$D$51*(1+Eing_allg_Teuerung/100)^(E1_Projektdaten!$I$51*ROUNDDOWN((AD57-1)/E1_Projektdaten!$I$51,0))/E1_Projektdaten!$I$51\n+E1_Projektdaten!$D$52*(1+Eing_allg_Teuerung/100)^(E1_Projektdaten!$I$52*ROUNDDOWN((AD57-1)/E1_Projektdaten!$I$52,0))/E1_Projektdaten!$I$52\n+E1_Projektdaten!$D$53*(1+Eing_allg_Teuerung/100)^(E1_Projektdaten!$I$53*ROUNDDOWN((AD57-1)/E1_Projektdaten!$I$53,0))/E1_Projektdaten!$I$53\n)*((AD57)>0)*VLOOKUP(B57,E1_Projektdaten!$D$58:$I$60,6\n)/100","v":0},0,{"$f":"SUM((SUMPRODUCT((E3_Verbraucher!$D$21:$XFD$21<B1_Berechnungen!B57)*E3_Verbraucher!$D$25:$XFD$25)+SUMPRODUCT((E3_Verbraucher!$D$21:$XFD$21=B1_Berechnungen!B57)*E3_Verbraucher!$D$25:$XFD$25*E3_Verbraucher!$D$20:$XFD$20))*(1+$G$24)^(B57-B$36),(SUMPRODUCT((E3_Verbraucher!$D$21:$XFD$21<B1_Berechnungen!B57)*E3_Verbraucher!$D$26:$XFD$26)+SUMPRODUCT((E3_Verbraucher!$D$21:$XFD$21=B1_Berechnungen!B57)*E3_Verbraucher!$D$26:$XFD$26*E3_Verbraucher!$D$20:$XFD$20))*((1+$G$24)*(1-E1_Projektdaten!$D$19/100))^(B57-B$36))","v":0},{"$f":"SUMPRODUCT((E3_Verbraucher!$D$21:$XFD$21=B1_Berechnungen!B57)*E3_Verbraucher!$D$23:$XFD$23)","v":0},{"$f":"SUM(jährlicher_Förderbeitrag*(B57-Erstauszahlung_jährlFörderung<=Eing_Förderung_wiederholend_Laufzeit-1)*(B57>=E1_Projektdaten!$D$83),E1_Projektdaten!$D$76*(B57=E1_Projektdaten!$D$77),E1_Projektdaten!$D$78*(B57=E1_Projektdaten!$D$79))","v":0},null,null,0,0,0,{"$f":"E1_Projektdaten!$D$48*(AD57-1=E1_Projektdaten!$I$48)*(1+Eing_allg_Teuerung/100)^E1_Projektdaten!$I$48\n+E1_Projektdaten!$D$49*(AD57-1=E1_Projektdaten!$I$49)*(1+Eing_allg_Teuerung/100)^E1_Projektdaten!$I$49\n+E1_Projektdaten!$D$50*(AD57-1=E1_Projektdaten!$I$50)*(1+Eing_allg_Teuerung/100)^E1_Projektdaten!$I$50\n+E1_Projektdaten!$D$51*(AD57-1=E1_Projektdaten!$I$51)*(1+Eing_allg_Teuerung/100)^E1_Projektdaten!$I$51\n+E1_Projektdaten!$D$52*(AD57-1=E1_Projektdaten!$I$52)*(1+Eing_allg_Teuerung/100)^E1_Projektdaten!$I$52\n+E1_Projektdaten!$D$53*(AD57-1=E1_Projektdaten!$I$53)*(1+Eing_allg_Teuerung/100)^E1_Projektdaten!$I$53\n+Gesamtinvestition*SUMPRODUCT((E1_Projektdaten!$D$58:$D$60=B57)*E1_Projektdaten!$F$58:$F$60)/100","v":0},0,0,0,0,null,{"$f":"MAX(B1_Berechnungen!B57+1-E1_Projektdaten!$D$22,0)","v":22},0,{"$f":"E1_Projektdaten!$D$48*(AD57-1=E1_Projektdaten!$I$48)*(1+Eing_allg_Teuerung/100)^E1_Projektdaten!$I$48\n+E1_Projektdaten!$D$49*(AD57-1=E1_Projektdaten!$I$49)*(1+Eing_allg_Teuerung/100)^E1_Projektdaten!$I$49\n+E1_Projektdaten!$D$50*(AD57-1=E1_Projektdaten!$I$50)*(1+Eing_allg_Teuerung/100)^E1_Projektdaten!$I$50\n+E1_Projektdaten!$D$51*(AD57-1=E1_Projektdaten!$I$51)*(1+Eing_allg_Teuerung/100)^E1_Projektdaten!$I$51\n+E1_Projektdaten!$D$52*(AD57-1=E1_Projektdaten!$I$52)*(1+Eing_allg_Teuerung/100)^E1_Projektdaten!$I$52\n+E1_Projektdaten!$D$53*(AD57-1=E1_Projektdaten!$I$53)*(1+Eing_allg_Teuerung/100)^E1_Projektdaten!$I$53\n+(Gesamtinvestition-SUM(E1_Projektdaten!$D$54:$D$55))*SUMPRODUCT((E1_Projektdaten!$D$58:$D$60=B57)*E1_Projektdaten!$F$58:$F$60)/100+AF56-N57","v":0},{"$f":"IF(ISNUMBER(IRR((AJ$36:AJ56,AI57))),IRR((AJ$36:AJ56,AI57)),\"-\")","v":"-"},21,0,0]
[null,22,{"$f":"(SUMPRODUCT((E3_Verbraucher!$D$21:$XFD$21<B1_Berechnungen!B58)*E3_Verbraucher!$D$18:$XFD$18)+SUMPRODUCT((E3_Verbraucher!$D$21:$XFD$21=B1_Berechnungen!B58)*E3_Verbraucher!$D$18:$XFD$18*E3_Verbraucher!$D$20:$XFD$20))/(100-Eing_Netzverluste)*100*(1-E1_Projektdaten!$D$19/100)^(B1_Berechnungen!B58-E1_Projektdaten!$D$22)","v":0},{"v":0,"d":"0.00"},0,0,0,{"$f":"($F$19*(1+$G$19)^(B58-B$36)+$F$20*(1+$G$20)^(B58-B$36))*(B58>=E1_Projektdaten!$D$22)*VLOOKUP(B58,E1_Projektdaten!$D$58:$I$60,6)/100","v":0},{"$f":"$F$21*(1+$G$21)^(B58-B$36)*(B58>=E1_Projektdaten!$D$22)*VLOOKUP(B58,E1_Projektdaten!$D$58:$I$60,6)/100","v":0},0,null,null,0,{"$f":"+(E1_Projektdaten!$D$48*(1+Eing_allg_Teuerung/100)^(E1_Projektdaten!$I$48*ROUNDDOWN((AD58-1)/E1_Projektdaten!$I$48,0))/E1_Projektdaten!$I$48\n+E1_Projektdaten!$D$49*(1+Eing_allg_Teuerung/100)^(E1_Projektdaten!$I$49*ROUNDDOWN((AD58-1)/E1_Projektdaten!$I$49,0))/E1_Projektdaten!$I$49\n+E1_Projektdaten!$D$50*(1+Eing_allg_Teuerung/100)^(E1_Projektdaten!$I$50*ROUNDDOWN((AD58-1)/E1_Projektdaten!$I$50,0))/E1_Projektdaten!$I$50\n+E1_Projektdaten!$D$51*(1+Eing_allg_Teuerung/100)^(E1_Projektdaten!$I$51*ROUNDDOWN((AD58-1)/E1_Projektdaten!$I$51,0))/E1_Projektdaten!$I$51\n+E1_Projektdaten!$D$52*(1+Eing_allg_Teuerung/100)^(E1_Projektdaten!$I$52*ROUNDDOWN((AD58-1)/E1_Projektdaten!$I$52,0))/E1_Projektdaten!$I$52\n+E1_Projektdaten!$D$53*(1+Eing_allg_Teuerung/100)^(E1_Projektdaten!$I$53*ROUNDDOWN((AD58-1)/E1_Projektdaten!$I$53,0))/E1_Projektdaten!$I$53\n)*((AD58)>0)*VLOOKUP(B58,E1_Projektdaten!$D$58:$I$60,6\n)/100","v":0},0,{"$f":"SUM((SUMPRODUCT((E3_Verbraucher!$D$21:$XFD$21<B1_Berechnungen!B58)*E3_Verbraucher!$D$25:$XFD$25)+SUMPRODUCT((E3_Verbraucher!$D$21:$XFD$21=B1_Berechnungen!B58)*E3_Verbraucher!$D$25:$XFD$25*E3_Verbraucher!$D$20:$XFD$20))*(1+$G$24)^(B58-B$36),(SUMPRODUCT((E3_Verbraucher!$D$21:$XFD$21<B1_Berechnungen!B58)*E3_Verbraucher!$D$26:$XFD$26)+SUMPRODUCT((E3_Verbraucher!$D$21:$XFD$21=B1_Berechnungen!B58)*E3_Verbraucher!$D$26:$XFD$26*E3_Verbraucher!$D$20:$XFD$20))*((1+$G$24)*(1-E1_Projektdaten!$D$19/100))^(B58-B$36))","v":0},{"$f":"SUMPRODUCT((E3_Verbraucher!$D$21:$XFD$21=B1_Berechnungen!B58)*E3_Verbraucher!$D$23:$XFD$23)","v":0},{"$f":"SUM(jährlicher_Förderbeitrag*(B58-Erstauszahlung_jährlFörderung<=Eing_Förderung_wiederholend_Laufzeit-1)*(B58>=E1_Projektdaten!$D$83),E1_Projektdaten!$D$76*(B58=E1_Projektdaten!$D$77),E1_Projektdaten!$D$78*(B58=E1_Projektdaten!$D$79))","v":0},null,null,0,0,0,{"$f":"E1_Projektdaten!$D$48*(AD58-1=E1_Projektdaten!$I$48)*(1+Eing_allg_Teuerung/100)^E1_Projektdaten!$I$48\n+E1_Projektdaten!$D$49*(AD58-1=E1_Projektdaten!$I$49)*(1+Eing_allg_Teuerung/100)^E1_Projektdaten!$I$49\n+E1_Projektdaten!$D$50*(AD58-1=E1_Projektdaten!$I$50)*(1+Eing_allg_Teuerung/100)^E1_Projektdaten!$I$50\n+E1_Projektdaten!$D$51*(AD58-1=E1_Projektdaten!$I$51)*(1+Eing_allg_Teuerung/100)^E1_Projektdaten!$I$51\n+E1_Projektdaten!$D$52*(AD58-1=E1_Projektdaten!$I$52)*(1+Eing_allg_Teuerung/100)^E1_Projektdaten!$I$52\n+E1_Projektdaten!$D$53*(AD58-1=E1_Projektdaten!$I$53)*(1+Eing_allg_Teuerung/100)^E1_Projektdaten!$I$53\n+Gesamtinvestition*SUMPRODUCT((E1_Projektdaten!$D$58:$D$60=B58)*E1_Projektdaten!$F$58:$F$60)/100","v":0},0,0,0,0,null,{"$f":"MAX(B1_Berechnungen!B58+1-E1_Projektdaten!$D$22,0)","v":23},0,{"$f":"E1_Projektdaten!$D$48*(AD58-1=E1_Projektdaten!$I$48)*(1+Eing_allg_Teuerung/100)^E1_Projektdaten!$I$48\n+E1_Projektdaten!$D$49*(AD58-1=E1_Projektdaten!$I$49)*(1+Eing_allg_Teuerung/100)^E1_Projektdaten!$I$49\n+E1_Projektdaten!$D$50*(AD58-1=E1_Projektdaten!$I$50)*(1+Eing_allg_Teuerung/100)^E1_Projektdaten!$I$50\n+E1_Projektdaten!$D$51*(AD58-1=E1_Projektdaten!$I$51)*(1+Eing_allg_Teuerung/100)^E1_Projektdaten!$I$51\n+E1_Projektdaten!$D$52*(AD58-1=E1_Projektdaten!$I$52)*(1+Eing_allg_Teuerung/100)^E1_Projektdaten!$I$52\n+E1_Projektdaten!$D$53*(AD58-1=E1_Projektdaten!$I$53)*(1+Eing_allg_Teuerung/100)^E1_Projektdaten!$I$53\n+(Gesamtinvestition-SUM(E1_Projektdaten!$D$54:$D$55))*SUMPRODUCT((E1_Projektdaten!$D$58:$D$60=B58)*E1_Projektdaten!$F$58:$F$60)/100+AF57-N58","v":0},{"$f":"IF(ISNUMBER(IRR((AJ$36:AJ57,AI58))),IRR((AJ$36:AJ57,AI58)),\"-\")","v":"-"},22,0,0]
[null,23,{"$f":"(SUMPRODUCT((E3_Verbraucher!$D$21:$XFD$21<B1_Berechnungen!B59)*E3_Verbraucher!$D$18:$XFD$18)+SUMPRODUCT((E3_Verbraucher!$D$21:$XFD$21=B1_Berechnungen!B59)*E3_Verbraucher!$D$18:$XFD$18*E3_Verbraucher!$D$20:$XFD$20))/(100-Eing_Netzverluste)*100*(1-E1_Projektdaten!$D$19/100)^(B1_Berechnungen!B59-E1_Projektdaten!$D$22)","v":0},{"v":0,"d":"0.00"},0,0,0,{"$f":"($F$19*(1+$G$19)^(B59-B$36)+$F$20*(1+$G$20)^(B59-B$36))*(B59>=E1_Projektdaten!$D$22)*VLOOKUP(B59,E1_Projektdaten!$D$58:$I$60,6)/100","v":0},{"$f":"$F$21*(1+$G$21)^(B59-B$36)*(B59>=E1_Projektdaten!$D$22)*VLOOKUP(B59,E1_Projektdaten!$D$58:$I$60,6)/100","v":0},0,null,null,0,{"$f":"+(E1_Projektdaten!$D$48*(1+Eing_allg_Teuerung/100)^(E1_Projektdaten!$I$48*ROUNDDOWN((AD59-1)/E1_Projektdaten!$I$48,0))/E1_Projektdaten!$I$48\n+E1_Projektdaten!$D$49*(1+Eing_allg_Teuerung/100)^(E1_Projektdaten!$I$49*ROUNDDOWN((AD59-1)/E1_Projektdaten!$I$49,0))/E1_Projektdaten!$I$49\n+E1_Projektdaten!$D$50*(1+Eing_allg_Teuerung/100)^(E1_Projektdaten!$I$50*ROUNDDOWN((AD59-1)/E1_Projektdaten!$I$50,0))/E1_Projektdaten!$I$50\n+E1_Projektdaten!$D$51*(1+Eing_allg_Teuerung/100)^(E1_Projektdaten!$I$51*ROUNDDOWN((AD59-1)/E1_Projektdaten!$I$51,0))/E1_Projektdaten!$I$51\n+E1_Projektdaten!$D$52*(1+Eing_allg_Teuerung/100)^(E1_Projektdaten!$I$52*ROUNDDOWN((AD59-1)/E1_Projektdaten!$I$52,0))/E1_Projektdaten!$I$52\n+E1_Projektdaten!$D$53*(1+Eing_allg_Teuerung/100)^(E1_Projektdaten!$I$53*ROUNDDOWN((AD59-1)/E1_Projektdaten!$I$53,0))/E1_Projektdaten!$I$53\n)*((AD59)>0)*VLOOKUP(B59,E1_Projektdaten!$D$58:$I$60,6\n)/100","v":0},0,{"$f":"SUM((SUMPRODUCT((E3_Verbraucher!$D$21:$XFD$21<B1_Berechnungen!B59)*E3_Verbraucher!$D$25:$XFD$25)+SUMPRODUCT((E3_Verbraucher!$D$21:$XFD$21=B1_Berechnungen!B59)*E3_Verbraucher!$D$25:$XFD$25*E3_Verbraucher!$D$20:$XFD$20))*(1+$G$24)^(B59-B$36),(SUMPRODUCT((E3_Verbraucher!$D$21:$XFD$21<B1_Berechnungen!B59)*E3_Verbraucher!$D$26:$XFD$26)+SUMPRODUCT((E3_Verbraucher!$D$21:$XFD$21=B1_Berechnungen!B59)*E3_Verbraucher!$D$26:$XFD$26*E3_Verbraucher!$D$20:$XFD$20))*((1+$G$24)*(1-E1_Projektdaten!$D$19/100))^(B59-B$36))","v":0},{"$f":"SUMPRODUCT((E3_Verbraucher!$D$21:$XFD$21=B1_Berechnungen!B59)*E3_Verbraucher!$D$23:$XFD$23)","v":0},{"$f":"SUM(jährlicher_Förderbeitrag*(B59-Erstauszahlung_jährlFörderung<=Eing_Förderung_wiederholend_Laufzeit-1)*(B59>=E1_Projektdaten!$D$83),E1_Projektdaten!$D$76*(B59=E1_Projektdaten!$D$77),E1_Projektdaten!$D$78*(B59=E1_Projektdaten!$D$79))","v":0},null,null,0,0,0,{"$f":"E1_Projektdaten!$D$48*(AD59-1=E1_Projektdaten!$I$48)*(1+Eing_allg_Teuerung/100)^E1_Projektdaten!$I$48\n+E1_Projektdaten!$D$49*(AD59-1=E1_Projektdaten!$I$49)*(1+Eing_allg_Teuerung/100)^E1_Projektdaten!$I$49\n+E1_Projektdaten!$D$50*(AD59-1=E1_Projektdaten!$I$50)*(1+Eing_allg_Teuerung/100)^E1_Projektdaten!$I$50\n+E1_Projektdaten!$D$51*(AD59-1=E1_Projektdaten!$I$51)*(1+Eing_allg_Teuerung/100)^E1_Projektdaten!$I$51\n+E1_Projektdaten!$D$52*(AD59-1=E1_Projektdaten!$I$52)*(1+Eing_allg_Teuerung/100)^E1_Projektdaten!$I$52\n+E1_Projektdaten!$D$53*(AD59-1=E1_Projektdaten!$I$53)*(1+Eing_allg_Teuerung/100)^E1_Projektdaten!$I$53\n+Gesamtinvestition*SUMPRODUCT((E1_Projektdaten!$D$58:$D$60=B59)*E1_Projektdaten!$F$58:$F$60)/100","v":0},0,0,0,0,null,{"$f":"MAX(B1_Berechnungen!B59+1-E1_Projektdaten!$D$22,0)","v":24},0,{"$f":"E1_Projektdaten!$D$48*(AD59-1=E1_Projektdaten!$I$48)*(1+Eing_allg_Teuerung/100)^E1_Projektdaten!$I$48\n+E1_Projektdaten!$D$49*(AD59-1=E1_Projektdaten!$I$49)*(1+Eing_allg_Teuerung/100)^E1_Projektdaten!$I$49\n+E1_Projektdaten!$D$50*(AD59-1=E1_Projektdaten!$I$50)*(1+Eing_allg_Teuerung/100)^E1_Projektdaten!$I$50\n+E1_Projektdaten!$D$51*(AD59-1=E1_Projektdaten!$I$51)*(1+Eing_allg_Teuerung/100)^E1_Projektdaten!$I$51\n+E1_Projektdaten!$D$52*(AD59-1=E1_Projektdaten!$I$52)*(1+Eing_allg_Teuerung/100)^E1_Projektdaten!$I$52\n+E1_Projektdaten!$D$53*(AD59-1=E1_Projektdaten!$I$53)*(1+Eing_allg_Teuerung/100)^E1_Projektdaten!$I$53\n+(Gesamtinvestition-SUM(E1_Projektdaten!$D$54:$D$55))*SUMPRODUCT((E1_Projektdaten!$D$58:$D$60=B59)*E1_Projektdaten!$F$58:$F$60)/100+AF58-N59","v":0},{"$f":"IF(ISNUMBER(IRR((AJ$36:AJ58,AI59))),IRR((AJ$36:AJ58,AI59)),\"-\")","v":"-"},23,0,0]
[null,24,{"$f":"(SUMPRODUCT((E3_Verbraucher!$D$21:$XFD$21<B1_Berechnungen!B60)*E3_Verbraucher!$D$18:$XFD$18)+SUMPRODUCT((E3_Verbraucher!$D$21:$XFD$21=B1_Berechnungen!B60)*E3_Verbraucher!$D$18:$XFD$18*E3_Verbraucher!$D$20:$XFD$20))/(100-Eing_Netzverluste)*100*(1-E1_Projektdaten!$D$19/100)^(B1_Berechnungen!B60-E1_Projektdaten!$D$22)","v":0},{"v":0,"d":"0.00"},0,0,0,{"$f":"($F$19*(1+$G$19)^(B60-B$36)+$F$20*(1+$G$20)^(B60-B$36))*(B60>=E1_Projektdaten!$D$22)*VLOOKUP(B60,E1_Projektdaten!$D$58:$I$60,6)/100","v":0},{"$f":"$F$21*(1+$G$21)^(B60-B$36)*(B60>=E1_Projektdaten!$D$22)*VLOOKUP(B60,E1_Projektdaten!$D$58:$I$60,6)/100","v":0},0,null,null,0,{"$f":"+(E1_Projektdaten!$D$48*(1+Eing_allg_Teuerung/100)^(E1_Projektdaten!$I$48*ROUNDDOWN((AD60-1)/E1_Projektdaten!$I$48,0))/E1_Projektdaten!$I$48\n+E1_Projektdaten!$D$49*(1+Eing_allg_Teuerung/100)^(E1_Projektdaten!$I$49*ROUNDDOWN((AD60-1)/E1_Projektdaten!$I$49,0))/E1_Projektdaten!$I$49\n+E1_Projektdaten!$D$50*(1+Eing_allg_Teuerung/100)^(E1_Projektdaten!$I$50*ROUNDDOWN((AD60-1)/E1_Projektdaten!$I$50,0))/E1_Projektdaten!$I$50\n+E1_Projektdaten!$D$51*(1+Eing_allg_Teuerung/100)^(E1_Projektdaten!$I$51*ROUNDDOWN((AD60-1)/E1_Projektdaten!$I$51,0))/E1_Projektdaten!$I$51\n+E1_Projektdaten!$D$52*(1+Eing_allg_Teuerung/100)^(E1_Projektdaten!$I$52*ROUNDDOWN((AD60-1)/E1_Projektdaten!$I$52,0))/E1_Projektdaten!$I$52\n+E1_Projektdaten!$D$53*(1+Eing_allg_Teuerung/100)^(E1_Projektdaten!$I$53*ROUNDDOWN((AD60-1)/E1_Projektdaten!$I$53,0))/E1_Projektdaten!$I$53\n)*((AD60)>0)*VLOOKUP(B60,E1_Projektdaten!$D$58:$I$60,6\n)/100","v":0},0,{"$f":"SUM((SUMPRODUCT((E3_Verbraucher!$D$21:$XFD$21<B1_Berechnungen!B60)*E3_Verbraucher!$D$25:$XFD$25)+SUMPRODUCT((E3_Verbraucher!$D$21:$XFD$21=B1_Berechnungen!B60)*E3_Verbraucher!$D$25:$XFD$25*E3_Verbraucher!$D$20:$XFD$20))*(1+$G$24)^(B60-B$36),(SUMPRODUCT((E3_Verbraucher!$D$21:$XFD$21<B1_Berechnungen!B60)*E3_Verbraucher!$D$26:$XFD$26)+SUMPRODUCT((E3_Verbraucher!$D$21:$XFD$21=B1_Berechnungen!B60)*E3_Verbraucher!$D$26:$XFD$26*E3_Verbraucher!$D$20:$XFD$20))*((1+$G$24)*(1-E1_Projektdaten!$D$19/100))^(B60-B$36))","v":0},{"$f":"SUMPRODUCT((E3_Verbraucher!$D$21:$XFD$21=B1_Berechnungen!B60)*E3_Verbraucher!$D$23:$XFD$23)","v":0},{"$f":"SUM(jährlicher_Förderbeitrag*(B60-Erstauszahlung_jährlFörderung<=Eing_Förderung_wiederholend_Laufzeit-1)*(B60>=E1_Projektdaten!$D$83),E1_Projektdaten!$D$76*(B60=E1_Projektdaten!$D$77),E1_Projektdaten!$D$78*(B60=E1_Projektdaten!$D$79))","v":0},null,null,0,0,0,{"$f":"E1_Projektdaten!$D$48*(AD60-1=E1_Projektdaten!$I$48)*(1+Eing_allg_Teuerung/100)^E1_Projektdaten!$I$48\n+E1_Projektdaten!$D$49*(AD60-1=E1_Projektdaten!$I$49)*(1+Eing_allg_Teuerung/100)^E1_Projektdaten!$I$49\n+E1_Projektdaten!$D$50*(AD60-1=E1_Projektdaten!$I$50)*(1+Eing_allg_Teuerung/100)^E1_Projektdaten!$I$50\n+E1_Projektdaten!$D$51*(AD60-1=E1_Projektdaten!$I$51)*(1+Eing_allg_Teuerung/100)^E1_Projektdaten!$I$51\n+E1_Projektdaten!$D$52*(AD60-1=E1_Projektdaten!$I$52)*(1+Eing_allg_Teuerung/100)^E1_Projektdaten!$I$52\n+E1_Projektdaten!$D$53*(AD60-1=E1_Projektdaten!$I$53)*(1+Eing_allg_Teuerung/100)^E1_Projektdaten!$I$53\n+Gesamtinvestition*SUMPRODUCT((E1_Projektdaten!$D$58:$D$60=B60)*E1_Projektdaten!$F$58:$F$60)/100","v":0},0,0,0,0,null,{"$f":"MAX(B1_Berechnungen!B60+1-E1_Projektdaten!$D$22,0)","v":25},0,{"$f":"E1_Projektdaten!$D$48*(AD60-1=E1_Projektdaten!$I$48)*(1+Eing_allg_Teuerung/100)^E1_Projektdaten!$I$48\n+E1_Projektdaten!$D$49*(AD60-1=E1_Projektdaten!$I$49)*(1+Eing_allg_Teuerung/100)^E1_Projektdaten!$I$49\n+E1_Projektdaten!$D$50*(AD60-1=E1_Projektdaten!$I$50)*(1+Eing_allg_Teuerung/100)^E1_Projektdaten!$I$50\n+E1_Projektdaten!$D$51*(AD60-1=E1_Projektdaten!$I$51)*(1+Eing_allg_Teuerung/100)^E1_Projektdaten!$I$51\n+E1_Projektdaten!$D$52*(AD60-1=E1_Projektdaten!$I$52)*(1+Eing_allg_Teuerung/100)^E1_Projektdaten!$I$52\n+E1_Projektdaten!$D$53*(AD60-1=E1_Projektdaten!$I$53)*(1+Eing_allg_Teuerung/100)^E1_Projektdaten!$I$53\n+(Gesamtinvestition-SUM(E1_Projektdaten!$D$54:$D$55))*SUMPRODUCT((E1_Projektdaten!$D$58:$D$60=B60)*E1_Projektdaten!$F$58:$F$60)/100+AF59-N60","v":0},{"$f":"IF(ISNUMBER(IRR((AJ$36:AJ59,AI60))),IRR((AJ$36:AJ59,AI60)),\"-\")","v":"-"},24,0,0]

{"sheet":"A1_Ergebnisse","index":5,"n_rows":42,"n_cols":14,"rows_kept":42,"merged":[[11,2,11,6],[42,7,58,12]]}
[600,"QM Holzheizwerke - Wirtschaftlichkeitsmodell - Ergebnisse",{"$nulls":5},"QM Holzheizwerke - Wirtschaftlichkeitsmodell - Ergebnisse"]
[]
[101,null,"Eingabefeld",{"$nulls":4},"Energie",null,{"$f":"D32","v":0},{"$f":"E32","v":0},{"$f":"\"bis \"&B1_Berechnungen!B60","v":"bis 24"},null,650]
[105,"(exkl. MWST)",{"$nulls":6},"Netzauslastung",{"$f":"VLOOKUP(A1_Ergebnisse!J$3,B1_Berechnungen!$B$36:$AH$60,3)/100","v":{"v":0,"d":"0%"}},{"$f":"VLOOKUP(A1_Ergebnisse!K$3,B1_Berechnungen!$B$36:$AH$60,3)/100","v":{"v":0,"d":"0%"}},null,null,553]
[{"$nulls":8},"gelieferte Wärmemenge",{"$f":"(VLOOKUP(A1_Ergebnisse!J$3,B1_Berechnungen!$B$36:$AH$60,2))*((100-Eing_Netzverluste))/100","v":0},{"$f":"(VLOOKUP(A1_Ergebnisse!K$3,B1_Berechnungen!$B$36:$AH$60,2))*((100-Eing_Netzverluste))/100","v":0},{"$f":"SUM(B1_Berechnungen!C36:C60)*((100-Eing_Netzverluste))/100","v":0},"MWh/a",651]
[106,"Projekt/Variante:",{"$f":"IF(E1_Projektdaten!C7=0,\"\",E1_Projektdaten!C7)","v":""},{"$nulls":5},"mittlere Kosten bezogen auf Wärmeverkauf",{"$f":"(VLOOKUP(A1_Ergebnisse!J$3,B1_Berechnungen!$B$36:$AH$60,14))/J5","v":{"$error":"#DIV/0!"}},{"$f":"(VLOOKUP(A1_Ergebnisse!K$3,B1_Berechnungen!$B$36:$AH$60,14))/K5","v":{"$error":"#DIV/0!"}},{"$f":"SUM(B1_Berechnungen!O36:O60)/L5","v":{"$error":"#DIV/0!"}},"CHF/MWh",652]
[null,null,{"$f":"IF(E1_Projektdaten!C8=0,\"\",E1_Projektdaten!C8)","v":""}]
[null,null,{"$f":"IF(E1_Projektdaten!C9=0,\"\",E1_Projektdaten!C9)","v":""},{"$nulls":4},"Entwicklung Netzauslastung",{"$nulls":5},653]
[]
[107,"Erfasst von:",{"$f":"IF(E1_Projektdaten!C11=0,\"\",E1_Projektdaten!C11)","v":""}]
[]
[501,"Warnungen:",{"$f":"IF(E1_Projektdaten!C13<>\"\",\"Es existieren Warnungen im Register 'E1_Projektdaten'!\",\"\")","v":"Es existieren Warnungen im Register 'E1_Projektdaten'!"}]
[]
[110,"Wärmemengen, Netz, Projektstart"]
[111,null,"Gesamter Wärmebezug der Abnehmer",{"$f":"Eing_verkaufteWM","v":0},"MWh/a"]
[112,null,"Netzverluste",{"$f":"Eing_Netzverluste","v":10},"%"]
[]
[114,null,"Jahr des Projektbeginns",{"$f":"Eing_Beginnjahr","v":0}]
[115,null,"Jahr der Inbetriebnahme / erste Wärmelieferung",{"$f":"E1_Projektdaten!D22","v":0}]
[]
[610,"Investitionskosten"]
[151,null,"Baukosten Gebäude Umgebung",{"$f":"Eing_Kosten_Bau","v":0},"CHF",{"$nulls":4},{"$f":"D32","v":0},{"$f":"E32","v":0},{"$f":"B1_Berechnungen!B60","v":24}]
[612,null,"Kesselanlagen und Installationen",{"$f":"SUM(E1_Projektdaten!D49:D51)","v":0},"CHF",null,null,"Bilanz","Kreditstand",{"$f":"(VLOOKUP(A1_Ergebnisse!J$22,B1_Berechnungen!$B$36:$AH$60,30))","v":0},{"$f":"(VLOOKUP(A1_Ergebnisse!K$22,B1_Berechnungen!$B$36:$AH$60,30))","v":0},{"$f":"(VLOOKUP(A1_Ergebnisse!L$22,B1_Berechnungen!$B$36:$AH$60,30))","v":0},null,587]
[613,null,"Wärmenetz inkl. Tiefbau und Hausstationen",{"$f":"SUM(E1_Projektdaten!D52:D54)","v":0},"CHF",{"$nulls":3},"Restwert der Anlage",{"$f":"(VLOOKUP(A1_Ergebnisse!J$22,B1_Berechnungen!$B$36:$AH$60,31))","v":0},{"$f":"(VLOOKUP(A1_Ergebnisse!K$22,B1_Berechnungen!$B$36:$AH$60,31))","v":0},{"$f":"(VLOOKUP(A1_Ergebnisse!L$22,B1_Berechnungen!$B$36:$AH$60,31))","v":0},null,588]
[157,null,"Planung und Unvorhergesehenes",{"$f":"Eing_Kosten_Planung_QM","v":0},"CHF",{"$nulls":3},"Verzinsung Investition",{"$f":"(VLOOKUP(A1_Ergebnisse!J$22,B1_Berechnungen!$B$36:$AH$60,32))","v":"-"},{"$f":"(VLOOKUP(A1_Ergebnisse!K$22,B1_Berechnungen!$B$36:$AH$60,32))","v":"-"},{"$f":"(VLOOKUP(A1_Ergebnisse!L$22,B1_Berechnungen!$B$36:$AH$60,32))","v":"-"},null,589]
[158,null,"Gesamte Investitionskosten",{"$f":"Gesamtinvestition","v":0},"CHF"]
[615,"Fremdfinanzierung / Förderung",{"$nulls":11},591]
[161,null,"Kredite/Darlehen",{"$f":"SUM(Eing_Kredit_1,Eing_Kredit_2)","v":0},"CHF"]
[191,null,"Gesamtsumme Förderung",{"$f":"SUM(Einmaliger_Förderbeitrag_1,Einmaliger_Förderbeitrag_2,(jährlicher_Förderbeitrag*Eing_Förderung_wiederholend_Laufzeit))","v":0},"CHF"]
[531,null,"max. Eigenmittelbedarf",{"$f":"maxEigenkapital","v":0},"CHF","im Jahr",{"$f":"B1_Berechnungen!I29","v":0}]
[]
[620,"Jahreskosten",null,{"$f":"D19","v":0},null,{"$f":"\"bis \"&B1_Berechnungen!B60","v":"bis 24"}]
[{"$nulls":3},"[CHF/a]","[CHF/a]","[CHF]"]
[621,"Aufwand","Energiekosten",{"$f":"SUM(VLOOKUP(A1_Ergebnisse!D32,B1_Berechnungen!$B$36:$AH$60,4),VLOOKUP(A1_Ergebnisse!D32,B1_Berechnungen!$B$36:$AH$60,5),VLOOKUP(A1_Ergebnisse!D32,B1_Berechnungen!$B$36:$AH$60,6))","v":0},{"$f":"SUM(VLOOKUP(A1_Ergebnisse!E32,B1_Berechnungen!$B$36:$AH$60,4),VLOOKUP(A1_Ergebnisse!E32,B1_Berechnungen!$B$36:$AH$60,5),VLOOKUP(A1_Ergebnisse!E32,B1_Berechnungen!$B$36:$AH$60,6))","v":0},{"$f":"SUM(B1_Berechnungen!E36:G60)","v":0}]
[622,null,"Betrieb, Unterhalt , Sonstiges",{"$f":"SUM(VLOOKUP(A1_Ergebnisse!D$32,B1_Berechnungen!$B$36:$AH$60,7),VLOOKUP(A1_Ergebnisse!D$32,B1_Berechnungen!$B$36:$AH$60,8),VLOOKUP(A1_Ergebnisse!D$32,B1_Berechnungen!$B$36:$AH$60,9),VLOOKUP(A1_Ergebnisse!D$32,B1_Berechnungen!$B$36:$AH$60,10))","v":0},{"$f":"SUM(VLOOKUP(A1_Ergebnisse!E$32,B1_Berechnungen!$B$36:$AH$60,7),VLOOKUP(A1_Ergebnisse!E$32,B1_Berechnungen!$B$36:$AH$60,8),VLOOKUP(A1_Ergebnisse!E$32,B1_Berechnungen!$B$36:$AH$60,9),VLOOKUP(A1_Ergebnisse!E$32,B1_Berechnungen!$B$36:$AH$60,10))","v":0},{"$f":"SUM(B1_Berechnungen!H36:J60,B1_Berechnungen!K36:K60)","v":0}]
[623,null,"Zinsen, Abschreibung",{"$f":"SUM(VLOOKUP(A1_Ergebnisse!D$32,B1_Berechnungen!$B$36:$AH$60,12),VLOOKUP(A1_Ergebnisse!D$32,B1_Berechnungen!$B$36:$AH$60,13))","v":0},{"$f":"SUM(VLOOKUP(A1_Ergebnisse!E$32,B1_Berechnungen!$B$36:$AH$60,12),VLOOKUP(A1_Ergebnisse!E$32,B1_Berechnungen!$B$36:$AH$60,13))","v":0},{"$f":"SUM(B1_Berechnungen!M36:N60)","v":0}]
[624,null,"Total Aufwand",{"$f":"SUM(D34:D36)","v":0},{"$f":"SUM(E34:E36)","v":0},0]
[625,"Ertrag","Wärmeverkauf + Anschlussbeitrag",{"$f":"SUM(VLOOKUP(A1_Ergebnisse!D$32,B1_Berechnungen!$B$36:$AH$60,15),VLOOKUP(A1_Ergebnisse!D$32,B1_Berechnungen!$B$36:$AH$60,16))","v":0},{"$f":"SUM(VLOOKUP(A1_Ergebnisse!E$32,B1_Berechnungen!$B$36:$AH$60,15),VLOOKUP(A1_Ergebnisse!E$32,B1_Berechnungen!$B$36:$AH$60,16))","v":0},{"$f":"SUM(B1_Berechnungen!P36:Q60)","v":0}]
[626,null,"Fördergelder, Sonstiges",{"$f":"SUM(VLOOKUP(A1_Ergebnisse!D$32,B1_Berechnungen!$B$36:$AH$60,17),VLOOKUP(A1_Ergebnisse!D$32,B1_Berechnungen!$B$36:$AH$60,18))","v":0},{"$f":"SUM(VLOOKUP(A1_Ergebnisse!E$32,B1_Berechnungen!$B$36:$AH$60,17),VLOOKUP(A1_Ergebnisse!E$32,B1_Berechnungen!$B$36:$AH$60,18))","v":0},{"$f":"SUM(B1_Berechnungen!R36:S60)","v":0}]
[627,null,"Total Ertrag",{"$f":"SUM(D38:D39)","v":0},{"$f":"SUM(E38:E39)","v":0},{"$f":"SUM(F38:F39)","v":0}]
[]
[590,{"$nulls":6},"Bemerkungen",{"$nulls":5},690]

{"sheet":"A2_NPV-Daten","index":6,"n_rows":80,"n_cols":22,"rows_kept":80,"merged":[[6,2,7,2],[6,3,7,3],[6,4,7,4],[6,5,7,5]]}
[900,"QM Holzheizwerke - Zusammenstellung für KliK-Tool \"Nachweis der Zusätzlichkeit von Fernwärmeprojekten\""]
[]
[104,null,"Ausgabefelder"]
[]
[910,"Register Inputgrössen; Abschnitt Referenzentwicklung"]
[911,null,"Schlüsselkunden (oder Gruppe von Schlüsselkunden gleicher Charakteristik)"]
[null,null,"Bezeichnung","Gebäudetyp & Bezugscharakteristik","Leistung [kW]","Jahreswärmebedarf [MWh/a]"]
[]
[null,null,{"$f":"E3_Verbraucher!$D15","v":0},null,{"$f":"E3_Verbraucher!$D19","v":0},{"$f":"E3_Verbraucher!$D18","v":0}]
[null,null,{"$f":"E3_Verbraucher!$E15","v":0},null,{"$f":"E3_Verbraucher!$E19","v":0},{"$f":"E3_Verbraucher!$E18","v":0}]
[null,null,{"$f":"E3_Verbraucher!$F15","v":0},null,{"$f":"E3_Verbraucher!$F19","v":0},{"$f":"E3_Verbraucher!$F18","v":0}]
[null,null,{"$f":"E3_Verbraucher!$G15","v":0},null,{"$f":"E3_Verbraucher!$G19","v":0},{"$f":"E3_Verbraucher!$G18","v":0}]
[null,null,{"$f":"E3_Verbraucher!$H15","v":0},null,{"$f":"E3_Verbraucher!$H19","v":0},{"$f":"E3_Verbraucher!$H18","v":0}]
[null,null,{"$f":"E3_Verbraucher!$I15","v":0},null,{"$f":"E3_Verbraucher!$I19","v":0},{"$f":"E3_Verbraucher!$I18","v":0}]
[null,null,{"$f":"E3_Verbraucher!$J15","v":0},null,{"$f":"E3_Verbraucher!$J19","v":0},{"$f":"E3_Verbraucher!$J18","v":0}]
[null,null,{"$f":"E3_Verbraucher!$K15","v":0},null,{"$f":"E3_Verbraucher!$K19","v":0},{"$f":"E3_Verbraucher!$K18","v":0}]
[null,null,{"$f":"E3_Verbraucher!$L15","v":0},null,{"$f":"E3_Verbraucher!$L19","v":0},{"$f":"E3_Verbraucher!$L18","v":0}]
[null,null,{"$f":"E3_Verbraucher!$M15","v":0},null,{"$f":"E3_Verbraucher!$M19","v":0},{"$f":"E3_Verbraucher!$M18","v":0}]
[null,null,{"$f":"E3_Verbraucher!$N15","v":0},null,{"$f":"E3_Verbraucher!$N19","v":0},{"$f":"E3_Verbraucher!$N18","v":0}]
[null,null,{"$f":"E3_Verbraucher!$O15","v":0},null,{"$f":"E3_Verbraucher!$O19","v":0},{"$f":"E3_Verbraucher!$O18","v":0}]
[null,null,{"$f":"E3_Verbraucher!$P15","v":0},null,{"$f":"E3_Verbraucher!$P19","v":0},{"$f":"E3_Verbraucher!$P18","v":0}]
[null,null,{"$f":"E3_Verbraucher!$Q15","v":0},null,{"$f":"E3_Verbraucher!$Q19","v":0},{"$f":"E3_Verbraucher!$Q18","v":0}]
[null,null,{"$f":"E3_Verbraucher!$R15","v":0},null,{"$f":"E3_Verbraucher!$R19","v":0},{"$f":"E3_Verbraucher!$R18","v":0}]
[null,null,"Schlüsselkunden (oder Gruppe von Schlüsselkunden gleicher Charakteristik)"]
[912,null,null,"Jahr Anschluss","Leistung im Vollausbau [kW] "]
[null,null,{"$f":"C9","v":0},{"$f":"E3_Verbraucher!$D21","v":0},{"$f":"E9","v":0}]
[null,null,{"$f":"C10","v":0},{"$f":"E3_Verbraucher!$E21","v":0},0]
[null,null,0,{"$f":"E3_Verbraucher!$F21","v":0},0]
[null,null,0,{"$f":"E3_Verbraucher!$G21","v":0},0]
[null,null,0,{"$f":"E3_Verbraucher!$H21","v":0},0]
[null,null,0,{"$f":"E3_Verbraucher!$I21","v":0},0]
[null,null,0,{"$f":"E3_Verbraucher!$J21","v":0},0]
[null,null,0,{"$f":"E3_Verbraucher!$K21","v":0},0]
[null,null,0,{"$f":"E3_Verbraucher!$L21","v":0},0]
[null,null,0,{"$f":"E3_Verbraucher!$M21","v":0},0]
[null,null,0,{"$f":"E3_Verbraucher!$N21","v":0},0]
[null,null,0,{"$f":"E3_Verbraucher!$O21","v":0},0]
[null,null,0,{"$f":"E3_Verbraucher!$P21","v":0},0]
[null,null,0,{"$f":"E3_Verbraucher!$Q21","v":0},0]
[null,null,0,{"$f":"E3_Verbraucher!$R21","v":0},0]
[]
[920,"Register Wärmebezug; Abschnitt Referenzentwicklung",null,{"$f":"E1_Projektdaten!D22","v":0},{"$f":"D42+1","v":1},{"$f":"E42+1","v":2},3,4,5,6,7,8,9,10,11,12,13,14,15]
[null,"Schlüsselkunden"]
[921,"Wärmebezug (Nutzenergie) (inkl. Auswirkungen Gebäudesanierung)"]
[null,{"$f":"C9","v":0},"[MWh/a]",{"$f":"E3_Verbraucher!$D18*(E3_Verbraucher!$D21<D$42)+E3_Verbraucher!$D18*(E3_Verbraucher!$D21=D$42)*E3_Verbraucher!$D20","v":0},{"$f":"E3_Verbraucher!$D18*(E3_Verbraucher!$D21<E$42)+E3_Verbraucher!$D18*(E3_Verbraucher!$D21=E$42)*E3_Verbraucher!$D20","v":0},{"$f":"E3_Verbraucher!$D18*(E3_Verbraucher!$D21<F$42)+E3_Verbraucher!$D18*(E3_Verbraucher!$D21=F$42)*E3_Verbraucher!$D20","v":0},{"$f":"E3_Verbraucher!$D18*(E3_Verbraucher!$D21<G$42)+E3_Verbraucher!$D18*(E3_Verbraucher!$D21=G$42)*E3_Verbraucher!$D20","v":0},{"$f":"E3_Verbraucher!$D18*(E3_Verbraucher!$D21<H$42)+E3_Verbraucher!$D18*(E3_Verbraucher!$D21=H$42)*E3_Verbraucher!$D20","v":0},{"$f":"E3_Verbraucher!$D18*(E3_Verbraucher!$D21<I$42)+E3_Verbraucher!$D18*(E3_Verbraucher!$D21=I$42)*E3_Verbraucher!$D20","v":0},{"$f":"E3_Verbraucher!$D18*(E3_Verbraucher!$D21<J$42)+E3_Verbraucher!$D18*(E3_Verbraucher!$D21=J$42)*E3_Verbraucher!$D20","v":0},{"$f":"E3_Verbraucher!$D18*(E3_Verbraucher!$D21<K$42)+E3_Verbraucher!$D18*(E3_Verbraucher!$D21=K$42)*E3_Verbraucher!$D20","v":0},{"$f":"E3_Verbraucher!$D18*(E3_Verbraucher!$D21<L$42)+E3_Verbraucher!$D18*(E3_Verbraucher!$D21=L$42)*E3_Verbraucher!$D20","v":0},{"$f":"E3_Verbraucher!$D18*(E3_Verbraucher!$D21<M$42)+E3_Verbraucher!$D18*(E3_Verbraucher!$D21=M$42)*E3_Verbraucher!$D20","v":0},{"$f":"E3_Verbraucher!$D18*(E3_Verbraucher!$D21<N$42)+E3_Verbraucher!$D18*(E3_Verbraucher!$D21=N$42)*E3_Verbraucher!$D20","v":0},{"$f":"E3_Verbraucher!$D18*(E3_Verbraucher!$D21<O$42)+E3_Verbraucher!$D18*(E3_Verbraucher!$D21=O$42)*E3_Verbraucher!$D20","v":0},{"$f":"E3_Verbraucher!$D18*(E3_Verbraucher!$D21<P$42)+E3_Verbraucher!$D18*(E3_Verbraucher!$D21=P$42)*E3_Verbraucher!$D20","v":0},{"$f":"E3_Verbraucher!$D18*(E3_Verbraucher!$D21<Q$42)+E3_Verbraucher!$D18*(E3_Verbraucher!$D21=Q$42)*E3_Verbraucher!$D20","v":0},{"$f":"E3_Verbraucher!$D18*(E3_Verbraucher!$D21<R$42)+E3_Verbraucher!$D18*(E3_Verbraucher!$D21=R$42)*E3_Verbraucher!$D20","v":0},{"$f":"E3_Verbraucher!$D18*(E3_Verbraucher!$D21<S$42)+E3_Verbraucher!$D18*(E3_Verbraucher!$D21=S$42)*E3_Verbraucher!$D20","v":0}]
[null,{"$f":"C10","v":0},"[MWh/a]",{"$f":"E3_Verbraucher!$E18*(E3_Verbraucher!$E21<D$42)+E3_Verbraucher!$E18*(E3_Verbraucher!$E21=D$42)*E3_Verbraucher!$E20","v":0},{"$f":"E3_Verbraucher!$E18*(E3_Verbraucher!$E21<E$42)+E3_Verbraucher!$E18*(E3_Verbraucher!$E21=E$42)*E3_Verbraucher!$E20","v":0},{"$f":"E3_Verbraucher!$E18*(E3_Verbraucher!$E21<F$42)+E3_Verbraucher!$E18*(E3_Verbraucher!$E21=F$42)*E3_Verbraucher!$E20","v":0},{"$f":"E3_Verbraucher!$E18*(E3_Verbraucher!$E21<G$42)+E3_Verbraucher!$E18*(E3_Verbraucher!$E21=G$42)*E3_Verbraucher!$E20","v":0},{"$f":"E3_Verbraucher!$E18*(E3_Verbraucher!$E21<H$42)+E3_Verbraucher!$E18*(E3_Verbraucher!$E21=H$42)*E3_Verbraucher!$E20","v":0},{"$f":"E3_Verbraucher!$E18*(E3_Verbraucher!$E21<I$42)+E3_Verbraucher!$E18*(E3_Verbraucher!$E21=I$42)*E3_Verbraucher!$E20","v":0},{"$f":"E3_Verbraucher!$E18*(E3_Verbraucher!$E21<J$42)+E3_Verbraucher!$E18*(E3_Verbraucher!$E21=J$42)*E3_Verbraucher!$E20","v":0},{"$f":"E3_Verbraucher!$E18*(E3_Verbraucher!$E21<K$42)+E3_Verbraucher!$E18*(E3_Verbraucher!$E21=K$42)*E3_Verbraucher!$E20","v":0},{"$f":"E3_Verbraucher!$E18*(E3_Verbraucher!$E21<L$42)+E3_Verbraucher!$E18*(E3_Verbraucher!$E21=L$42)*E3_Verbraucher!$E20","v":0},{"$f":"E3_Verbraucher!$E18*(E3_Verbraucher!$E21<M$42)+E3_Verbraucher!$E18*(E3_Verbraucher!$E21=M$42)*E3_Verbraucher!$E20","v":0},{"$f":"E3_Verbraucher!$E18*(E3_Verbraucher!$E21<N$42)+E3_Verbraucher!$E18*(E3_Verbraucher!$E21=N$42)*E3_Verbraucher!$E20","v":0},{"$f":"E3_Verbraucher!$E18*(E3_Verbraucher!$E21<O$42)+E3_Verbraucher!$E18*(E3_Verbraucher!$E21=O$42)*E3_Verbraucher!$E20","v":0},{"$f":"E3_Verbraucher!$E18*(E3_Verbraucher!$E21<P$42)+E3_Verbraucher!$E18*(E3_Verbraucher!$E21=P$42)*E3_Verbraucher!$E20","v":0},{"$f":"E3_Verbraucher!$E18*(E3_Verbraucher!$E21<Q$42)+E3_Verbraucher!$E18*(E3_Verbraucher!$E21=Q$42)*E3_Verbraucher!$E20","v":0},{"$f":"E3_Verbraucher!$E18*(E3_Verbraucher!$E21<R$42)+E3_Verbraucher!$E18*(E3_Verbraucher!$E21=R$42)*E3_Verbraucher!$E20","v":0},{"$f":"E3_Verbraucher!$E18*(E3_Verbraucher!$E21<S$42)+E3_Verbraucher!$E18*(E3_Verbraucher!$E21=S$42)*E3_Verbraucher!$E20","v":0}]
[null,0,"[MWh/a]",{"$f":"E3_Verbraucher!$F18*(E3_Verbraucher!$F21<D$42)+E3_Verbraucher!$F18*(E3_Verbraucher!$F21=D$42)*E3_Verbraucher!$F20","v":0},{"$f":"E3_Verbraucher!$F18*(E3_Verbraucher!$F21<E$42)+E3_Verbraucher!$F18*(E3_Verbraucher!$F21=E$42)*E3_Verbraucher!$F20","v":0},{"$f":"E3_Verbraucher!$F18*(E3_Verbraucher!$F21<F$42)+E3_Verbraucher!$F18*(E3_Verbraucher!$F21=F$42)*E3_Verbraucher!$F20","v":0},{"$f":"E3_Verbraucher!$F18*(E3_Verbraucher!$F21<G$42)+E3_Verbraucher!$F18*(E3_Verbraucher!$F21=G$42)*E3_Verbraucher!$F20","v":0},{"$f":"E3_Verbraucher!$F18*(E3_Verbraucher!$F21<H$42)+E3_Verbraucher!$F18*(E3_Verbraucher!$F21=H$42)*E3_Verbraucher!$F20","v":0},{"$f":"E3_Verbraucher!$F18*(E3_Verbraucher!$F21<I$42)+E3_Verbraucher!$F18*(E3_Verbraucher!$F21=I$42)*E3_Verbraucher!$F20","v":0},{"$f":"E3_Verbraucher!$F18*(E3_Verbraucher!$F21<J$42)+E3_Verbraucher!$F18*(E3_Verbraucher!$F21=J$42)*E3_Verbraucher!$F20","v":0},{"$f":"E3_Verbraucher!$F18*(E3_Verbraucher!$F21<K$42)+E3_Verbraucher!$F18*(E3_Verbraucher!$F21=K$42)*E3_Verbraucher!$F20","v":0},{"$f":"E3_Verbraucher!$F18*(E3_Verbraucher!$F21<L$42)+E3_Verbraucher!$F18*(E3_Verbraucher!$F21=L$42)*E3_Verbraucher!$F20","v":0},{"$f":"E3_Verbraucher!$F18*(E3_Verbraucher!$F21<M$42)+E3_Verbraucher!$F18*(E3_Verbraucher!$F21=M$42)*E3_Verbraucher!$F20","v":0},{"$f":"E3_Verbraucher!$F18*(E3_Verbraucher!$F21<N$42)+E3_Verbraucher!$F18*(E3_Verbraucher!$F21=N$42)*E3_Verbraucher!$F20","v":0},{"$f":"E3_Verbraucher!$F18*(E3_Verbraucher!$F21<O$42)+E3_Verbraucher!$F18*(E3_Verbraucher!$F21=O$42)*E3_Verbraucher!$F20","v":0},{"$f":"E3_Verbraucher!$F18*(E3_Verbraucher!$F21<P$42)+E3_Verbraucher!$F18*(E3_Verbraucher!$F21=P$42)*E3_Verbraucher!$F20","v":0},{"$f":"E3_Verbraucher!$F18*(E3_Verbraucher!$F21<Q$42)+E3_Verbraucher!$F18*(E3_Verbraucher!$F21=Q$42)*E3_Verbraucher!$F20","v":0},{"$f":"E3_Verbraucher!$F18*(E3_Verbraucher!$F21<R$42)+E3_Verbraucher!$F18*(E3_Verbraucher!$F21=R$42)*E3_Verbraucher!$F20","v":0},{"$f":"E3_Verbraucher!$F18*(E3_Verbraucher!$F21<S$42)+E3_Verbraucher!$F18*(E3_Verbraucher!$F21=S$42)*E3_Verbraucher!$F20","v":0}]
[null,0,"[MWh/a]",{"$f":"E3_Verbraucher!$G18*(E3_Verbraucher!$G21<D$42)+E3_Verbraucher!$G18*(E3_Verbraucher!$G21=D$42)*E3_Verbraucher!$G20","v":0},{"$f":"E3_Verbraucher!$G18*(E3_Verbraucher!$G21<E$42)+E3_Verbraucher!$G18*(E3_Verbraucher!$G21=E$42)*E3_Verbraucher!$G20","v":0},{"$f":"E3_Verbraucher!$G18*(E3_Verbraucher!$G21<F$42)+E3_Verbraucher!$G18*(E3_Verbraucher!$G21=F$42)*E3_Verbraucher!$G20","v":0},{"$f":"E3_Verbraucher!$G18*(E3_Verbraucher!$G21<G$42)+E3_Verbraucher!$G18*(E3_Verbraucher!$G21=G$42)*E3_Verbraucher!$G20","v":0},{"$f":"E3_Verbraucher!$G18*(E3_Verbraucher!$G21<H$42)+E3_Verbraucher!$G18*(E3_Verbraucher!$G21=H$42)*E3_Verbraucher!$G20","v":0},{"$f":"E3_Verbraucher!$G18*(E3_Verbraucher!$G21<I$42)+E3_Verbraucher!$G18*(E3_Verbraucher!$G21=I$42)*E3_Verbraucher!$G20","v":0},{"$f":"E3_Verbraucher!$G18*(E3_Verbraucher!$G21<J$42)+E3_Verbraucher!$G18*(E3_Verbraucher!$G21=J$42)*E3_Verbraucher!$G20","v":0},{"$f":"E3_Verbraucher!$G18*(E3_Verbraucher!$G21<K$42)+E3_Verbraucher!$G18*(E3_Verbraucher!$G21=K$42)*E3_Verbraucher!$G20","v":0},{"$f":"E3_Verbraucher!$G18*(E3_Verbraucher!$G21<L$42)+E3_Verbraucher!$G18*(E3_Verbraucher!$G21=L$42)*E3_Verbraucher!$G20","v":0},{"$f":"E3_Verbraucher!$G18*(E3_Verbraucher!$G21<M$42)+E3_Verbraucher!$G18*(E3_Verbraucher!$G21=M$42)*E3_Verbraucher!$G20","v":0},{"$f":"E3_Verbraucher!$G18*(E3_Verbraucher!$G21<N$42)+E3_Verbraucher!$G18*(E3_Verbraucher!$G21=N$42)*E3_Verbraucher!$G20","v":0},{"$f":"E3_Verbraucher!$G18*(E3_Verbraucher!$G21<O$42)+E3_Verbraucher!$G18*(E3_Verbraucher!$G21=O$42)*E3_Verbraucher!$G20","v":0},{"$f":"E3_Verbraucher!$G18*(E3_Verbraucher!$G21<P$42)+E3_Verbraucher!$G18*(E3_Verbraucher!$G21=P$42)*E3_Verbraucher!$G20","v":0},{"$f":"E3_Verbraucher!$G18*(E3_Verbraucher!$G21<Q$42)+E3_Verbraucher!$G18*(E3_Verbraucher!$G21=Q$42)*E3_Verbraucher!$G20","v":0},{"$f":"E3_Verbraucher!$G18*(E3_Verbraucher!$G21<R$42)+E3_Verbraucher!$G18*(E3_Verbraucher!$G21=R$42)*E3_Verbraucher!$G20","v":0},{"$f":"E3_Verbraucher!$G18*(E3_Verbraucher!$G21<S$42)+E3_Verbraucher!$G18*(E3_Verbraucher!$G21=S$42)*E3_Verbraucher!$G20","v":0}]
[null,0,"[MWh/a]",{"$f":"E3_Verbraucher!$H18*(E3_Verbraucher!$H21<D$42)+E3_Verbraucher!$H18*(E3_Verbraucher!$H21=D$42)*E3_Verbraucher!$H20","v":0},{"$f":"E3_Verbraucher!$H18*(E3_Verbraucher!$H21<E$42)+E3_Verbraucher!$H18*(E3_Verbraucher!$H21=E$42)*E3_Verbraucher!$H20","v":0},{"$f":"E3_Verbraucher!$H18*(E3_Verbraucher!$H21<F$42)+E3_Verbraucher!$H18*(E3_Verbraucher!$H21=F$42)*E3_Verbraucher!$H20","v":0},{"$f":"E3_Verbraucher!$H18*(E3_Verbraucher!$H21<G$42)+E3_Verbraucher!$H18*(E3_Verbraucher!$H21=G$42)*E3_Verbraucher!$H20","v":0},{"$f":"E3_Verbraucher!$H18*(E3_Verbraucher!$H21<H$42)+E3_Verbraucher!$H18*(E3_Verbraucher!$H21=H$42)*E3_Verbraucher!$H20","v":0},{"$f":"E3_Verbraucher!$H18*(E3_Verbraucher!$H21<I$42)+E3_Verbraucher!$H18*(E3_Verbraucher!$H21=I$42)*E3_Verbraucher!$H20","v":0},{"$f":"E3_Verbraucher!$H18*(E3_Verbraucher!$H21<J$42)+E3_Verbraucher!$H18*(E3_Verbraucher!$H21=J$42)*E3_Verbraucher!$H20","v":0},{"$f":"E3_Verbraucher!$H18*(E3_Verbraucher!$H21<K$42)+E3_Verbraucher!$H18*(E3_Verbraucher!$H21=K$42)*E3_Verbraucher!$H20","v":0},{"$f":"E3_Verbraucher!$H18*(E3_Verbraucher!$H21<L$42)+E3_Verbraucher!$H18*(E3_Verbraucher!$H21=L$42)*E3_Verbraucher!$H20","v":0},{"$f":"E3_Verbraucher!$H18*(E3_Verbraucher!$H21<M$42)+E3_Verbraucher!$H18*(E3_Verbraucher!$H21=M$42)*E3_Verbraucher!$H20","v":0},{"$f":"E3_Verbraucher!$H18*(E3_Verbraucher!$H21<N$42)+E3_Verbraucher!$H18*(E3_Verbraucher!$H21=N$42)*E3_Verbraucher!$H20","v":0},{"$f":"E3_Verbraucher!$H18*(E3_Verbraucher!$H21<O$42)+E3_Verbraucher!$H18*(E3_Verbraucher!$H21=O$42)*E3_Verbraucher!$H20","v":0},{"$f":"E3_Verbraucher!$H18*(E3_Verbraucher!$H21<P$42)+E3_Verbraucher!$H18*(E3_Verbraucher!$H21=P$42)*E3_Verbraucher!$H20","v":0},{"$f":"E3_Verbraucher!$H18*(E3_Verbraucher!$H21<Q$42)+E3_Verbraucher!$H18*(E3_Verbraucher!$H21=Q$42)*E3_Verbraucher!$H20","v":0},{"$f":"E3_Verbraucher!$H18*(E3_Verbraucher!$H21<R$42)+E3_Verbraucher!$H18*(E3_Verbraucher!$H21=R$42)*E3_Verbraucher!$H20","v":0},{"$f":"E3_Verbraucher!$H18*(E3_Verbraucher!$H21<S$42)+E3_Verbraucher!$H18*(E3_Verbraucher!$H21=S$42)*E3_Verbraucher!$H20","v":0}]
[null,0,"[MWh/a]",{"$f":"E3_Verbraucher!$I18*(E3_Verbraucher!$I21<D$42)+E3_Verbraucher!$I18*(E3_Verbraucher!$I21=D$42)*E3_Verbraucher!$I20","v":0},{"$f":"E3_Verbraucher!$I18*(E3_Verbraucher!$I21<E$42)+E3_Verbraucher!$I18*(E3_Verbraucher!$I21=E$42)*E3_Verbraucher!$I20","v":0},{"$f":"E3_Verbraucher!$I18*(E3_Verbraucher!$I21<F$42)+E3_Verbraucher!$I18*(E3_Verbraucher!$I21=F$42)*E3_Verbraucher!$I20","v":0},{"$f":"E3_Verbraucher!$I18*(E3_Verbraucher!$I21<G$42)+E3_Verbraucher!$I18*(E3_Verbraucher!$I21=G$42)*E3_Verbraucher!$I20","v":0},{"$f":"E3_Verbraucher!$I18*(E3_Verbraucher!$I21<H$42)+E3_Verbraucher!$I18*(E3_Verbraucher!$I21=H$42)*E3_Verbraucher!$I20","v":0},{"$f":"E3_Verbraucher!$I18*(E3_Verbraucher!$I21<I$42)+E3_Verbraucher!$I18*(E3_Verbraucher!$I21=I$42)*E3_Verbraucher!$I20","v":0},{"$f":"E3_Verbraucher!$I18*(E3_Verbraucher!$I21<J$42)+E3_Verbraucher!$I18*(E3_Verbraucher!$I21=J$42)*E3_Verbraucher!$I20","v":0},{"$f":"E3_Verbraucher!$I18*(E3_Verbraucher!$I21<K$42)+E3_Verbraucher!$I18*(E3_Verbraucher!$I21=K$42)*E3_Verbraucher!$I20","v":0},{"$f":"E3_Verbraucher!$I18*(E3_Verbraucher!$I21<L$42)+E3_Verbraucher!$I18*(E3_Verbraucher!$I21=L$42)*E3_Verbraucher!$I20","v":0},{"$f":"E3_Verbraucher!$I18*(E3_Verbraucher!$I21<M$42)+E3_Verbraucher!$I18*(E3_Verbraucher!$I21=M$42)*E3_Verbraucher!$I20","v":0},{"$f":"E3_Verbraucher!$I18*(E3_Verbraucher!$I21<N$42)+E3_Verbraucher!$I18*(E3_Verbraucher!$I21=N$42)*E3_Verbraucher!$I20","v":0},{"$f":"E3_Verbraucher!$I18*(E3_Verbraucher!$I21<O$42)+E3_Verbraucher!$I18*(E3_Verbraucher!$I21=O$42)*E3_Verbraucher!$I20","v":0},{"$f":"E3_Verbraucher!$I18*(E3_Verbraucher!$I21<P$42)+E3_Verbraucher!$I18*(E3_Verbraucher!$I21=P$42)*E3_Verbraucher!$I20","v":0},{"$f":"E3_Verbraucher!$I18*(E3_Verbraucher!$I21<Q$42)+E3_Verbraucher!$I18*(E3_Verbraucher!$I21=Q$42)*E3_Verbraucher!$I20","v":0},{"$f":"E3_Verbraucher!$I18*(E3_Verbraucher!$I21<R$42)+E3_Verbraucher!$I18*(E3_Verbraucher!$I21=R$42)*E3_Verbraucher!$I20","v":0},{"$f":"E3_Verbraucher!$I18*(E3_Verbraucher!$I21<S$42)+E3_Verbraucher!$I18*(E3_Verbraucher!$I21=S$42)*E3_Verbraucher!$I20","v":0}]
[null,0,"[MWh/a]",{"$f":"E3_Verbraucher!$J18*(E3_Verbraucher!$J21<D$42)+E3_Verbraucher!$J18*(E3_Verbraucher!$J21=D$42)*E3_Verbraucher!$J20","v":0},{"$f":"E3_Verbraucher!$J18*(E3_Verbraucher!$J21<E$42)+E3_Verbraucher!$J18*(E3_Verbraucher!$J21=E$42)*E3_Verbraucher!$J20","v":0},{"$f":"E3_Verbraucher!$J18*(E3_Verbraucher!$J21<F$42)+E3_Verbraucher!$J18*(E3_Verbraucher!$J21=F$42)*E3_Verbraucher!$J20","v":0},{"$f":"E3_Verbraucher!$J18*(E3_Verbraucher!$J21<G$42)+E3_Verbraucher!$J18*(E3_Verbraucher!$J21=G$42)*E3_Verbraucher!$J20","v":0},{"$f":"E3_Verbraucher!$J18*(E3_Verbraucher!$J21<H$42)+E3_Verbraucher!$J18*(E3_Verbraucher!$J21=H$42)*E3_Verbraucher!$J20","v":0},{"$f":"E3_Verbraucher!$J18*(E3_Verbraucher!$J21<I$42)+E3_Verbraucher!$J18*(E3_Verbraucher!$J21=I$42)*E3_Verbraucher!$J20","v":0},{"$f":"E3_Verbraucher!$J18*(E3_Verbraucher!$J21<J$42)+E3_Verbraucher!$J18*(E3_Verbraucher!$J21=J$42)*E3_Verbraucher!$J20","v":0},{"$f":"E3_Verbraucher!$J18*(E3_Verbraucher!$J21<K$42)+E3_Verbraucher!$J18*(E3_Verbraucher!$J21=K$42)*E3_Verbraucher!$J20","v":0},{"$f":"E3_Verbraucher!$J18*(E3_Verbraucher!$J21<L$42)+E3_Verbraucher!$J18*(E3_Verbraucher!$J21=L$42)*E3_Verbraucher!$J20","v":0},{"$f":"E3_Verbraucher!$J18*(E3_Verbraucher!$J21<M$42)+E3_Verbraucher!$J18*(E3_Verbraucher!$J21=M$42)*E3_Verbraucher!$J20","v":0},{"$f":"E3_Verbraucher!$J18*(E3_Verbraucher!$J21<N$42)+E3_Verbraucher!$J18*(E3_Verbraucher!$J21=N$42)*E3_Verbraucher!$J20","v":0},{"$f":"E3_Verbraucher!$J18*(E3_Verbraucher!$J21<O$42)+E3_Verbraucher!$J18*(E3_Verbraucher!$J21=O$42)*E3_Verbraucher!$J20","v":0},{"$f":"E3_Verbraucher!$J18*(E3_Verbraucher!$J21<P$42)+E3_Verbraucher!$J18*(E3_Verbraucher!$J21=P$42)*E3_Verbraucher!$J20","v":0},{"$f":"E3_Verbraucher!$J18*(E3_Verbraucher!$J21<Q$42)+E3_Verbraucher!$J18*(E3_Verbraucher!$J21=Q$42)*E3_Verbraucher!$J20","v":0},{"$f":"E3_Verbraucher!$J18*(E3_Verbraucher!$J21<R$42)+E3_Verbraucher!$J18*(E3_Verbraucher!$J21=R$42)*E3_Verbraucher!$J20","v":0},{"$f":"E3_Verbraucher!$J18*(E3_Verbraucher!$J21<S$42)+E3_Verbraucher!$J18*(E3_Verbraucher!$J21=S$42)*E3_Verbraucher!$J20","v":0}]
[null,0,"[MWh/a]",{"$f":"E3_Verbraucher!$K18*(E3_Verbraucher!$K21<D$42)+E3_Verbraucher!$K18*(E3_Verbraucher!$K21=D$42)*E3_Verbraucher!$K20","v":0},{"$f":"E3_Verbraucher!$K18*(E3_Verbraucher!$K21<E$42)+E3_Verbraucher!$K18*(E3_Verbraucher!$K21=E$42)*E3_Verbraucher!$K20","v":0},{"$f":"E3_Verbraucher!$K18*(E3_Verbraucher!$K21<F$42)+E3_Verbraucher!$K18*(E3_Verbraucher!$K21=F$42)*E3_Verbraucher!$K20","v":0},{"$f":"E3_Verbraucher!$K18*(E3_Verbraucher!$K21<G$42)+E3_Verbraucher!$K18*(E3_Verbraucher!$K21=G$42)*E3_Verbraucher!$K20","v":0},{"$f":"E3_Verbraucher!$K18*(E3_Verbraucher!$K21<H$42)+E3_Verbraucher!$K18*(E3_Verbraucher!$K21=H$42)*E3_Verbraucher!$K20","v":0},{"$f":"E3_Verbraucher!$K18*(E3_Verbraucher!$K21<I$42)+E3_Verbraucher!$K18*(E3_Verbraucher!$K21=I$42)*E3_Verbraucher!$K20","v":0},{"$f":"E3_Verbraucher!$K18*(E3_Verbraucher!$K21<J$42)+E3_Verbraucher!$K18*(E3_Verbraucher!$K21=J$42)*E3_Verbraucher!$K20","v":0},{"$f":"E3_Verbraucher!$K18*(E3_Verbraucher!$K21<K$42)+E3_Verbraucher!$K18*(E3_Verbraucher!$K21=K$42)*E3_Verbraucher!$K20","v":0},{"$f":"E3_Verbraucher!$K18*(E3_Verbraucher!$K21<L$42)+E3_Verbraucher!$K18*(E3_Verbraucher!$K21=L$42)*E3_Verbraucher!$K20","v":0},{"$f":"E3_Verbraucher!$K18*(E3_Verbraucher!$K21<M$42)+E3_Verbraucher!$K18*(E3_Verbraucher!$K21=M$42)*E3_Verbraucher!$K20","v":0},{"$f":"E3_Verbraucher!$K18*(E3_Verbraucher!$K21<N$42)+E3_Verbraucher!$K18*(E3_Verbraucher!$K21=N$42)*E3_Verbraucher!$K20","v":0},{"$f":"E3_Verbraucher!$K18*(E3_Verbraucher!$K21<O$42)+E3_Verbraucher!$K18*(E3_Verbraucher!$K21=O$42)*E3_Verbraucher!$K20","v":0},{"$f":"E3_Verbraucher!$K18*(E3_Verbraucher!$K21<P$42)+E3_Verbraucher!$K18*(E3_Verbraucher!$K21=P$42)*E3_Verbraucher!$K20","v":0},{"$f":"E3_Verbraucher!$K18*(E3_Verbraucher!$K21<Q$42)+E3_Verbraucher!$K18*(E3_Verbraucher!$K21=Q$42)*E3_Verbraucher!$K20","v":0},{"$f":"E3_Verbraucher!$K18*(E3_Verbraucher!$K21<R$42)+E3_Verbraucher!$K18*(E3_Verbraucher!$K21=R$42)*E3_Verbraucher!$K20","v":0},{"$f":"E3_Verbraucher!$K18*(E3_Verbraucher!$K21<S$42)+E3_Verbraucher!$K18*(E3_Verbraucher!$K21=S$42)*E3_Verbraucher!$K20","v":0}]
[null,0,"[MWh/a]",{"$f":"E3_Verbraucher!$L18*(E3_Verbraucher!$L21<D$42)+E3_Verbraucher!$L18*(E3_Verbraucher!$L21=D$42)*E3_Verbraucher!$L20","v":0},{"$f":"E3_Verbraucher!$L18*(E3_Verbraucher!$L21<E$42)+E3_Verbraucher!$L18*(E3_Verbraucher!$L21=E$42)*E3_Verbraucher!$L20","v":0},{"$f":"E3_Verbraucher!$L18*(E3_Verbraucher!$L21<F$42)+E3_Verbraucher!$L18*(E3_Verbraucher!$L21=F$42)*E3_Verbraucher!$L20","v":0},{"$f":"E3_Verbraucher!$L18*(E3_Verbraucher!$L21<G$42)+E3_Verbraucher!$L18*(E3_Verbraucher!$L21=G$42)*E3_Verbraucher!$L20","v":0},{"$f":"E3_Verbraucher!$L18*(E3_Verbraucher!$L21<H$42)+E3_Verbraucher!$L18*(E3_Verbraucher!$L21=H$42)*E3_Verbraucher!$L20","v":0},{"$f":"E3_Verbraucher!$L18*(E3_Verbraucher!$L21<I$42)+E3_Verbraucher!$L18*(E3_Verbraucher!$L21=I$42)*E3_Verbraucher!$L20","v":0},{"$f":"E3_Verbraucher!$L18*(E3_Verbraucher!$L21<J$42)+E3_Verbraucher!$L18*(E3_Verbraucher!$L21=J$42)*E3_Verbraucher!$L20","v":0},{"$f":"E3_Verbraucher!$L18*(E3_Verbraucher!$L21<K$42)+E3_Verbraucher!$L18*(E3_Verbraucher!$L21=K$42)*E3_Verbraucher!$L20","v":0},{"$f":"E3_Verbraucher!$L18*(E3_Verbraucher!$L21<L$42)+E3_Verbraucher!$L18*(E3_Verbraucher!$L21=L$42)*E3_Verbraucher!$L20","v":0},{"$f":"E3_Verbraucher!$L18*(E3_Verbraucher!$L21<M$42)+E3_Verbraucher!$L18*(E3_Verbraucher!$L21=M$42)*E3_Verbraucher!$L20","v":0},{"$f":"E3_Verbraucher!$L18*(E3_Verbraucher!$L21<N$42)+E3_Verbraucher!$L18*(E3_Verbraucher!$L21=N$42)*E3_Verbraucher!$L20","v":0},{"$f":"E3_Verbraucher!$L18*(E3_Verbraucher!$L21<O$42)+E3_Verbraucher!$L18*(E3_Verbraucher!$L21=O$42)*E3_Verbraucher!$L20","v":0},{"$f":"E3_Verbraucher!$L18*(E3_Verbraucher!$L21<P$42)+E3_Verbraucher!$L18*(E3_Verbraucher!$L21=P$42)*E3_Verbraucher!$L20","v":0},{"$f":"E3_Verbraucher!$L18*(E3_Verbraucher!$L21<Q$42)+E3_Verbraucher!$L18*(E3_Verbraucher!$L21=Q$42)*E3_Verbraucher!$L20","v":0},{"$f":"E3_Verbraucher!$L18*(E3_Verbraucher!$L21<R$42)+E3_Verbraucher!$L18*(E3_Verbraucher!$L21=R$42)*E3_Verbraucher!$L20","v":0},{"$f":"E3_Verbraucher!$L18*(E3_Verbraucher!$L21<S$42)+E3_Verbraucher!$L18*(E3_Verbraucher!$L21=S$42)*E3_Verbraucher!$L20","v":0}]
[null,0,"[MWh/a]",{"$f":"E3_Verbraucher!$M18*(E3_Verbraucher!$M21<D$42)+E3_Verbraucher!$M18*(E3_Verbraucher!$M21=D$42)*E3_Verbraucher!$M20","v":0},{"$f":"E3_Verbraucher!$M18*(E3_Verbraucher!$M21<E$42)+E3_Verbraucher!$M18*(E3_Verbraucher!$M21=E$42)*E3_Verbraucher!$M20","v":0},{"$f":"E3_Verbraucher!$M18*(E3_Verbraucher!$M21<F$42)+E3_Verbraucher!$M18*(E3_Verbraucher!$M21=F$42)*E3_Verbraucher!$M20","v":0},{"$f":"E3_Verbraucher!$M18*(E3_Verbraucher!$M21<G$42)+E3_Verbraucher!$M18*(E3_Verbraucher!$M21=G$42)*E3_Verbraucher!$M20","v":0},{"$f":"E3_Verbraucher!$M18*(E3_Verbraucher!$M21<H$42)+E3_Verbraucher!$M18*(E3_Verbraucher!$M21=H$42)*E3_Verbraucher!$M20","v":0},{"$f":"E3_Verbraucher!$M18*(E3_Verbraucher!$M21<I$42)+E3_Verbraucher!$M18*(E3_Verbraucher!$M21=I$42)*E3_Verbraucher!$M20","v":0},{"$f":"E3_Verbraucher!$M18*(E3_Verbraucher!$M21<J$42)+E3_Verbraucher!$M18*(E3_Verbraucher!$M21=J$42)*E3_Verbraucher!$M20","v":0},{"$f":"E3_Verbraucher!$M18*(E3_Verbraucher!$M21<K$42)+E3_Verbraucher!$M18*(E3_Verbraucher!$M21=K$42)*E3_Verbraucher!$M20","v":0},{"$f":"E3_Verbraucher!$M18*(E3_Verbraucher!$M21<L$42)+E3_Verbraucher!$M18*(E3_Verbraucher!$M21=L$42)*E3_Verbraucher!$M20","v":0},{"$f":"E3_Verbraucher!$M18*(E3_Verbraucher!$M21<M$42)+E3_Verbraucher!$M18*(E3_Verbraucher!$M21=M$42)*E3_Verbraucher!$M20","v":0},{"$f":"E3_Verbraucher!$M18*(E3_Verbraucher!$M21<N$42)+E3_Verbraucher!$M18*(E3_Verbraucher!$M21=N$42)*E3_Verbraucher!$M20","v":0},{"$f":"E3_Verbraucher!$M18*(E3_Verbraucher!$M21<O$42)+E3_Verbraucher!$M18*(E3_Verbraucher!$M21=O$42)*E3_Verbraucher!$M20","v":0},{"$f":"E3_Verbraucher!$M18*(E3_Verbraucher!$M21<P$42)+E3_Verbraucher!$M18*(E3_Verbraucher!$M21=P$42)*E3_Verbraucher!$M20","v":0},{"$f":"E3_Verbraucher!$M18*(E3_Verbraucher!$M21<Q$42)+E3_Verbraucher!$M18*(E3_Verbraucher!$M21=Q$42)*E3_Verbraucher!$M20","v":0},{"$f":"E3_Verbraucher!$M18*(E3_Verbraucher!$M21<R$42)+E3_Verbraucher!$M18*(E3_Verbraucher!$M21=R$42)*E3_Verbraucher!$M20","v":0},{"$f":"E3_Verbraucher!$M18*(E3_Verbraucher!$M21<S$42)+E3_Verbraucher!$M18*(E3_Verbraucher!$M21=S$42)*E3_Verbraucher!$M20","v":0}]
[null,0,"[MWh/a]",{"$f":"E3_Verbraucher!$N18*(E3_Verbraucher!$N21<D$42)+E3_Verbraucher!$N18*(E3_Verbraucher!$N21=D$42)*E3_Verbraucher!$N20","v":0},{"$f":"E3_Verbraucher!$N18*(E3_Verbraucher!$N21<E$42)+E3_Verbraucher!$N18*(E3_Verbraucher!$N21=E$42)*E3_Verbraucher!$N20","v":0},{"$f":"E3_Verbraucher!$N18*(E3_Verbraucher!$N21<F$42)+E3_Verbraucher!$N18*(E3_Verbraucher!$N21=F$42)*E3_Verbraucher!$N20","v":0},{"$f":"E3_Verbraucher!$N18*(E3_Verbraucher!$N21<G$42)+E3_Verbraucher!$N18*(E3_Verbraucher!$N21=G$42)*E3_Verbraucher!$N20","v":0},{"$f":"E3_Verbraucher!$N18*(E3_Verbraucher!$N21<H$42)+E3_Verbraucher!$N18*(E3_Verbraucher!$N21=H$42)*E3_Verbraucher!$N20","v":0},{"$f":"E3_Verbraucher!$N18*(E3_Verbraucher!$N21<I$42)+E3_Verbraucher!$N18*(E3_Verbraucher!$N21=I$42)*E3_Verbraucher!$N20","v":0},{"$f":"E3_Verbraucher!$N18*(E3_Verbraucher!$N21<J$42)+E3_Verbraucher!$N18*(E3_Verbraucher!$N21=J$42)*E3_Verbraucher!$N20","v":0},{"$f":"E3_Verbraucher!$N18*(E3_Verbraucher!$N21<K$42)+E3_Verbraucher!$N18*(E3_Verbraucher!$N21=K$42)*E3_Verbraucher!$N20","v":0},{"$f":"E3_Verbraucher!$N18*(E3_Verbraucher!$N21<L$42)+E3_Verbraucher!$N18*(E3_Verbraucher!$N21=L$42)*E3_Verbraucher!$N20","v":0},{"$f":"E3_Verbraucher!$N18*(E3_Verbraucher!$N21<M$42)+E3_Verbraucher!$N18*(E3_Verbraucher!$N21=M$42)*E3_Verbraucher!$N20","v":0},{"$f":"E3_Verbraucher!$N18*(E3_Verbraucher!$N21<N$42)+E3_Verbraucher!$N18*(E3_Verbraucher!$N21=N$42)*E3_Verbraucher!$N20","v":0},{"$f":"E3_Verbraucher!$N18*(E3_Verbraucher!$N21<O$42)+E3_Verbraucher!$N18*(E3_Verbraucher!$N21=O$42)*E3_Verbraucher!$N20","v":0},{"$f":"E3_Verbraucher!$N18*(E3_Verbraucher!$N21<P$42)+E3_Verbraucher!$N18*(E3_Verbraucher!$N21=P$42)*E3_Verbraucher!$N20","v":0},{"$f":"E3_Verbraucher!$N18*(E3_Verbraucher!$N21<Q$42)+E3_Verbraucher!$N18*(E3_Verbraucher!$N21=Q$42)*E3_Verbraucher!$N20","v":0},{"$f":"E3_Verbraucher!$N18*(E3_Verbraucher!$N21<R$42)+E3_Verbraucher!$N18*(E3_Verbraucher!$N21=R$42)*E3_Verbraucher!$N20","v":0},{"$f":"E3_Verbraucher!$N18*(E3_Verbraucher!$N21<S$42)+E3_Verbraucher!$N18*(E3_Verbraucher!$N21=S$42)*E3_Verbraucher!$N20","v":0}]
[null,0,"[MWh/a]",{"$f":"E3_Verbraucher!$O18*(E3_Verbraucher!$O21<D$42)+E3_Verbraucher!$O18*(E3_Verbraucher!$O21=D$42)*E3_Verbraucher!$O20","v":0},{"$f":"E3_Verbraucher!$O18*(E3_Verbraucher!$O21<E$42)+E3_Verbraucher!$O18*(E3_Verbraucher!$O21=E$42)*E3_Verbraucher!$O20","v":0},{"$f":"E3_Verbraucher!$O18*(E3_Verbraucher!$O21<F$42)+E3_Verbraucher!$O18*(E3_Verbraucher!$O21=F$42)*E3_Verbraucher!$O20","v":0},{"$f":"E3_Verbraucher!$O18*(E3_Verbraucher!$O21<G$42)+E3_Verbraucher!$O18*(E3_Verbraucher!$O21=G$42)*E3_Verbraucher!$O20","v":0},{"$f":"E3_Verbraucher!$O18*(E3_Verbraucher!$O21<H$42)+E3_Verbraucher!$O18*(E3_Verbraucher!$O21=H$42)*E3_Verbraucher!$O20","v":0},{"$f":"E3_Verbraucher!$O18*(E3_Verbraucher!$O21<I$42)+E3_Verbraucher!$O18*(E3_Verbraucher!$O21=I$42)*E3_Verbraucher!$O20","v":0},{"$f":"E3_Verbraucher!$O18*(E3_Verbraucher!$O21<J$42)+E3_Verbraucher!$O18*(E3_Verbraucher!$O21=J$42)*E3_Verbraucher!$O20","v":0},{"$f":"E3_Verbraucher!$O18*(E3_Verbraucher!$O21<K$42)+E3_Verbraucher!$O18*(E3_Verbraucher!$O21=K$42)*E3_Verbraucher!$O20","v":0},{"$f":"E3_Verbraucher!$O18*(E3_Verbraucher!$O21<L$42)+E3_Verbraucher!$O18*(E3_Verbraucher!$O21=L$42)*E3_Verbraucher!$O20","v":0},{"$f":"E3_Verbraucher!$O18*(E3_Verbraucher!$O21<M$42)+E3_Verbraucher!$O18*(E3_Verbraucher!$O21=M$42)*E3_Verbraucher!$O20","v":0},{"$f":"E3_Verbraucher!$O18*(E3_Verbraucher!$O21<N$42)+E3_Verbraucher!$O18*(E3_Verbraucher!$O21=N$42)*E3_Verbraucher!$O20","v":0},{"$f":"E3_Verbraucher!$O18*(E3_Verbraucher!$O21<O$42)+E3_Verbraucher!$O18*(E3_Verbraucher!$O21=O$42)*E3_Verbraucher!$O20","v":0},{"$f":"E3_Verbraucher!$O18*(E3_Verbraucher!$O21<P$42)+E3_Verbraucher!$O18*(E3_Verbraucher!$O21=P$42)*E3_Verbraucher!$O20","v":0},{"$f":"E3_Verbraucher!$O18*(E3_Verbraucher!$O21<Q$42)+E3_Verbraucher!$O18*(E3_Verbraucher!$O21=Q$42)*E3_Verbraucher!$O20","v":0},{"$f":"E3_Verbraucher!$O18*(E3_Verbraucher!$O21<R$42)+E3_Verbraucher!$O18*(E3_Verbraucher!$O21=R$42)*E3_Verbraucher!$O20","v":0},{"$f":"E3_Verbraucher!$O18*(E3_Verbraucher!$O21<S$42)+E3_Verbraucher!$O18*(E3_Verbraucher!$O21=S$42)*E3_Verbraucher!$O20","v":0}]
[null,0,"[MWh/a]",{"$f":"E3_Verbraucher!$P18*(E3_Verbraucher!$P21<D$42)+E3_Verbraucher!$P18*(E3_Verbraucher!$P21=D$42)*E3_Verbraucher!$P20","v":0},{"$f":"E3_Verbraucher!$P18*(E3_Verbraucher!$P21<E$42)+E3_Verbraucher!$P18*(E3_Verbraucher!$P21=E$42)*E3_Verbraucher!$P20","v":0},{"$f":"E3_Verbraucher!$P18*(E3_Verbraucher!$P21<F$42)+E3_Verbraucher!$P18*(E3_Verbraucher!$P21=F$42)*E3_Verbraucher!$P20","v":0},{"$f":"E3_Verbraucher!$P18*(E3_Verbraucher!$P21<G$42)+E3_Verbraucher!$P18*(E3_Verbraucher!$P21=G$42)*E3_Verbraucher!$P20","v":0},{"$f":"E3_Verbraucher!$P18*(E3_Verbraucher!$P21<H$42)+E3_Verbraucher!$P18*(E3_Verbraucher!$P21=H$42)*E3_Verbraucher!$P20","v":0},{"$f":"E3_Verbraucher!$P18*(E3_Verbraucher!$P21<I$42)+E3_Verbraucher!$P18*(E3_Verbraucher!$P21=I$42)*E3_Verbraucher!$P20","v":0},{"$f":"E3_Verbraucher!$P18*(E3_Verbraucher!$P21<J$42)+E3_Verbraucher!$P18*(E3_Verbraucher!$P21=J$42)*E3_Verbraucher!$P20","v":0},{"$f":"E3_Verbraucher!$P18*(E3_Verbraucher!$P21<K$42)+E3_Verbraucher!$P18*(E3_Verbraucher!$P21=K$42)*E3_Verbraucher!$P20","v":0},{"$f":"E3_Verbraucher!$P18*(E3_Verbraucher!$P21<L$42)+E3_Verbraucher!$P18*(E3_Verbraucher!$P21=L$42)*E3_Verbraucher!$P20","v":0},{"$f":"E3_Verbraucher!$P18*(E3_Verbraucher!$P21<M$42)+E3_Verbraucher!$P18*(E3_Verbraucher!$P21=M$42)*E3_Verbraucher!$P20","v":0},{"$f":"E3_Verbraucher!$P18*(E3_Verbraucher!$P21<N$42)+E3_Verbraucher!$P18*(E3_Verbraucher!$P21=N$42)*E3_Verbraucher!$P20","v":0},{"$f":"E3_Verbraucher!$P18*(E3_Verbraucher!$P21<O$42)+E3_Verbraucher!$P18*(E3_Verbraucher!$P21=O$42)*E3_Verbraucher!$P20","v":0},{"$f":"E3_Verbraucher!$P18*(E3_Verbraucher!$P21<P$42)+E3_Verbraucher!$P18*(E3_Verbraucher!$P21=P$42)*E3_Verbraucher!$P20","v":0},{"$f":"E3_Verbraucher!$P18*(E3_Verbraucher!$P21<Q$42)+E3_Verbraucher!$P18*(E3_Verbraucher!$P21=Q$42)*E3_Verbraucher!$P20","v":0},{"$f":"E3_Verbraucher!$P18*(E3_Verbraucher!$P21<R$42)+E3_Verbraucher!$P18*(E3_Verbraucher!$P21=R$42)*E3_Verbraucher!$P20","v":0},{"$f":"E3_Verbraucher!$P18*(E3_Verbraucher!$P21<S$42)+E3_Verbraucher!$P18*(E3_Verbraucher!$P21=S$42)*E3_Verbraucher!$P20","v":0}]
[null,0,"[MWh/a]",{"$f":"E3_Verbraucher!$Q18*(E3_Verbraucher!$Q21<D$42)+E3_Verbraucher!$Q18*(E3_Verbraucher!$Q21=D$42)*E3_Verbraucher!$Q20","v":0},{"$f":"E3_Verbraucher!$Q18*(E3_Verbraucher!$Q21<E$42)+E3_Verbraucher!$Q18*(E3_Verbraucher!$Q21=E$42)*E3_Verbraucher!$Q20","v":0},{"$f":"E3_Verbraucher!$Q18*(E3_Verbraucher!$Q21<F$42)+E3_Verbraucher!$Q18*(E3_Verbraucher!$Q21=F$42)*E3_Verbraucher!$Q20","v":0},{"$f":"E3_Verbraucher!$Q18*(E3_Verbraucher!$Q21<G$42)+E3_Verbraucher!$Q18*(E3_Verbraucher!$Q21=G$42)*E3_Verbraucher!$Q20","v":0},{"$f":"E3_Verbraucher!$Q18*(E3_Verbraucher!$Q21<H$42)+E3_Verbraucher!$Q18*(E3_Verbraucher!$Q21=H$42)*E3_Verbraucher!$Q20","v":0},{"$f":"E3_Verbraucher!$Q18*(E3_Verbraucher!$Q21<I$42)+E3_Verbraucher!$Q18*(E3_Verbraucher!$Q21=I$42)*E3_Verbraucher!$Q20","v":0},{"$f":"E3_Verbraucher!$Q18*(E3_Verbraucher!$Q21<J$42)+E3_Verbraucher!$Q18*(E3_Verbraucher!$Q21=J$42)*E3_Verbraucher!$Q20","v":0},{"$f":"E3_Verbraucher!$Q18*(E3_Verbraucher!$Q21<K$42)+E3_Verbraucher!$Q18*(E3_Verbraucher!$Q21=K$42)*E3_Verbraucher!$Q20","v":0},{"$f":"E3_Verbraucher!$Q18*(E3_Verbraucher!$Q21<L$42)+E3_Verbraucher!$Q18*(E3_Verbraucher!$Q21=L$42)*E3_Verbraucher!$Q20","v":0},{"$f":"E3_Verbraucher!$Q18*(E3_Verbraucher!$Q21<M$42)+E3_Verbraucher!$Q18*(E3_Verbraucher!$Q21=M$42)*E3_Verbraucher!$Q20","v":0},{"$f":"E3_Verbraucher!$Q18*(E3_Verbraucher!$Q21<N$42)+E3_Verbraucher!$Q18*(E3_Verbraucher!$Q21=N$42)*E3_Verbraucher!$Q20","v":0},{"$f":"E3_Verbraucher!$Q18*(E3_Verbraucher!$Q21<O$42)+E3_Verbraucher!$Q18*(E3_Verbraucher!$Q21=O$42)*E3_Verbraucher!$Q20","v":0},{"$f":"E3_Verbraucher!$Q18*(E3_Verbraucher!$Q21<P$42)+E3_Verbraucher!$Q18*(E3_Verbraucher!$Q21=P$42)*E3_Verbraucher!$Q20","v":0},{"$f":"E3_Verbraucher!$Q18*(E3_Verbraucher!$Q21<Q$42)+E3_Verbraucher!$Q18*(E3_Verbraucher!$Q21=Q$42)*E3_Verbraucher!$Q20","v":0},{"$f":"E3_Verbraucher!$Q18*(E3_Verbraucher!$Q21<R$42)+E3_Verbraucher!$Q18*(E3_Verbraucher!$Q21=R$42)*E3_Verbraucher!$Q20","v":0},{"$f":"E3_Verbraucher!$Q18*(E3_Verbraucher!$Q21<S$42)+E3_Verbraucher!$Q18*(E3_Verbraucher!$Q21=S$42)*E3_Verbraucher!$Q20","v":0}]
[null,0,"[MWh/a]",{"$f":"E3_Verbraucher!$R18*(E3_Verbraucher!$R21<D$42)+E3_Verbraucher!$R18*(E3_Verbraucher!$R21=D$42)*E3_Verbraucher!$R20","v":0},{"$f":"E3_Verbraucher!$R18*(E3_Verbraucher!$R21<E$42)+E3_Verbraucher!$R18*(E3_Verbraucher!$R21=E$42)*E3_Verbraucher!$R20","v":0},{"$f":"E3_Verbraucher!$R18*(E3_Verbraucher!$R21<F$42)+E3_Verbraucher!$R18*(E3_Verbraucher!$R21=F$42)*E3_Verbraucher!$R20","v":0},{"$f":"E3_Verbraucher!$R18*(E3_Verbraucher!$R21<G$42)+E3_Verbraucher!$R18*(E3_Verbraucher!$R21=G$42)*E3_Verbraucher!$R20","v":0},{"$f":"E3_Verbraucher!$R18*(E3_Verbraucher!$R21<H$42)+E3_Verbraucher!$R18*(E3_Verbraucher!$R21=H$42)*E3_Verbraucher!$R20","v":0},{"$f":"E3_Verbraucher!$R18*(E3_Verbraucher!$R21<I$42)+E3_Verbraucher!$R18*(E3_Verbraucher!$R21=I$42)*E3_Verbraucher!$R20","v":0},{"$f":"E3_Verbraucher!$R18*(E3_Verbraucher!$R21<J$42)+E3_Verbraucher!$R18*(E3_Verbraucher!$R21=J$42)*E3_Verbraucher!$R20","v":0},{"$f":"E3_Verbraucher!$R18*(E3_Verbraucher!$R21<K$42)+E3_Verbraucher!$R18*(E3_Verbraucher!$R21=K$42)*E3_Verbraucher!$R20","v":0},{"$f":"E3_Verbraucher!$R18*(E3_Verbraucher!$R21<L$42)+E3_Verbraucher!$R18*(E3_Verbraucher!$R21=L$42)*E3_Verbraucher!$R20","v":0},{"$f":"E3_Verbraucher!$R18*(E3_Verbraucher!$R21<M$42)+E3_Verbraucher!$R18*(E3_Verbraucher!$R21=M$42)*E3_Verbraucher!$R20","v":0},{"$f":"E3_Verbraucher!$R18*(E3_Verbraucher!$R21<N$42)+E3_Verbraucher!$R18*(E3_Verbraucher!$R21=N$42)*E3_Verbraucher!$R20","v":0},{"$f":"E3_Verbraucher!$R18*(E3_Verbraucher!$R21<O$42)+E3_Verbraucher!$R18*(E3_Verbraucher!$R21=O$42)*E3_Verbraucher!$R20","v":0},{"$f":"E3_Verbraucher!$R18*(E3_Verbraucher!$R21<P$42)+E3_Verbraucher!$R18*(E3_Verbraucher!$R21=P$42)*E3_Verbraucher!$R20","v":0},{"$f":"E3_Verbraucher!$R18*(E3_Verbraucher!$R21<Q$42)+E3_Verbraucher!$R18*(E3_Verbraucher!$R21=Q$42)*E3_Verbraucher!$R20","v":0},{"$f":"E3_Verbraucher!$R18*(E3_Verbraucher!$R21<R$42)+E3_Verbraucher!$R18*(E3_Verbraucher!$R21=R$42)*E3_Verbraucher!$R20","v":0},{"$f":"E3_Verbraucher!$R18*(E3_Verbraucher!$R21<S$42)+E3_Verbraucher!$R18*(E3_Verbraucher!$R21=S$42)*E3_Verbraucher!$R20","v":0}]
[null,"Elektrizitätsverbrauch Fernwärmezentrale"]
[922,"Total Elektrizitätsverbrauch pro Jahr","[MWh/a]",{"$f":"VLOOKUP('A2_NPV-Daten'!D42,B1_Berechnungen!$B$36:$C$60,2)*Eing_Spez_Stromverbrauch/100","v":0},{"$f":"VLOOKUP('A2_NPV-Daten'!E42,B1_Berechnungen!$B$36:$C$60,2)*Eing_Spez_Stromverbrauch/100","v":0},{"$f":"VLOOKUP('A2_NPV-Daten'!F42,B1_Berechnungen!$B$36:$C$60,2)*Eing_Spez_Stromverbrauch/100","v":0},{"$f":"VLOOKUP('A2_NPV-Daten'!G42,B1_Berechnungen!$B$36:$C$60,2)*Eing_Spez_Stromverbrauch/100","v":0},{"$f":"VLOOKUP('A2_NPV-Daten'!H42,B1_Berechnungen!$B$36:$C$60,2)*Eing_Spez_Stromverbrauch/100","v":0},{"$f":"VLOOKUP('A2_NPV-Daten'!I42,B1_Berechnungen!$B$36:$C$60,2)*Eing_Spez_Stromverbrauch/100","v":0},{"$f":"VLOOKUP('A2_NPV-Daten'!J42,B1_Berechnungen!$B$36:$C$60,2)*Eing_Spez_Stromverbrauch/100","v":0},{"$f":"VLOOKUP('A2_NPV-Daten'!K42,B1_Berechnungen!$B$36:$C$60,2)*Eing_Spez_Stromverbrauch/100","v":0},{"$f":"VLOOKUP('A2_NPV-Daten'!L42,B1_Berechnungen!$B$36:$C$60,2)*Eing_Spez_Stromverbrauch/100","v":0},{"$f":"VLOOKUP('A2_NPV-Daten'!M42,B1_Berechnungen!$B$36:$C$60,2)*Eing_Spez_Stromverbrauch/100","v":0},{"$f":"VLOOKUP('A2_NPV-Daten'!N42,B1_Berechnungen!$B$36:$C$60,2)*Eing_Spez_Stromverbrauch/100","v":0},{"$f":"VLOOKUP('A2_NPV-Daten'!O42,B1_Berechnungen!$B$36:$C$60,2)*Eing_Spez_Stromverbrauch/100","v":0},{"$f":"VLOOKUP('A2_NPV-Daten'!P42,B1_Berechnungen!$B$36:$C$60,2)*Eing_Spez_Stromverbrauch/100","v":0},{"$f":"VLOOKUP('A2_NPV-Daten'!Q42,B1_Berechnungen!$B$36:$C$60,2)*Eing_Spez_Stromverbrauch/100","v":0},{"$f":"VLOOKUP('A2_NPV-Daten'!R42,B1_Berechnungen!$B$36:$C$60,2)*Eing_Spez_Stromverbrauch/100","v":0},{"$f":"VLOOKUP('A2_NPV-Daten'!S42,B1_Berechnungen!$B$36:$C$60,2)*Eing_Spez_Stromverbrauch/100","v":0}]
[null,"Register Wirtschaftlichkeit; Projektaktivität",null,{"$f":"Eing_Beginnjahr","v":0},{"$f":"D62+1","v":1},{"$f":"E62+1","v":2},3,4,5,6,7,8,9,10,11,12,13,14,15,16,17,{"$f":"U62+1","v":18}]
[null,"Aufwand"]
[null,"Investitionen und Ersatzinvestitionen","[CHF/a]"]
[923,"Fernwärmenetz (40 Jahre)","[CHF/a]",{"$f":"(VLOOKUP('A2_NPV-Daten'!D$62,B1_Berechnungen!$B$36:$Z$60,23)*SUM(E1_Projektdaten!$D$52,E1_Projektdaten!$D$54,E1_Projektdaten!$D$55)/Gesamtinvestition)","v":{"$error":"#DIV/0!"}},{"$f":"(VLOOKUP('A2_NPV-Daten'!E$62,B1_Berechnungen!$B$36:$Z$60,23)*SUM(E1_Projektdaten!$D$52,E1_Projektdaten!$D$54,E1_Projektdaten!$D$55)/Gesamtinvestition)","v":{"$error":"#DIV/0!"}},{"$f":"(VLOOKUP('A2_NPV-Daten'!F$62,B1_Berechnungen!$B$36:$Z$60,23)*SUM(E1_Projektdaten!$D$52,E1_Projektdaten!$D$54,E1_Projektdaten!$D$55)/Gesamtinvestition)","v":{"$error":"#DIV/0!"}},{"$f":"(VLOOKUP('A2_NPV-Daten'!G$62,B1_Berechnungen!$B$36:$Z$60,23)*SUM(E1_Projektdaten!$D$52,E1_Projektdaten!$D$54,E1_Projektdaten!$D$55)/Gesamtinvestition)","v":{"$error":"#DIV/0!"}},{"$f":"(VLOOKUP('A2_NPV-Daten'!H$62,B1_Berechnungen!$B$36:$Z$60,23)*SUM(E1_Projektdaten!$D$52,E1_Projektdaten!$D$54,E1_Projektdaten!$D$55)/Gesamtinvestition)","v":{"$error":"#DIV/0!"}},{"$f":"(VLOOKUP('A2_NPV-Daten'!I$62,B1_Berechnungen!$B$36:$Z$60,23)*SUM(E1_Projektdaten!$D$52,E1_Projektdaten!$D$54,E1_Projektdaten!$D$55)/Gesamtinvestition)","v":{"$error":"#DIV/0!"}},{"$f":"(VLOOKUP('A2_NPV-Daten'!J$62,B1_Berechnungen!$B$36:$Z$60,23)*SUM(E1_Projektdaten!$D$52,E1_Projektdaten!$D$54,E1_Projektdaten!$D$55)/Gesamtinvestition)","v":{"$error":"#DIV/0!"}},{"$f":"(VLOOKUP('A2_NPV-Daten'!K$62,B1_Berechnungen!$B$36:$Z$60,23)*SUM(E1_Projektdaten!$D$52,E1_Projektdaten!$D$54,E1_Projektdaten!$D$55)/Gesamtinvestition)","v":{"$error":"#DIV/0!"}},{"$f":"(VLOOKUP('A2_NPV-Daten'!L$62,B1_Berechnungen!$B$36:$Z$60,23)*SUM(E1_Projektdaten!$D$52,E1_Projektdaten!$D$54,E1_Projektdaten!$D$55)/Gesamtinvestition)","v":{"$error":"#DIV/0!"}},{"$f":"(VLOOKUP('A2_NPV-Daten'!M$62,B1_Berechnungen!$B$36:$Z$60,23)*SUM(E1_Projektdaten!$D$52,E1_Projektdaten!$D$54,E1_Projektdaten!$D$55)/Gesamtinvestition)","v":{"$error":"#DIV/0!"}},{"$f":"(VLOOKUP('A2_NPV-Daten'!N$62,B1_Berechnungen!$B$36:$Z$60,23)*SUM(E1_Projektdaten!$D$52,E1_Projektdaten!$D$54,E1_Projektdaten!$D$55)/Gesamtinvestition)","v":{"$error":"#DIV/0!"}},{"$f":"(VLOOKUP('A2_NPV-Daten'!O$62,B1_Berechnungen!$B$36:$Z$60,23)*SUM(E1_Projektdaten!$D$52,E1_Projektdaten!$D$54,E1_Projektdaten!$D$55)/Gesamtinvestition)","v":{"$error":"#DIV/0!"}},{"$f":"(VLOOKUP('A2_NPV-Daten'!P$62,B1_Berechnungen!$B$36:$Z$60,23)*SUM(E1_Projektdaten!$D$52,E1_Projektdaten!$D$54,E1_Projektdaten!$D$55)/Gesamtinvestition)","v":{"$error":"#DIV/0!"}},{"$f":"(VLOOKUP('A2_NPV-Daten'!Q$62,B1_Berechnungen!$B$36:$Z$60,23)*SUM(E1_Projektdaten!$D$52,E1_Projektdaten!$D$54,E1_Projektdaten!$D$55)/Gesamtinvestition)","v":{"$error":"#DIV/0!"}},{"$f":"(VLOOKUP('A2_NPV-Daten'!R$62,B1_Berechnungen!$B$36:$Z$60,23)*SUM(E1_Projektdaten!$D$52,E1_Projektdaten!$D$54,E1_Projektdaten!$D$55)/Gesamtinvestition)","v":{"$error":"#DIV/0!"}},{"$f":"(VLOOKUP('A2_NPV-Daten'!S$62,B1_Berechnungen!$B$36:$Z$60,23)*SUM(E1_Projektdaten!$D$52,E1_Projektdaten!$D$54,E1_Projektdaten!$D$55)/Gesamtinvestition)","v":{"$error":"#DIV/0!"}},{"$f":"(VLOOKUP('A2_NPV-Daten'!T$62,B1_Berechnungen!$B$36:$Z$60,23)*SUM(E1_Projektdaten!$D$52,E1_Projektdaten!$D$54,E1_Projektdaten!$D$55)/Gesamtinvestition)","v":{"$error":"#DIV/0!"}},{"$f":"(VLOOKUP('A2_NPV-Daten'!U$62,B1_Berechnungen!$B$36:$Z$60,23)*SUM(E1_Projektdaten!$D$52,E1_Projektdaten!$D$54,E1_Projektdaten!$D$55)/Gesamtinvestition)","v":{"$error":"#DIV/0!"}},{"$f":"(VLOOKUP('A2_NPV-Daten'!V$62,B1_Berechnungen!$B$36:$Z$60,23)*SUM(E1_Projektdaten!$D$52,E1_Projektdaten!$D$54,E1_Projektdaten!$D$55)/Gesamtinvestition)","v":{"$error":"#DIV/0!"}}]
[924,"Heizzentrale bzw. dezentrale Wärmesysteme (15 Jahre)","[CHF/a]",{"$f":"(VLOOKUP('A2_NPV-Daten'!D$62,B1_Berechnungen!$B$36:$Z$60,23)-D65)","v":{"$error":"#DIV/0!"}},{"$f":"(VLOOKUP('A2_NPV-Daten'!E$62,B1_Berechnungen!$B$36:$Z$60,23)-E65)","v":{"$error":"#DIV/0!"}},{"$f":"(VLOOKUP('A2_NPV-Daten'!F$62,B1_Berechnungen!$B$36:$Z$60,23)-F65)","v":{"$error":"#DIV/0!"}},{"$f":"(VLOOKUP('A2_NPV-Daten'!G$62,B1_Berechnungen!$B$36:$Z$60,23)-G65)","v":{"$error":"#DIV/0!"}},{"$f":"(VLOOKUP('A2_NPV-Daten'!H$62,B1_Berechnungen!$B$36:$Z$60,23)-H65)","v":{"$error":"#DIV/0!"}},{"$f":"(VLOOKUP('A2_NPV-Daten'!I$62,B1_Berechnungen!$B$36:$Z$60,23)-I65)","v":{"$error":"#DIV/0!"}},{"$f":"(VLOOKUP('A2_NPV-Daten'!J$62,B1_Berechnungen!$B$36:$Z$60,23)-J65)","v":{"$error":"#DIV/0!"}},{"$f":"(VLOOKUP('A2_NPV-Daten'!K$62,B1_Berechnungen!$B$36:$Z$60,23)-K65)","v":{"$error":"#DIV/0!"}},{"$f":"(VLOOKUP('A2_NPV-Daten'!L$62,B1_Berechnungen!$B$36:$Z$60,23)-L65)","v":{"$error":"#DIV/0!"}},{"$f":"(VLOOKUP('A2_NPV-Daten'!M$62,B1_Berechnungen!$B$36:$Z$60,23)-M65)","v":{"$error":"#DIV/0!"}},{"$f":"(VLOOKUP('A2_NPV-Daten'!N$62,B1_Berechnungen!$B$36:$Z$60,23)-N65)","v":{"$error":"#DIV/0!"}},{"$f":"(VLOOKUP('A2_NPV-Daten'!O$62,B1_Berechnungen!$B$36:$Z$60,23)-O65)","v":{"$error":"#DIV/0!"}},{"$f":"(VLOOKUP('A2_NPV-Daten'!P$62,B1_Berechnungen!$B$36:$Z$60,23)-P65)","v":{"$error":"#DIV/0!"}},{"$f":"(VLOOKUP('A2_NPV-Daten'!Q$62,B1_Berechnungen!$B$36:$Z$60,23)-Q65)","v":{"$error":"#DIV/0!"}},{"$f":"(VLOOKUP('A2_NPV-Daten'!R$62,B1_Berechnungen!$B$36:$Z$60,23)-R65)","v":{"$error":"#DIV/0!"}},{"$f":"(VLOOKUP('A2_NPV-Daten'!S$62,B1_Berechnungen!$B$36:$Z$60,23)-S65)","v":{"$error":"#DIV/0!"}},{"$f":"(VLOOKUP('A2_NPV-Daten'!T$62,B1_Berechnungen!$B$36:$Z$60,23)-T65)","v":{"$error":"#DIV/0!"}},{"$f":"(VLOOKUP('A2_NPV-Daten'!U$62,B1_Berechnungen!$B$36:$Z$60,23)-U65)","v":{"$error":"#DIV/0!"}},{"$f":"(VLOOKUP('A2_NPV-Daten'!V$62,B1_Berechnungen!$B$36:$Z$60,23)-V65)","v":{"$error":"#DIV/0!"}}]
[null,"Restwert Fernwärmenetz","[CHF]",{"$f":"IF(D62=E1_Projektdaten!$D$22+15,-VLOOKUP(D62,B1_Berechnungen!$B$36:$AH$60,31),\"\")","v":""},{"$f":"IF(E62=E1_Projektdaten!$D$22+15,-VLOOKUP(E62,B1_Berechnungen!$B$36:$AH$60,31),\"\")","v":""},{"$f":"IF(F62=E1_Projektdaten!$D$22+15,-VLOOKUP(F62,B1_Berechnungen!$B$36:$AH$60,31),\"\")","v":""},{"$f":"IF(G62=E1_Projektdaten!$D$22+15,-VLOOKUP(G62,B1_Berechnungen!$B$36:$AH$60,31),\"\")","v":""},{"$f":"IF(H62=E1_Projektdaten!$D$22+15,-VLOOKUP(H62,B1_Berechnungen!$B$36:$AH$60,31),\"\")","v":""},{"$f":"IF(I62=E1_Projektdaten!$D$22+15,-VLOOKUP(I62,B1_Berechnungen!$B$36:$AH$60,31),\"\")","v":""},{"$f":"IF(J62=E1_Projektdaten!$D$22+15,-VLOOKUP(J62,B1_Berechnungen!$B$36:$AH$60,31),\"\")","v":""},{"$f":"IF(K62=E1_Projektdaten!$D$22+15,-VLOOKUP(K62,B1_Berechnungen!$B$36:$AH$60,31),\"\")","v":""},{"$f":"IF(L62=E1_Projektdaten!$D$22+15,-VLOOKUP(L62,B1_Berechnungen!$B$36:$AH$60,31),\"\")","v":""},{"$f":"IF(M62=E1_Projektdaten!$D$22+15,-VLOOKUP(M62,B1_Berechnungen!$B$36:$AH$60,31),\"\")","v":""},{"$f":"IF(N62=E1_Projektdaten!$D$22+15,-VLOOKUP(N62,B1_Berechnungen!$B$36:$AH$60,31),\"\")","v":""},{"$f":"IF(O62=E1_Projektdaten!$D$22+15,-VLOOKUP(O62,B1_Berechnungen!$B$36:$AH$60,31),\"\")","v":""},{"$f":"IF(P62=E1_Projektdaten!$D$22+15,-VLOOKUP(P62,B1_Berechnungen!$B$36:$AH$60,31),\"\")","v":""},{"$f":"IF(Q62=E1_Projektdaten!$D$22+15,-VLOOKUP(Q62,B1_Berechnungen!$B$36:$AH$60,31),\"\")","v":""},{"$f":"IF(R62=E1_Projektdaten!$D$22+15,-VLOOKUP(R62,B1_Berechnungen!$B$36:$AH$60,31),\"\")","v":""},{"$f":"IF(S62=E1_Projektdaten!$D$22+15,-VLOOKUP(S62,B1_Berechnungen!$B$36:$AH$60,31),\"\")","v":0},{"$f":"IF(T62=E1_Projektdaten!$D$22+15,-VLOOKUP(T62,B1_Berechnungen!$B$36:$AH$60,31),\"\")","v":""},{"$f":"IF(U62=E1_Projektdaten!$D$22+15,-VLOOKUP(U62,B1_Berechnungen!$B$36:$AH$60,31),\"\")","v":""},{"$f":"IF(V62=E1_Projektdaten!$D$22+15,-VLOOKUP(V62,B1_Berechnungen!$B$36:$AH$60,31),\"\")","v":""}]
[null,"Kosten","[CHF/a]"]
[925,"Betrieb und Unterhalt","[CHF/a]",{"$f":"VLOOKUP('A2_NPV-Daten'!D$62,B1_Berechnungen!$B$36:$N$60,7)+VLOOKUP('A2_NPV-Daten'!D$62,B1_Berechnungen!$B$36:$N$60,8)+VLOOKUP('A2_NPV-Daten'!D$62,B1_Berechnungen!$B$36:$N$60,9)","v":0},{"$f":"VLOOKUP('A2_NPV-Daten'!E$62,B1_Berechnungen!$B$36:$N$60,7)+VLOOKUP('A2_NPV-Daten'!E$62,B1_Berechnungen!$B$36:$N$60,8)+VLOOKUP('A2_NPV-Daten'!E$62,B1_Berechnungen!$B$36:$N$60,9)","v":0},{"$f":"VLOOKUP('A2_NPV-Daten'!F$62,B1_Berechnungen!$B$36:$N$60,7)+VLOOKUP('A2_NPV-Daten'!F$62,B1_Berechnungen!$B$36:$N$60,8)+VLOOKUP('A2_NPV-Daten'!F$62,B1_Berechnungen!$B$36:$N$60,9)","v":0},{"$f":"VLOOKUP('A2_NPV-Daten'!G$62,B1_Berechnungen!$B$36:$N$60,7)+VLOOKUP('A2_NPV-Daten'!G$62,B1_Berechnungen!$B$36:$N$60,8)+VLOOKUP('A2_NPV-Daten'!G$62,B1_Berechnungen!$B$36:$N$60,9)","v":0},{"$f":"VLOOKUP('A2_NPV-Daten'!H$62,B1_Berechnungen!$B$36:$N$60,7)+VLOOKUP('A2_NPV-Daten'!H$62,B1_Berechnungen!$B$36:$N$60,8)+VLOOKUP('A2_NPV-Daten'!H$62,B1_Berechnungen!$B$36:$N$60,9)","v":0},{"$f":"VLOOKUP('A2_NPV-Daten'!I$62,B1_Berechnungen!$B$36:$N$60,7)+VLOOKUP('A2_NPV-Daten'!I$62,B1_Berechnungen!$B$36:$N$60,8)+VLOOKUP('A2_NPV-Daten'!I$62,B1_Berechnungen!$B$36:$N$60,9)","v":0},{"$f":"VLOOKUP('A2_NPV-Daten'!J$62,B1_Berechnungen!$B$36:$N$60,7)+VLOOKUP('A2_NPV-Daten'!J$62,B1_Berechnungen!$B$36:$N$60,8)+VLOOKUP('A2_NPV-Daten'!J$62,B1_Berechnungen!$B$36:$N$60,9)","v":0},{"$f":"VLOOKUP('A2_NPV-Daten'!K$62,B1_Berechnungen!$B$36:$N$60,7)+VLOOKUP('A2_NPV-Daten'!K$62,B1_Berechnungen!$B$36:$N$60,8)+VLOOKUP('A2_NPV-Daten'!K$62,B1_Berechnungen!$B$36:$N$60,9)","v":0},{"$f":"VLOOKUP('A2_NPV-Daten'!L$62,B1_Berechnungen!$B$36:$N$60,7)+VLOOKUP('A2_NPV-Daten'!L$62,B1_Berechnungen!$B$36:$N$60,8)+VLOOKUP('A2_NPV-Daten'!L$62,B1_Berechnungen!$B$36:$N$60,9)","v":0},{"$f":"VLOOKUP('A2_NPV-Daten'!M$62,B1_Berechnungen!$B$36:$N$60,7)+VLOOKUP('A2_NPV-Daten'!M$62,B1_Berechnungen!$B$36:$N$60,8)+VLOOKUP('A2_NPV-Daten'!M$62,B1_Berechnungen!$B$36:$N$60,9)","v":0},{"$f":"VLOOKUP('A2_NPV-Daten'!N$62,B1_Berechnungen!$B$36:$N$60,7)+VLOOKUP('A2_NPV-Daten'!N$62,B1_Berechnungen!$B$36:$N$60,8)+VLOOKUP('A2_NPV-Daten'!N$62,B1_Berechnungen!$B$36:$N$60,9)","v":0},{"$f":"VLOOKUP('A2_NPV-Daten'!O$62,B1_Berechnungen!$B$36:$N$60,7)+VLOOKUP('A2_NPV-Daten'!O$62,B1_Berechnungen!$B$36:$N$60,8)+VLOOKUP('A2_NPV-Daten'!O$62,B1_Berechnungen!$B$36:$N$60,9)","v":0},{"$f":"VLOOKUP('A2_NPV-Daten'!P$62,B1_Berechnungen!$B$36:$N$60,7)+VLOOKUP('A2_NPV-Daten'!P$62,B1_Berechnungen!$B$36:$N$60,8)+VLOOKUP('A2_NPV-Daten'!P$62,B1_Berechnungen!$B$36:$N$60,9)","v":0},{"$f":"VLOOKUP('A2_NPV-Daten'!Q$62,B1_Berechnungen!$B$36:$N$60,7)+VLOOKUP('A2_NPV-Daten'!Q$62,B1_Berechnungen!$B$36:$N$60,8)+VLOOKUP('A2_NPV-Daten'!Q$62,B1_Berechnungen!$B$36:$N$60,9)","v":0},{"$f":"VLOOKUP('A2_NPV-Daten'!R$62,B1_Berechnungen!$B$36:$N$60,7)+VLOOKUP('A2_NPV-Daten'!R$62,B1_Berechnungen!$B$36:$N$60,8)+VLOOKUP('A2_NPV-Daten'!R$62,B1_Berechnungen!$B$36:$N$60,9)","v":0},{"$f":"VLOOKUP('A2_NPV-Daten'!S$62,B1_Berechnungen!$B$36:$N$60,7)+VLOOKUP('A2_NPV-Daten'!S$62,B1_Berechnungen!$B$36:$N$60,8)+VLOOKUP('A2_NPV-Daten'!S$62,B1_Berechnungen!$B$36:$N$60,9)","v":0},{"$f":"VLOOKUP('A2_NPV-Daten'!T$62,B1_Berechnungen!$B$36:$N$60,7)+VLOOKUP('A2_NPV-Daten'!T$62,B1_Berechnungen!$B$36:$N$60,8)+VLOOKUP('A2_NPV-Daten'!T$62,B1_Berechnungen!$B$36:$N$60,9)","v":0},{"$f":"VLOOKUP('A2_NPV-Daten'!U$62,B1_Berechnungen!$B$36:$N$60,7)+VLOOKUP('A2_NPV-Daten'!U$62,B1_Berechnungen!$B$36:$N$60,8)+VLOOKUP('A2_NPV-Daten'!U$62,B1_Berechnungen!$B$36:$N$60,9)","v":0},{"$f":"VLOOKUP('A2_NPV-Daten'!V$62,B1_Berechnungen!$B$36:$N$60,7)+VLOOKUP('A2_NPV-Daten'!V$62,B1_Berechnungen!$B$36:$N$60,8)+VLOOKUP('A2_NPV-Daten'!V$62,B1_Berechnungen!$B$36:$N$60,9)","v":0}]
[926,"Energiekosten","[CHF/a]",{"$f":"VLOOKUP('A2_NPV-Daten'!D$62,B1_Berechnungen!$B$36:$N$60,4)+VLOOKUP('A2_NPV-Daten'!D$62,B1_Berechnungen!$B$36:$N$60,5)+VLOOKUP('A2_NPV-Daten'!D$62,B1_Berechnungen!$B$36:$N$60,6)","v":0},{"$f":"VLOOKUP('A2_NPV-Daten'!E$62,B1_Berechnungen!$B$36:$N$60,4)+VLOOKUP('A2_NPV-Daten'!E$62,B1_Berechnungen!$B$36:$N$60,5)+VLOOKUP('A2_NPV-Daten'!E$62,B1_Berechnungen!$B$36:$N$60,6)","v":0},{"$f":"VLOOKUP('A2_NPV-Daten'!F$62,B1_Berechnungen!$B$36:$N$60,4)+VLOOKUP('A2_NPV-Daten'!F$62,B1_Berechnungen!$B$36:$N$60,5)+VLOOKUP('A2_NPV-Daten'!F$62,B1_Berechnungen!$B$36:$N$60,6)","v":0},{"$f":"VLOOKUP('A2_NPV-Daten'!G$62,B1_Berechnungen!$B$36:$N$60,4)+VLOOKUP('A2_NPV-Daten'!G$62,B1_Berechnungen!$B$36:$N$60,5)+VLOOKUP('A2_NPV-Daten'!G$62,B1_Berechnungen!$B$36:$N$60,6)","v":0},{"$f":"VLOOKUP('A2_NPV-Daten'!H$62,B1_Berechnungen!$B$36:$N$60,4)+VLOOKUP('A2_NPV-Daten'!H$62,B1_Berechnungen!$B$36:$N$60,5)+VLOOKUP('A2_NPV-Daten'!H$62,B1_Berechnungen!$B$36:$N$60,6)","v":0},{"$f":"VLOOKUP('A2_NPV-Daten'!I$62,B1_Berechnungen!$B$36:$N$60,4)+VLOOKUP('A2_NPV-Daten'!I$62,B1_Berechnungen!$B$36:$N$60,5)+VLOOKUP('A2_NPV-Daten'!I$62,B1_Berechnungen!$B$36:$N$60,6)","v":0},{"$f":"VLOOKUP('A2_NPV-Daten'!J$62,B1_Berechnungen!$B$36:$N$60,4)+VLOOKUP('A2_NPV-Daten'!J$62,B1_Berechnungen!$B$36:$N$60,5)+VLOOKUP('A2_NPV-Daten'!J$62,B1_Berechnungen!$B$36:$N$60,6)","v":0},{"$f":"VLOOKUP('A2_NPV-Daten'!K$62,B1_Berechnungen!$B$36:$N$60,4)+VLOOKUP('A2_NPV-Daten'!K$62,B1_Berechnungen!$B$36:$N$60,5)+VLOOKUP('A2_NPV-Daten'!K$62,B1_Berechnungen!$B$36:$N$60,6)","v":0},{"$f":"VLOOKUP('A2_NPV-Daten'!L$62,B1_Berechnungen!$B$36:$N$60,4)+VLOOKUP('A2_NPV-Daten'!L$62,B1_Berechnungen!$B$36:$N$60,5)+VLOOKUP('A2_NPV-Daten'!L$62,B1_Berechnungen!$B$36:$N$60,6)","v":0},{"$f":"VLOOKUP('A2_NPV-Daten'!M$62,B1_Berechnungen!$B$36:$N$60,4)+VLOOKUP('A2_NPV-Daten'!M$62,B1_Berechnungen!$B$36:$N$60,5)+VLOOKUP('A2_NPV-Daten'!M$62,B1_Berechnungen!$B$36:$N$60,6)","v":0},{"$f":"VLOOKUP('A2_NPV-Daten'!N$62,B1_Berechnungen!$B$36:$N$60,4)+VLOOKUP('A2_NPV-Daten'!N$62,B1_Berechnungen!$B$36:$N$60,5)+VLOOKUP('A2_NPV-Daten'!N$62,B1_Berechnungen!$B$36:$N$60,6)","v":0},{"$f":"VLOOKUP('A2_NPV-Daten'!O$62,B1_Berechnungen!$B$36:$N$60,4)+VLOOKUP('A2_NPV-Daten'!O$62,B1_Berechnungen!$B$36:$N$60,5)+VLOOKUP('A2_NPV-Daten'!O$62,B1_Berechnungen!$B$36:$N$60,6)","v":0},{"$f":"VLOOKUP('A2_NPV-Daten'!P$62,B1_Berechnungen!$B$36:$N$60,4)+VLOOKUP('A2_NPV-Daten'!P$62,B1_Berechnungen!$B$36:$N$60,5)+VLOOKUP('A2_NPV-Daten'!P$62,B1_Berechnungen!$B$36:$N$60,6)","v":0},{"$f":"VLOOKUP('A2_NPV-Daten'!Q$62,B1_Berechnungen!$B$36:$N$60,4)+VLOOKUP('A2_NPV-Daten'!Q$62,B1_Berechnungen!$B$36:$N$60,5)+VLOOKUP('A2_NPV-Daten'!Q$62,B1_Berechnungen!$B$36:$N$60,6)","v":0},{"$f":"VLOOKUP('A2_NPV-Daten'!R$62,B1_Berechnungen!$B$36:$N$60,4)+VLOOKUP('A2_NPV-Daten'!R$62,B1_Berechnungen!$B$36:$N$60,5)+VLOOKUP('A2_NPV-Daten'!R$62,B1_Berechnungen!$B$36:$N$60,6)","v":0},{"$f":"VLOOKUP('A2_NPV-Daten'!S$62,B1_Berechnungen!$B$36:$N$60,4)+VLOOKUP('A2_NPV-Daten'!S$62,B1_Berechnungen!$B$36:$N$60,5)+VLOOKUP('A2_NPV-Daten'!S$62,B1_Berechnungen!$B$36:$N$60,6)","v":0},{"$f":"VLOOKUP('A2_NPV-Daten'!T$62,B1_Berechnungen!$B$36:$N$60,4)+VLOOKUP('A2_NPV-Daten'!T$62,B1_Berechnungen!$B$36:$N$60,5)+VLOOKUP('A2_NPV-Daten'!T$62,B1_Berechnungen!$B$36:$N$60,6)","v":0},{"$f":"VLOOKUP('A2_NPV-Daten'!U$62,B1_Berechnungen!$B$36:$N$60,4)+VLOOKUP('A2_NPV-Daten'!U$62,B1_Berechnungen!$B$36:$N$60,5)+VLOOKUP('A2_NPV-Daten'!U$62,B1_Berechnungen!$B$36:$N$60,6)","v":0},{"$f":"VLOOKUP('A2_NPV-Daten'!V$62,B1_Berechnungen!$B$36:$N$60,4)+VLOOKUP('A2_NPV-Daten'!V$62,B1_Berechnungen!$B$36:$N$60,5)+VLOOKUP('A2_NPV-Daten'!V$62,B1_Berechnungen!$B$36:$N$60,6)","v":0}]
[null,"Total Aufwand pro Jahr","[CHF/a]"]
[]
[null,"Ertrag (ohne Abgeltung)"]
[927,"Anschlussbeiträge / einmalige Erträge","[CHF/a]",{"$f":"VLOOKUP('A2_NPV-Daten'!D$62,B1_Berechnungen!$B$36:$T$60,16)","v":0},{"$f":"VLOOKUP('A2_NPV-Daten'!E$62,B1_Berechnungen!$B$36:$T$60,16)","v":0},{"$f":"VLOOKUP('A2_NPV-Daten'!F$62,B1_Berechnungen!$B$36:$T$60,16)","v":0},{"$f":"VLOOKUP('A2_NPV-Daten'!G$62,B1_Berechnungen!$B$36:$T$60,16)","v":0},{"$f":"VLOOKUP('A2_NPV-Daten'!H$62,B1_Berechnungen!$B$36:$T$60,16)","v":0},{"$f":"VLOOKUP('A2_NPV-Daten'!I$62,B1_Berechnungen!$B$36:$T$60,16)","v":0},{"$f":"VLOOKUP('A2_NPV-Daten'!J$62,B1_Berechnungen!$B$36:$T$60,16)","v":0},{"$f":"VLOOKUP('A2_NPV-Daten'!K$62,B1_Berechnungen!$B$36:$T$60,16)","v":0},{"$f":"VLOOKUP('A2_NPV-Daten'!L$62,B1_Berechnungen!$B$36:$T$60,16)","v":0},{"$f":"VLOOKUP('A2_NPV-Daten'!M$62,B1_Berechnungen!$B$36:$T$60,16)","v":0},{"$f":"VLOOKUP('A2_NPV-Daten'!N$62,B1_Berechnungen!$B$36:$T$60,16)","v":0},{"$f":"VLOOKUP('A2_NPV-Daten'!O$62,B1_Berechnungen!$B$36:$T$60,16)","v":0},{"$f":"VLOOKUP('A2_NPV-Daten'!P$62,B1_Berechnungen!$B$36:$T$60,16)","v":0},{"$f":"VLOOKUP('A2_NPV-Daten'!Q$62,B1_Berechnungen!$B$36:$T$60,16)","v":0},{"$f":"VLOOKUP('A2_NPV-Daten'!R$62,B1_Berechnungen!$B$36:$T$60,16)","v":0},{"$f":"VLOOKUP('A2_NPV-Daten'!S$62,B1_Berechnungen!$B$36:$T$60,16)","v":0},{"$f":"VLOOKUP('A2_NPV-Daten'!T$62,B1_Berechnungen!$B$36:$T$60,16)","v":0},{"$f":"VLOOKUP('A2_NPV-Daten'!U$62,B1_Berechnungen!$B$36:$T$60,16)","v":0},{"$f":"VLOOKUP('A2_NPV-Daten'!V$62,B1_Berechnungen!$B$36:$T$60,16)","v":0}]
[928,"Wärmeverkauf / wiederkehrende Erträge","[CHF/a]",{"$f":"VLOOKUP('A2_NPV-Daten'!D$62,B1_Berechnungen!$B$36:$T$60,15)","v":0},{"$f":"VLOOKUP('A2_NPV-Daten'!E$62,B1_Berechnungen!$B$36:$T$60,15)","v":0},{"$f":"VLOOKUP('A2_NPV-Daten'!F$62,B1_Berechnungen!$B$36:$T$60,15)","v":0},{"$f":"VLOOKUP('A2_NPV-Daten'!G$62,B1_Berechnungen!$B$36:$T$60,15)","v":0},{"$f":"VLOOKUP('A2_NPV-Daten'!H$62,B1_Berechnungen!$B$36:$T$60,15)","v":0},{"$f":"VLOOKUP('A2_NPV-Daten'!I$62,B1_Berechnungen!$B$36:$T$60,15)","v":0},{"$f":"VLOOKUP('A2_NPV-Daten'!J$62,B1_Berechnungen!$B$36:$T$60,15)","v":0},{"$f":"VLOOKUP('A2_NPV-Daten'!K$62,B1_Berechnungen!$B$36:$T$60,15)","v":0},{"$f":"VLOOKUP('A2_NPV-Daten'!L$62,B1_Berechnungen!$B$36:$T$60,15)","v":0},{"$f":"VLOOKUP('A2_NPV-Daten'!M$62,B1_Berechnungen!$B$36:$T$60,15)","v":0},{"$f":"VLOOKUP('A2_NPV-Daten'!N$62,B1_Berechnungen!$B$36:$T$60,15)","v":0},{"$f":"VLOOKUP('A2_NPV-Daten'!O$62,B1_Berechnungen!$B$36:$T$60,15)","v":0},{"$f":"VLOOKUP('A2_NPV-Daten'!P$62,B1_Berechnungen!$B$36:$T$60,15)","v":0},{"$f":"VLOOKUP('A2_NPV-Daten'!Q$62,B1_Berechnungen!$B$36:$T$60,15)","v":0},{"$f":"VLOOKUP('A2_NPV-Daten'!R$62,B1_Berechnungen!$B$36:$T$60,15)","v":0},{"$f":"VLOOKUP('A2_NPV-Daten'!S$62,B1_Berechnungen!$B$36:$T$60,15)","v":0},{"$f":"VLOOKUP('A2_NPV-Daten'!T$62,B1_Berechnungen!$B$36:$T$60,15)","v":0},{"$f":"VLOOKUP('A2_NPV-Daten'!U$62,B1_Berechnungen!$B$36:$T$60,15)","v":0},{"$f":"VLOOKUP('A2_NPV-Daten'!V$62,B1_Berechnungen!$B$36:$T$60,15)","v":0}]
[929,"Förderbeiträge Dritter (Kanton, Bund, Gemeinde)","[CHF/a]",{"$f":"((D62=E1_Projektdaten!$D$77)*E1_Projektdaten!$D$76+(D62=E1_Projektdaten!$D$79)*E1_Projektdaten!$D$78)*('A2_NPV-Daten'!D62>0)","v":0},{"$f":"((E62=E1_Projektdaten!$D$77)*E1_Projektdaten!$D$76+(E62=E1_Projektdaten!$D$79)*E1_Projektdaten!$D$78)*('A2_NPV-Daten'!E62>0)","v":0},{"$f":"((F62=E1_Projektdaten!$D$77)*E1_Projektdaten!$D$76+(F62=E1_Projektdaten!$D$79)*E1_Projektdaten!$D$78)*('A2_NPV-Daten'!F62>0)","v":0},{"$f":"((G62=E1_Projektdaten!$D$77)*E1_Projektdaten!$D$76+(G62=E1_Projektdaten!$D$79)*E1_Projektdaten!$D$78)*('A2_NPV-Daten'!G62>0)","v":0},{"$f":"((H62=E1_Projektdaten!$D$77)*E1_Projektdaten!$D$76+(H62=E1_Projektdaten!$D$79)*E1_Projektdaten!$D$78)*('A2_NPV-Daten'!H62>0)","v":0},{"$f":"((I62=E1_Projektdaten!$D$77)*E1_Projektdaten!$D$76+(I62=E1_Projektdaten!$D$79)*E1_Projektdaten!$D$78)*('A2_NPV-Daten'!I62>0)","v":0},{"$f":"((J62=E1_Projektdaten!$D$77)*E1_Projektdaten!$D$76+(J62=E1_Projektdaten!$D$79)*E1_Projektdaten!$D$78)*('A2_NPV-Daten'!J62>0)","v":0},{"$f":"((K62=E1_Projektdaten!$D$77)*E1_Projektdaten!$D$76+(K62=E1_Projektdaten!$D$79)*E1_Projektdaten!$D$78)*('A2_NPV-Daten'!K62>0)","v":0},{"$f":"((L62=E1_Projektdaten!$D$77)*E1_Projektdaten!$D$76+(L62=E1_Projektdaten!$D$79)*E1_Projektdaten!$D$78)*('A2_NPV-Daten'!L62>0)","v":0},{"$f":"((M62=E1_Projektdaten!$D$77)*E1_Projektdaten!$D$76+(M62=E1_Projektdaten!$D$79)*E1_Projektdaten!$D$78)*('A2_NPV-Daten'!M62>0)","v":0},{"$f":"((N62=E1_Projektdaten!$D$77)*E1_Projektdaten!$D$76+(N62=E1_Projektdaten!$D$79)*E1_Projektdaten!$D$78)*('A2_NPV-Daten'!N62>0)","v":0},{"$f":"((O62=E1_Projektdaten!$D$77)*E1_Projektdaten!$D$76+(O62=E1_Projektdaten!$D$79)*E1_Projektdaten!$D$78)*('A2_NPV-Daten'!O62>0)","v":0},{"$f":"((P62=E1_Projektdaten!$D$77)*E1_Projektdaten!$D$76+(P62=E1_Projektdaten!$D$79)*E1_Projektdaten!$D$78)*('A2_NPV-Daten'!P62>0)","v":0},{"$f":"((Q62=E1_Projektdaten!$D$77)*E1_Projektdaten!$D$76+(Q62=E1_Projektdaten!$D$79)*E1_Projektdaten!$D$78)*('A2_NPV-Daten'!Q62>0)","v":0},{"$f":"((R62=E1_Projektdaten!$D$77)*E1_Projektdaten!$D$76+(R62=E1_Projektdaten!$D$79)*E1_Projektdaten!$D$78)*('A2_NPV-Daten'!R62>0)","v":0},{"$f":"((S62=E1_Projektdaten!$D$77)*E1_Projektdaten!$D$76+(S62=E1_Projektdaten!$D$79)*E1_Projektdaten!$D$78)*('A2_NPV-Daten'!S62>0)","v":0},{"$f":"((T62=E1_Projektdaten!$D$77)*E1_Projektdaten!$D$76+(T62=E1_Projektdaten!$D$79)*E1_Projektdaten!$D$78)*('A2_NPV-Daten'!T62>0)","v":0},{"$f":"((U62=E1_Projektdaten!$D$77)*E1_Projektdaten!$D$76+(U62=E1_Projektdaten!$D$79)*E1_Projektdaten!$D$78)*('A2_NPV-Daten'!U62>0)","v":0},{"$f":"((V62=E1_Projektdaten!$D$77)*E1_Projektdaten!$D$76+(V62=E1_Projektdaten!$D$79)*E1_Projektdaten!$D$78)*('A2_NPV-Daten'!V62>0)","v":0}]
[]
[930,"nicht eingerechneter Aufwand und Ertrag"]
[561,"Zusätzlicher Aufwand","[CHF/a]",{"$f":"VLOOKUP('A2_NPV-Daten'!D$62,B1_Berechnungen!$B$36:$T$60,10)","v":0},{"$f":"VLOOKUP('A2_NPV-Daten'!E$62,B1_Berechnungen!$B$36:$T$60,10)","v":0},{"$f":"VLOOKUP('A2_NPV-Daten'!F$62,B1_Berechnungen!$B$36:$T$60,10)","v":0},{"$f":"VLOOKUP('A2_NPV-Daten'!G$62,B1_Berechnungen!$B$36:$T$60,10)","v":0},{"$f":"VLOOKUP('A2_NPV-Daten'!H$62,B1_Berechnungen!$B$36:$T$60,10)","v":0},{"$f":"VLOOKUP('A2_NPV-Daten'!I$62,B1_Berechnungen!$B$36:$T$60,10)","v":0},{"$f":"VLOOKUP('A2_NPV-Daten'!J$62,B1_Berechnungen!$B$36:$T$60,10)","v":0},{"$f":"VLOOKUP('A2_NPV-Daten'!K$62,B1_Berechnungen!$B$36:$T$60,10)","v":0},{"$f":"VLOOKUP('A2_NPV-Daten'!L$62,B1_Berechnungen!$B$36:$T$60,10)","v":0},{"$f":"VLOOKUP('A2_NPV-Daten'!M$62,B1_Berechnungen!$B$36:$T$60,10)","v":0},{"$f":"VLOOKUP('A2_NPV-Daten'!N$62,B1_Berechnungen!$B$36:$T$60,10)","v":0},{"$f":"VLOOKUP('A2_NPV-Daten'!O$62,B1_Berechnungen!$B$36:$T$60,10)","v":0},{"$f":"VLOOKUP('A2_NPV-Daten'!P$62,B1_Berechnungen!$B$36:$T$60,10)","v":0},{"$f":"VLOOKUP('A2_NPV-Daten'!Q$62,B1_Berechnungen!$B$36:$T$60,10)","v":0},{"$f":"VLOOKUP('A2_NPV-Daten'!R$62,B1_Berechnungen!$B$36:$T$60,10)","v":0},{"$f":"VLOOKUP('A2_NPV-Daten'!S$62,B1_Berechnungen!$B$36:$T$60,10)","v":0},{"$f":"VLOOKUP('A2_NPV-Daten'!T$62,B1_Berechnungen!$B$36:$T$60,10)","v":0},{"$f":"VLOOKUP('A2_NPV-Daten'!U$62,B1_Berechnungen!$B$36:$T$60,10)","v":0}]
[574,"Zusätzlicher Ertrag","[CHF/a]",{"$f":"VLOOKUP('A2_NPV-Daten'!D$62,B1_Berechnungen!$B$36:$T$60,18)","v":0},{"$f":"VLOOKUP('A2_NPV-Daten'!E$62,B1_Berechnungen!$B$36:$T$60,18)","v":0},{"$f":"VLOOKUP('A2_NPV-Daten'!F$62,B1_Berechnungen!$B$36:$T$60,18)","v":0},{"$f":"VLOOKUP('A2_NPV-Daten'!G$62,B1_Berechnungen!$B$36:$T$60,18)","v":0},{"$f":"VLOOKUP('A2_NPV-Daten'!H$62,B1_Berechnungen!$B$36:$T$60,18)","v":0},{"$f":"VLOOKUP('A2_NPV-Daten'!I$62,B1_Berechnungen!$B$36:$T$60,18)","v":0},{"$f":"VLOOKUP('A2_NPV-Daten'!J$62,B1_Berechnungen!$B$36:$T$60,18)","v":0},{"$f":"VLOOKUP('A2_NPV-Daten'!K$62,B1_Berechnungen!$B$36:$T$60,18)","v":0},{"$f":"VLOOKUP('A2_NPV-Daten'!L$62,B1_Berechnungen!$B$36:$T$60,18)","v":0},{"$f":"VLOOKUP('A2_NPV-Daten'!M$62,B1_Berechnungen!$B$36:$T$60,18)","v":0},{"$f":"VLOOKUP('A2_NPV-Daten'!N$62,B1_Berechnungen!$B$36:$T$60,18)","v":0},{"$f":"VLOOKUP('A2_NPV-Daten'!O$62,B1_Berechnungen!$B$36:$T$60,18)","v":0},{"$f":"VLOOKUP('A2_NPV-Daten'!P$62,B1_Berechnungen!$B$36:$T$60,18)","v":0},{"$f":"VLOOKUP('A2_NPV-Daten'!Q$62,B1_Berechnungen!$B$36:$T$60,18)","v":0},{"$f":"VLOOKUP('A2_NPV-Daten'!R$62,B1_Berechnungen!$B$36:$T$60,18)","v":0},{"$f":"VLOOKUP('A2_NPV-Daten'!S$62,B1_Berechnungen!$B$36:$T$60,18)","v":0},{"$f":"VLOOKUP('A2_NPV-Daten'!T$62,B1_Berechnungen!$B$36:$T$60,18)","v":0},{"$f":"VLOOKUP('A2_NPV-Daten'!U$62,B1_Berechnungen!$B$36:$T$60,18)","v":0}]